Workbook

Sheet INSURED INFORMATION
O2: 24 years | P2: FALSE
O4: Descuento 24 años (por edad)
O5: age | P5: Discount (%) | Q5: Parameter | S5: Type | T5: New Business | V5: REGION | W5: 2
O6: 24 | P6: 35 | Q6: =1-P6/100 -> 0.65 | T6: Renewals | W6: 3
O7: 25 | P7: 30 | Q7: =1-P7/100 -> 0.7 | W7: 4
O8: 26 | P8: 25 | Q8: 0.75 | W8: 5
O9: 27 | P9: 20 | Q9: 0.8 | W9: 6
O10: 28 | P10: 15 | Q10: 0.85 | W10: 8
O11: 29 | P11: 6 | Q11: 0.94 | W11: 9
O12: All ages | P12: 0 | Q12: 1 | W12: Perú (Pólizas: 2020)
S13: Type selected | T13: 2 | V13: Selección | W13: 6
V14: REGION | W14: =IF(W13=1,2,IF(W13=2,3,IF(W13=3,4,IF(W13=4,5,IF(W13=4,5,IF(W13=5,6,IF(W13=6,8,IF(W13=7,9,IF(W13=8,"PERU2020"))))))))) -> 8
W15: Trinidad & Tobago
O19: Descuento de 24 años: | P19: =IF(P2,_xlfn.SWITCH(C42,O6,Q6,O7,Q7,O8,Q8,O9,Q9,O10,Q10,O11,Q11,Q12),Q12) -> 1
O24: Descuento por variante de coaseguro | P24: N/A
P30: Descuento si es nuevo negocio (ENTRADA MANUAL)
P32: NEW BUSINESS DISCOUNT
P33: Critical | Q33: Exclusive | R33: Privilege | S33: Advantage (Mundial) | T33: Secure | U33: Essential
O34: Plan 1 | P34: 0.3 | Q34: 0.3 | R34: 0.3 | S34: 0.3 | T34: 0.3 | U34: 0.3
O35: Plan2 | P35: 0.3 | Q35: 0.3 | R35: 0.3 | S35: 0.3 | T35: 0.3 | U35: 0.3
A36: Main Insured Name | C36: John Doe | O36: Plan 3 | P36: 0.3 | Q36: 0.3 | R36: 0.3 | S36: 0.3 | T36: 0.3 | U36: 0.3
O37: Plan 4 | P37: 0.3 | Q37: 0.3 | R37: 0.3 | S37: 0.3 | T37: 0.3 | U37: 0.3
A38: Number of adults in the policy | C38: 1 | O38: Plan 5 | P38: 0.3 | Q38: 0.3 | R38: 0.3 | S38: 0.3 | T38: 0.3 | U38: 0.3
O39: Plan 6 | P39: 0.3 | Q39: 0.3 | R39: 0.3 | S39: 0.3 | T39: 0.3 | U39: 0.3
A40: Número de hijos en la póliza: | C40: 0
A42: Age of the main insured | C42: 18
A44: Age of Spouse | C44: 46
A47: Agency Name: | C47: Agency
O48: Descuento combinado 24 años + Nuevo Negocio o Roneovaciones
P51: TOTAL DISCOUNT
P52: Critical | Q52: Exclusive | R52: Privilege | S52: Advantage | T52: Secure | U52: Essential
O53: Plan 1 | P53: =IF($T$13=2,1,(1-P34)) -> 1 | Q53: =IF($T$13=2,1,(1-Q34)) -> 1 | R53: 1 | S53: 1 | T53: 1 | U53: =IF($T$13=2,1,(1-U34)) -> 1
O54: Plan2 | P54: =IF($T$13=2,1,(1-P35)) -> 1 | Q54: 1 | R54: 1 | S54: 1 | T54: 1 | U54: 1
O55: Plan 3 | P55: =IF($T$13=2,1,(1-P36)) -> 1 | Q55: 1 | R55: 1 | S55: 1 | T55: 1 | U55: 1
O56: Plan 4 | P56: =IF($T$13=2,1,(1-P37)) -> 1 | Q56: 1 | R56: 1 | S56: 1 | T56: 1 | U56: 1
O57: Plan 5 | P57: =IF($T$13=2,1,(1-P38)) -> 1 | Q57: 1 | R57: 1 | S57: 1 | T57: 1 | U57: 1
O58: Plan 6 | P58: =IF($T$13=2,1,(1-P39)) -> 1 | Q58: 1 | R58: 1 | S58: 1 | T58: 1 | U58: 1

Sheet Bupa Privilege Care
N1: RESUMEN DE BENEFICIOS | AB1: RESUMEN DE BENEFICIOS
G2: FALSE
F5: Quote for International Health Insurance Bupa Privilege Care Rates in US$ |Effective: January 1, 2026 | L5: REGION
L7: ='INSURED INFORMATION'!W15 -> Trinidad & Tobago
F13: Main Insured Name | G13: =+'INSURED INFORMATION'!$C$36 -> John Doe
F15: Broker/Agent | G15: =+'INSURED INFORMATION'!$C$47 -> Agency
F17: Number of adults in the policy | G17: =+'INSURED INFORMATION'!$C$38 -> 1 | I17: Dependents (under 24 years) | L17: =+'INSURED INFORMATION'!$C$40 -> 0
I18: =IF('INSURED INFORMATION'!$P$2=TRUE, "Cotización para dependiente de 24 años","") -> 
F19: Age of the main insured | G19: =+'INSURED INFORMATION'!$C$42 -> 18 | I19: Spouse's age | L19: =+'INSURED INFORMATION'!$C$44 -> 46
I21: Quote date | K21: =NOW() -> 2025-11-19T09:47:12.310
AQ22: BG
F25: DEDUCTIBLES | G25: PLAN 1 | H25: PLAN 2 | I25: PLAN 3 | J25: PLAN 4 | K25: PLAN 5 | L25: PLAN 6
F26: Inside the country of residence | G26: n/a | H26: 1000 | I26: 2000 | J26: 5000 | K26: 10000 | L26: 20000
F27: Outside the country of residence | G27: n/a | H27: 2000 | I27: 3000 | J27: 5000 | K27: 10000 | L27: 20000
F30: ANNUAL RATES
F31: Main Insured Premium | G31: n/a | H31: =VLOOKUP($G$19,Tablas!$A$158:$H$181,4,TRUE) -> 9566 | I31: =VLOOKUP($G$19,Tablas!$A$158:$H$181,5,TRUE) -> 6579 | J31: =VLOOKUP($G$19,Tablas!$A$158:$H$181,6,TRUE) -> 4614 | K31: =VLOOKUP($G$19,Tablas!$A$158:$H$181,7,TRUE) -> 3213 | L31: =VLOOKUP($G$19,Tablas!$A$158:$H$181,8,TRUE) -> 2446
F32: Spouse's Premium | G32: n/a | H32: =IF($G$17=1,0,(VLOOKUP($L$19,Tablas!$A$158:$H$181,4,TRUE))) -> 0 | I32: =IF($G$17=1,0,(VLOOKUP($L$19,Tablas!$A$158:$H$181,5,TRUE))) -> 0 | J32: =IF($G$17=1,0,(VLOOKUP($L$19,Tablas!$A$158:$H$181,6,TRUE))) -> 0 | K32: =IF($G$17=1,0,(VLOOKUP($L$19,Tablas!$A$158:$H$181,7,TRUE))) -> 0 | L32: =IF($G$17=1,0,(VLOOKUP($L$19,Tablas!$A$158:$H$181,8,TRUE))) -> 0
F33: Primas Hijos | G33: n/a | H33: =IF($L$17=0,0,(VLOOKUP($L$17,Tablas!$A$182:$H$184,4,TRUE))) -> 0 | I33: =IF($L$17=0,0,(VLOOKUP($L$17,Tablas!$A$182:$H$184,5,TRUE))) -> 0 | J33: =IF($L$17=0,0,(VLOOKUP($L$17,Tablas!$A$182:$H$184,6,TRUE))) -> 0 | K33: =IF($L$17=0,0,(VLOOKUP($L$17,Tablas!$A$182:$H$184,7,TRUE))) -> 0 | L33: =IF($L$17=0,0,(VLOOKUP($L$17,Tablas!$A$182:$H$184,8,TRUE))) -> 0
F34: Rider: Maternity Complications | G34: n/a | H34: =+IF($G$2=FALSE,0,Tablas!D$185) -> 0 | I34: =+IF($G$2=FALSE,0,Tablas!E$185) -> 0 | J34: =+IF($G$2=FALSE,0,Tablas!F$185) -> 0 | K34: =+IF($G$2=FALSE,0,Tablas!G$185) -> 0 | L34: =+IF($G$2=FALSE,0,Tablas!H$185) -> 0
F35: TOTAL NET PREMIUM | G35: n/a | H35: =SUM(H31:H34) -> 9566 | I35: =SUM(I31:I34) -> 6579 | J35: =SUM(J31:J34) -> 4614 | K35: =SUM(K31:K34) -> 3213 | L35: =SUM(L31:L34) -> 2446
F36: Annual administrative Fee | G36: n/a | H36: 75 | I36: 75 | J36: 75 | K36: 75 | L36: 75
F37: GRAND TOTAL | G37: n/a | H37: =SUM(H35:H36) -> 9641 | I37: =SUM(I35:I36) -> 6654 | J37: =SUM(J35:J36) -> 4689 | K37: =SUM(K35:K36) -> 3288 | L37: =SUM(L35:L36) -> 2521
F39: SEMI-ANNUAL RATES
F40: Main Insured Premium | G40: n/a | H40: =VLOOKUP($G$19,Tablas!$A$193:$H$216,4,TRUE) -> 4878.66 | I40: =VLOOKUP($G$19,Tablas!$A$193:$H$216,5,TRUE) -> 3355.29 | J40: =VLOOKUP($G$19,Tablas!$A$193:$H$216,6,TRUE) -> 2353.14 | K40: =VLOOKUP($G$19,Tablas!$A$193:$H$216,7,TRUE) -> 1638.63 | L40: =VLOOKUP($G$19,Tablas!$A$193:$H$216,8,TRUE) -> 1247.46
F41: Spouse's Premium | G41: n/a | H41: =IF($G$17=1,0,(VLOOKUP($L$19,Tablas!$A$193:$H$216,4,TRUE))) -> 0 | I41: =IF($G$17=1,0,(VLOOKUP($L$19,Tablas!$A$193:$H$216,5,TRUE))) -> 0 | J41: =IF($G$17=1,0,(VLOOKUP($L$19,Tablas!$A$193:$H$216,6,TRUE))) -> 0 | K41: =IF($G$17=1,0,(VLOOKUP($L$19,Tablas!$A$193:$H$216,7,TRUE))) -> 0 | L41: =IF($G$17=1,0,(VLOOKUP($L$19,Tablas!$A$193:$H$216,8,TRUE))) -> 0
F42: Primas Hijos | G42: n/a | H42: =IF($L$17=0,0,(VLOOKUP($L$17,Tablas!$A$217:$H$219,4,TRUE))) -> 0 | I42: =IF($L$17=0,0,(VLOOKUP($L$17,Tablas!$A$217:$H$219,5,TRUE))) -> 0 | J42: =IF($L$17=0,0,(VLOOKUP($L$17,Tablas!$A$217:$H$219,6,TRUE))) -> 0 | K42: =IF($L$17=0,0,(VLOOKUP($L$17,Tablas!$A$217:$H$219,7,TRUE))) -> 0 | L42: =IF($L$17=0,0,(VLOOKUP($L$17,Tablas!$A$217:$H$219,8,TRUE))) -> 0
F43: Prima Rider Complic. Maternidad | G43: n/a | H43: =+IF($G$2=FALSE,0,Tablas!D$220) -> 0 | I43: =+IF($G$2=FALSE,0,Tablas!E$220) -> 0 | J43: =+IF($G$2=FALSE,0,Tablas!F$220) -> 0 | K43: =+IF($G$2=FALSE,0,Tablas!G$220) -> 0 | L43: =+IF($G$2=FALSE,0,Tablas!H$220) -> 0
F44: TOTAL NET PREMIUM | G44: n/a | H44: =SUM(H40:H43) -> 4878.66 | I44: =SUM(I40:I43) -> 3355.29 | J44: =SUM(J40:J43) -> 2353.14 | K44: =SUM(K40:K43) -> 1638.63 | L44: =SUM(L40:L43) -> 1247.46
F45: Annual administrative Fee | G45: n/a | H45: 75 | I45: 75 | J45: 75 | K45: 75 | L45: 75
F46: TOTAL (1st Rate) | G46: n/a | H46: =SUM(H44:H45) -> 4953.66 | I46: =SUM(I44:I45) -> 3430.29 | J46: =SUM(J44:J45) -> 2428.14 | K46: =SUM(K44:K45) -> 1713.63 | L46: =SUM(L44:L45) -> 1322.46
F47: TOTAL (2nd Rate) | G47: n/a | H47: =H44 -> 4878.66 | I47: =I44 -> 3355.29 | J47: 2353.14 | K47: 1638.63 | L47: 1247.46
F48: GRAND TOTAL | G48: n/a | H48: =SUM(H46:H47) -> 9832.32 | I48: =SUM(I46:I47) -> 6785.58 | J48: 4781.28 | K48: 3352.26 | L48: 2569.92
F50: QUARTERLY RATES
F51: Main Insured Premium | G51: n/a | H51: =H31*Tablas!$G$3 -> 2534.99 | I51: =I31*Tablas!$G$3 -> 1743.435 | J51: =J31*Tablas!$G$3 -> 1222.71 | K51: =K31*Tablas!$G$3 -> 851.445 | L51: =L31*Tablas!$G$3 -> 648.19
F52: Spouse's Premium | G52: n/a | H52: =H32*Tablas!$G$3 -> 0 | I52: =I32*Tablas!$G$3 -> 0 | J52: =J32*Tablas!$G$3 -> 0 | K52: =K32*Tablas!$G$3 -> 0 | L52: =L32*Tablas!$G$3 -> 0
F53: Primas Hijos | G53: n/a | H53: =H33*Tablas!$G$3 -> 0 | I53: =I33*Tablas!$G$3 -> 0 | J53: =J33*Tablas!$G$3 -> 0 | K53: =K33*Tablas!$G$3 -> 0 | L53: =L33*Tablas!$G$3 -> 0
F54: Prima Rider Complic. Maternidad | G54: n/a | H54: =H34*Tablas!$G$3 -> 0 | I54: =I34*Tablas!$G$3 -> 0 | J54: =J34*Tablas!$G$3 -> 0 | K54: =K34*Tablas!$G$3 -> 0 | L54: =L34*Tablas!$G$3 -> 0
F55: TOTAL NET PREMIUM | G55: n/a | H55: =SUM(H51:H54) -> 2534.99 | I55: =SUM(I51:I54) -> 1743.435 | J55: =SUM(J51:J54) -> 1222.71 | K55: =SUM(K51:K54) -> 851.445 | L55: =SUM(L51:L54) -> 648.19
F56: Annual administrative Fee | G56: n/a | H56: 75 | I56: 75 | J56: 75 | K56: 75 | L56: 75
F57: TOTAL (1st Rate) | G57: n/a | H57: =SUM(H55:H56) -> 2609.99 | I57: =SUM(I55:I56) -> 1818.435 | J57: =SUM(J55:J56) -> 1297.71 | K57: =SUM(K55:K56) -> 926.445 | L57: =SUM(L55:L56) -> 723.19
F58: TOTAL (Rate 2 to 4) | G58: n/a | H58: =H55 -> 2534.99 | I58: =I55 -> 1743.435 | J58: 1222.71 | K58: 851.445 | L58: 648.19
F59: GRAND TOTAL | G59: n/a | H59: =H57+H58*3 -> 10214.96 | I59: =I57+I58*3 -> 7048.74 | J59: 4965.84 | K59: 3480.78 | L59: =L57+L58*3 -> 2667.76
F61: MONTHLY RATES
F62: Main Insured Premium | G62: n/a | H62: =H31*Tablas!$G$4 -> 892.79478 | I62: =I31*Tablas!$G$4 -> 614.01807 | J62: =J31*Tablas!$G$4 -> 430.62462 | K62: =K31*Tablas!$G$4 -> 299.86929 | L62: =L31*Tablas!$G$4 -> 228.28518
F63: Spouse's Premium | G63: n/a | H63: =H32*Tablas!$G$4 -> 0 | I63: =I32*Tablas!$G$4 -> 0 | J63: =J32*Tablas!$G$4 -> 0 | K63: =K32*Tablas!$G$4 -> 0 | L63: =L32*Tablas!$G$4 -> 0
F64: Primas Hijos | G64: n/a | H64: =H33*Tablas!$G$4 -> 0 | I64: =I33*Tablas!$G$4 -> 0 | J64: =J33*Tablas!$G$4 -> 0 | K64: =K33*Tablas!$G$4 -> 0 | L64: =L33*Tablas!$G$4 -> 0
F65: Prima Rider Complic. Maternidad | G65: n/a | H65: =H34*Tablas!$G$4 -> 0 | I65: =I34*Tablas!$G$4 -> 0 | J65: =J34*Tablas!$G$4 -> 0 | K65: =K34*Tablas!$G$4 -> 0 | L65: =L34*Tablas!$G$4 -> 0
F66: TOTAL NET PREMIUM | G66: n/a | H66: =SUM(H62:H65) -> 892.79478 | I66: =SUM(I62:I65) -> 614.01807 | J66: =SUM(J62:J65) -> 430.62462 | K66: =SUM(K62:K65) -> 299.86929 | L66: =SUM(L62:L65) -> 228.28518
F67: Annual administrative Fee | G67: n/a | H67: 75 | I67: 75 | J67: 75 | K67: 75 | L67: 75
F68: TOTAL (1st Rate) | G68: n/a | H68: =SUM(H66:H67) -> 967.79478 | I68: =SUM(I66:I67) -> 689.01807 | J68: =SUM(J66:J67) -> 505.62462 | K68: =SUM(K66:K67) -> 374.86929 | L68: =SUM(L66:L67) -> 303.28518
F69: TOTAL (Rate 2 to 12) | G69: n/a | H69: =H66 -> 892.79478 | I69: =I66 -> 614.01807 | J69: 430.62462 | K69: 299.86929 | L69: 228.28518
F70: GRAND TOTAL | G70: n/a | H70: =H68+H69*11 -> 10788.53736 | I70: =I68+I69*11 -> 7443.21684 | J70: 5242.49544 | K70: 3673.43148 | L70: =L68+L69*11 -> 2814.42216
F72: This quote is for informational purposes only and at no time expresses a legal commitment to provide you with insurance coverage. The issuance of a Bupa insurance policy is subject to all risk assessments by Bupa and receipt of all required premium payments.

Sheet Bupa Advantage Care
C1: FALSE | D1: FALSE | I1: RESUMEN DE BENEFICIOS | W1: RESUMEN DE BENEFICIOS
A5: Quote for International Health Insurance Bupa Advantage Care (Mundial) Rates in US$ |Effective: January 1, 2026 | G5: REGION
G7: ='INSURED INFORMATION'!W15 -> Trinidad & Tobago
A13: Main Insured Name | B13: =+'INSURED INFORMATION'!$C$36 -> John Doe
A15: Broker/Agent | B15: =+'INSURED INFORMATION'!$C$47 -> Agency
A17: Number of adults in the policy | B17: =+'INSURED INFORMATION'!$C$38 -> 1 | D17: Dependents (under 24 years) | G17: =+'INSURED INFORMATION'!$C$40 -> 0
D18: =IF('INSURED INFORMATION'!$P$2=TRUE, "Cotización para dependiente de 24 años","") -> 
A19: Age of the main insured | B19: =+'INSURED INFORMATION'!$C$42 -> 18 | D19: Spouse's age | G19: =+'INSURED INFORMATION'!$C$44 -> 46
D21: Quote date | F21: =NOW() -> 2025-11-19T09:47:12.310
A25: DEDUCTIBLES | B25: PLAN 1 | C25: PLAN 2 | D25: PLAN 3 | E25: PLAN 4 | F25: PLAN 5 | G25: PLAN 6
A26: Inside the country of residence | B26: n/a | C26: 1000 | D26: 2000 | E26: 5000 | F26: 10000 | G26: 20000
A27: Outside the country of residence | B27: n/a | C27: 2000 | D27: 3000 | E27: 5000 | F27: 10000 | G27: 20000
A30: ANNUAL RATES
A31: Main Insured Premium | B31: n/a | C31: =VLOOKUP($B$19,Tablas!$A$303:$H$326,4,TRUE) -> 6247 | D31: =VLOOKUP($B$19,Tablas!$A$303:$H$326,5,TRUE) -> 4692 | E31: =VLOOKUP($B$19,Tablas!$A$303:$H$326,6,TRUE) -> 3530 | F31: =VLOOKUP($B$19,Tablas!$A$303:$H$326,7,TRUE) -> 2658 | G31: =VLOOKUP($B$19,Tablas!$A$303:$H$326,8,TRUE) -> 2106
A32: Spouse's Premium | B32: n/a | C32: =IF($B$17=1,0,(VLOOKUP($G$19,Tablas!$A$303:$H$326,4,TRUE))) -> 0 | D32: =IF($B$17=1,0,(VLOOKUP($G$19,Tablas!$A$303:$H$326,5,TRUE))) -> 0 | E32: =IF($B$17=1,0,(VLOOKUP($G$19,Tablas!$A$303:$H$326,6,TRUE))) -> 0 | F32: =IF($B$17=1,0,(VLOOKUP($G$19,Tablas!$A$303:$H$326,7,TRUE))) -> 0 | G32: =IF($B$17=1,0,(VLOOKUP($G$19,Tablas!$A$303:$H$326,8,TRUE))) -> 0
A33: Primas Hijos | B33: n/a | C33: =IF($G$17=0,0,(VLOOKUP($G$17,Tablas!$A$327:$H$329,4,TRUE))) -> 0 | D33: =IF($G$17=0,0,(VLOOKUP($G$17,Tablas!$A$327:$H$329,5,TRUE))) -> 0 | E33: =IF($G$17=0,0,(VLOOKUP($G$17,Tablas!$A$327:$H$329,6,TRUE))) -> 0 | F33: =IF($G$17=0,0,(VLOOKUP($G$17,Tablas!$A$327:$H$329,7,TRUE))) -> 0 | G33: =IF($G$17=0,0,(VLOOKUP($G$17,Tablas!$A$327:$H$329,8,TRUE))) -> 0
A34: Rider: Maternity Complications | B34: n/a | C34: =+IF($C$1=FALSE,0,Tablas!D$330) -> 0 | D34: =+IF($C$1=FALSE,0,Tablas!E$330) -> 0 | E34: =+IF($C$1=FALSE,0,Tablas!F$330) -> 0 | F34: =+IF($C$1=FALSE,0,Tablas!G$330) -> 0 | G34: =+IF($C$1=FALSE,0,Tablas!H$330) -> 0
A35: Rider: Organ Trasplant | B35: n/a | C35: =IF($D$1=FALSE,0,Tablas!D$331) -> 0 | D35: =IF($D$1=FALSE,0,Tablas!E$331) -> 0 | E35: =IF($D$1=FALSE,0,Tablas!F$331) -> 0 | F35: =IF($D$1=FALSE,0,Tablas!G$331) -> 0 | G35: =IF($D$1=FALSE,0,Tablas!H$331) -> 0
A36: TOTAL NET PREMIUM | B36: n/a | C36: =SUM(C31:C35) -> 6247 | D36: 4692 | E36: 3530 | F36: 2658 | G36: 2106
A37: Costo Administrativo Annual | B37: n/a | C37: 75 | D37: 75 | E37: 75 | F37: 75 | G37: 75
A38: GRAND TOTAL | B38: n/a | C38: =SUM(C36:C37) -> 6322 | D38: =SUM(D36:D37) -> 4767 | E38: =SUM(E36:E37) -> 3605 | F38: =SUM(F36:F37) -> 2733 | G38: =SUM(G36:G37) -> 2181
A40: SEMI-ANNUAL RATES
A41: Main Insured Premium | B41: n/a | C41: =VLOOKUP($B$19,Tablas!$A$338:$H$361,4,TRUE) -> 3185.97 | D41: =VLOOKUP($B$19,Tablas!$A$338:$H$361,5,TRUE) -> 2392.92 | E41: =VLOOKUP($B$19,Tablas!$A$338:$H$361,6,TRUE) -> 1800.3 | F41: =VLOOKUP($B$19,Tablas!$A$338:$H$361,7,TRUE) -> 1355.58 | G41: =VLOOKUP($B$19,Tablas!$A$338:$H$361,8,TRUE) -> 1074.06
A42: Spouse's Premium | B42: n/a | C42: =IF($B$17=1,0,(VLOOKUP($G$19,Tablas!$A$338:$H$361,4,TRUE))) -> 0 | D42: =IF($B$17=1,0,(VLOOKUP($G$19,Tablas!$A$338:$H$361,5,TRUE))) -> 0 | E42: =IF($B$17=1,0,(VLOOKUP($G$19,Tablas!$A$338:$H$361,6,TRUE))) -> 0 | F42: =IF($B$17=1,0,(VLOOKUP($G$19,Tablas!$A$338:$H$361,7,TRUE))) -> 0 | G42: =IF($B$17=1,0,(VLOOKUP($G$19,Tablas!$A$338:$H$361,8,TRUE))) -> 0
A43: Primas Hijos | B43: n/a | C43: =IF($G$17=0,0,(VLOOKUP($G$17,Tablas!$A$362:$H$364,4,TRUE))) -> 0 | D43: =IF($G$17=0,0,(VLOOKUP($G$17,Tablas!$A$362:$H$364,5,TRUE))) -> 0 | E43: =IF($G$17=0,0,(VLOOKUP($G$17,Tablas!$A$362:$H$364,6,TRUE))) -> 0 | F43: =IF($G$17=0,0,(VLOOKUP($G$17,Tablas!$A$362:$H$364,7,TRUE))) -> 0 | G43: =IF($G$17=0,0,(VLOOKUP($G$17,Tablas!$A$362:$H$364,8,TRUE))) -> 0
A44: Rider: Maternity Complications | B44: n/a | C44: =+IF($C$1=FALSE,0,Tablas!D$365) -> 0 | D44: =+IF($C$1=FALSE,0,Tablas!E$365) -> 0 | E44: =+IF($C$1=FALSE,0,Tablas!F$365) -> 0 | F44: =+IF($C$1=FALSE,0,Tablas!G$365) -> 0 | G44: =+IF($C$1=FALSE,0,Tablas!H$365) -> 0
A45: Rider: Organ Trasplant | B45: n/a | C45: =+IF($C$1=FALSE,0,Tablas!D$365) -> 0 | D45: =IF($D$1=FALSE,0,Tablas!E$366) -> 0 | E45: =IF($D$1=FALSE,0,Tablas!F$366) -> 0 | F45: =IF($D$1=FALSE,0,Tablas!G$366) -> 0 | G45: =IF($D$1=FALSE,0,Tablas!H$366) -> 0
A46: TOTAL NET PREMIUM | B46: n/a | C46: =SUM(C41:C45) -> 3185.97 | D46: 2392.92 | E46: 1800.3 | F46: 1355.58 | G46: 1074.06
A47: Annual administrative Fee | B47: n/a | C47: 75 | D47: 75 | E47: 75 | F47: 75 | G47: 75
A48: TOTAL (1st Rate) | B48: n/a | C48: =SUM(C46:C47) -> 3260.97 | D48: =SUM(D46:D47) -> 2467.92 | E48: =SUM(E46:E47) -> 1875.3 | F48: =SUM(F46:F47) -> 1430.58 | G48: =SUM(G46:G47) -> 1149.06
A49: TOTAL (2nd Rate) | B49: n/a | C49: =C46 -> 3185.97 | D49: =D46 -> 2392.92 | E49: 1800.3 | F49: 1355.58 | G49: 1074.06
A50: GRAND TOTAL | B50: n/a | C50: =SUM(C48:C49) -> 6446.94 | D50: =SUM(D48:D49) -> 4860.84 | E50: 3675.6 | F50: 2786.16 | G50: 2223.12
A52: QUARTERLY RATES
A53: Main Insured Premium | B53: n/a | C53: =C31*Tablas!$G$3 -> 1655.455 | D53: =D31*Tablas!$G$3 -> 1243.38 | E53: =E31*Tablas!$G$3 -> 935.45 | F53: =F31*Tablas!$G$3 -> 704.37 | G53: =G31*Tablas!$G$3 -> 558.09
A54: Spouse's Premium | B54: n/a | C54: =C32*Tablas!$G$3 -> 0 | D54: =D32*Tablas!$G$3 -> 0 | E54: =E32*Tablas!$G$3 -> 0 | F54: =F32*Tablas!$G$3 -> 0 | G54: =G32*Tablas!$G$3 -> 0
A55: Primas Hijos | B55: n/a | C55: =C33*Tablas!$G$3 -> 0 | D55: =D33*Tablas!$G$3 -> 0 | E55: =E33*Tablas!$G$3 -> 0 | F55: =F33*Tablas!$G$3 -> 0 | G55: =G33*Tablas!$G$3 -> 0
A56: Rider: Maternity Complications | B56: n/a | C56: =C34*Tablas!$G$3 -> 0 | D56: =D34*Tablas!$G$3 -> 0 | E56: =E34*Tablas!$G$3 -> 0 | F56: =F34*Tablas!$G$3 -> 0 | G56: =G34*Tablas!$G$3 -> 0
A57: Rider: Organ Trasplant | B57: n/a | C57: =C35*Tablas!$G$3 -> 0 | D57: =D35*Tablas!$G$3 -> 0 | E57: =E35*Tablas!$G$3 -> 0 | F57: =F35*Tablas!$G$3 -> 0 | G57: =G35*Tablas!$G$3 -> 0
A58: TOTAL NET PREMIUM | B58: n/a | C58: =SUM(C53:C57) -> 1655.455 | D58: 1243.38 | E58: 935.45 | F58: 704.37 | G58: 558.09
A59: Annual administrative Fee | B59: n/a | C59: 75 | D59: 75 | E59: 75 | F59: 75 | G59: 75
A60: TOTAL (1st Rate) | B60: n/a | C60: =SUM(C58:C59) -> 1730.455 | D60: =SUM(D58:D59) -> 1318.38 | E60: =SUM(E58:E59) -> 1010.45 | F60: =SUM(F58:F59) -> 779.37 | G60: =SUM(G58:G59) -> 633.09
A61: TOTAL (Rate 2 to 4) | B61: n/a | C61: =C58 -> 1655.455 | D61: =D58 -> 1243.38 | E61: 935.45 | F61: 704.37 | G61: 558.09
A62: GRAND TOTAL | B62: n/a | C62: =C60+C61*3 -> 6696.82 | D62: =D60+D61*3 -> 5048.52 | E62: 3816.8 | F62: 2892.48 | G62: =G60+G61*3 -> 2307.36
A64: MONTHLY RATES
A65: Main Insured Premium | B65: n/a | C65: =C31*Tablas!$G$4 -> 583.03251 | D65: =D31*Tablas!$G$4 -> 437.90436 | E65: =E31*Tablas!$G$4 -> 329.4549 | F65: =F31*Tablas!$G$4 -> 248.07114 | G65: =G31*Tablas!$G$4 -> 196.55298
A66: Spouse's Premium | B66: n/a | C66: =C32*Tablas!$G$4 -> 0 | D66: =D32*Tablas!$G$4 -> 0 | E66: =E32*Tablas!$G$4 -> 0 | F66: =F32*Tablas!$G$4 -> 0 | G66: =G32*Tablas!$G$4 -> 0
A67: Primas Hijos | B67: n/a | C67: =C33*Tablas!$G$4 -> 0 | D67: =D33*Tablas!$G$4 -> 0 | E67: =E33*Tablas!$G$4 -> 0 | F67: =F33*Tablas!$G$4 -> 0 | G67: =G33*Tablas!$G$4 -> 0
A68: Rider: Maternity Complications | B68: n/a | C68: =C34*Tablas!$G$4 -> 0 | D68: =D34*Tablas!$G$4 -> 0 | E68: =E34*Tablas!$G$4 -> 0 | F68: =F34*Tablas!$G$4 -> 0 | G68: =G34*Tablas!$G$4 -> 0
A69: Rider: Organ Trasplant | B69: n/a | C69: =C35*Tablas!$G$4 -> 0 | D69: =D35*Tablas!$G$4 -> 0 | E69: =E35*Tablas!$G$4 -> 0 | F69: =F35*Tablas!$G$4 -> 0 | G69: =G35*Tablas!$G$4 -> 0
A70: TOTAL NET PREMIUM | B70: n/a | C70: =SUM(C65:C69) -> 583.03251 | D70: 437.90436 | E70: 329.4549 | F70: 248.07114 | G70: 196.55298
A71: Annual administrative Fee | B71: n/a | C71: 75 | D71: 75 | E71: 75 | F71: 75 | G71: 75
A72: TOTAL (1st Rate) | B72: n/a | C72: =SUM(C70:C71) -> 658.03251 | D72: =SUM(D70:D71) -> 512.90436 | E72: =SUM(E70:E71) -> 404.4549 | F72: =SUM(F70:F71) -> 323.07114 | G72: =SUM(G70:G71) -> 271.55298
A73: TOTAL (Rate 2 to 12) | B73: n/a | C73: =C70 -> 583.03251 | D73: =D70 -> 437.90436 | E73: 329.4549 | F73: 248.07114 | G73: 196.55298
A74: GRAND TOTAL | B74: n/a | C74: =C72+C73*11 -> 7071.39012 | D74: =D72+D73*11 -> 5329.85232 | E74: 4028.4588 | F74: =F72+F73*11 -> 3051.85368 | G74: =G72+G73*11 -> 2433.63576
A76: This quote is for informational purposes only and at no time expresses a legal commitment to provide you with insurance coverage. The issuance of a Bupa insurance policy is subject to all risk assessments by Bupa and receipt of all required premium payments.

Sheet Bupa Secure Care
B1: FALSE | C1: FALSE | I1: RESUMEN DE BENEFICIOS | W1: RESUMEN DE BENEFICIOS
A5: Quote for International Health Insurance Bupa Secure Care Rates in US$ |Effective: January 1, 2026 | G5: REGION
G7: ='INSURED INFORMATION'!W15 -> Trinidad & Tobago
A13: Main Insured Name | B13: =+'INSURED INFORMATION'!$C$36 -> John Doe
A15: Broker/Agent | B15: =+'INSURED INFORMATION'!$C$47 -> Agency
A17: Number of adults in the policy | B17: =+'INSURED INFORMATION'!$C$38 -> 1 | D17: Dependents (under 24 years) | G17: =+'INSURED INFORMATION'!$C$40 -> 0
D18: =IF('INSURED INFORMATION'!$P$2=TRUE, "Cotización para dependiente de 24 años","") -> 
A19: Age of the main insured | B19: =+'INSURED INFORMATION'!$C$42 -> 18 | D19: Spouse's age | G19: =+'INSURED INFORMATION'!$C$44 -> 46
D21: Quote date | F21: =NOW() -> 2025-11-19T09:47:12.310
A25: DEDUCTIBLES | B25: PLAN 1 | C25: PLAN 2 | D25: PLAN 3 | E25: PLAN 4 | F25: PLAN 5 | G25: PLAN 6
A26: Inside the country of residence | B26: US$0 | C26: 1000 | D26: 2000 | E26: 5000 | F26: 10000 | G26: 20000
A27: Outside the country of residence | B27: US$1,000 | C27: 2000 | D27: 3000 | E27: 5000 | F27: 10000 | G27: 20000
A30: ANNUAL RATES
A31: Main Insured Premium | B31: n/a | C31: =VLOOKUP($B$19,Tablas!$A$446:$H$469,4,TRUE) -> 4674 | D31: =VLOOKUP($B$19,Tablas!$A$446:$H$469,5,TRUE) -> 3667 | E31: =VLOOKUP($B$19,Tablas!$A$446:$H$469,6,TRUE) -> 2769 | F31: =VLOOKUP($B$19,Tablas!$A$446:$H$469,7,TRUE) -> 2352 | G31: =VLOOKUP($B$19,Tablas!$A$446:$H$469,8,TRUE) -> 1784
A32: Spouse's Premium | B32: n/a | C32: =IF($B$17=1,0,(VLOOKUP($G$19,Tablas!$A$446:$H$469,4,TRUE))) -> 0 | D32: =IF($B$17=1,0,(VLOOKUP($G$19,Tablas!$A$446:$H$469,5,TRUE))) -> 0 | E32: =IF($B$17=1,0,(VLOOKUP($G$19,Tablas!$A$446:$H$469,6,TRUE))) -> 0 | F32: =IF($B$17=1,0,(VLOOKUP($G$19,Tablas!$A$446:$H$469,7,TRUE))) -> 0 | G32: =IF($B$17=1,0,(VLOOKUP($G$19,Tablas!$A$446:$H$469,8,TRUE))) -> 0
A33: Primas Hijos | B33: n/a | C33: =IF($G$17=0,0,(VLOOKUP($G$17,Tablas!$A$470:$H$472,4,TRUE))) -> 0 | D33: =IF($G$17=0,0,(VLOOKUP($G$17,Tablas!$A$470:$H$472,5,TRUE))) -> 0 | E33: =IF($G$17=0,0,(VLOOKUP($G$17,Tablas!$A$470:$H$472,6,TRUE))) -> 0 | F33: =IF($G$17=0,0,(VLOOKUP($G$17,Tablas!$A$470:$H$472,7,TRUE))) -> 0 | G33: =IF($G$17=0,0,(VLOOKUP($G$17,Tablas!$A$470:$H$472,8,TRUE))) -> 0
A34: Rider: Maternity Complications | B34: n/a | C34: =+IF($B$1=FALSE,0,Tablas!D$473) -> 0 | D34: =+IF($B$1=FALSE,0,Tablas!E$473) -> 0 | E34: =+IF($B$1=FALSE,0,Tablas!F$473) -> 0 | F34: =+IF($B$1=FALSE,0,Tablas!G$473) -> 0 | G34: =+IF($B$1=FALSE,0,Tablas!H$473) -> 0
A35: Rider: Organ Trasplant | B35: n/a | C35: =IF($C$1=FALSE,0,Tablas!D$474) -> 0 | D35: =IF($C$1=FALSE,0,Tablas!E$474) -> 0 | E35: =IF($C$1=FALSE,0,Tablas!F$474) -> 0 | F35: =IF($C$1=FALSE,0,Tablas!G$474) -> 0 | G35: =IF($C$1=FALSE,0,Tablas!H$474) -> 0
A36: TOTAL NET PREMIUM | B36: n/a | C36: =SUM(C31:C35) -> 4674 | D36: 3667 | E36: 2769 | F36: 2352 | G36: 1784
A37: Costo Administrativo Annual | B37: n/a | C37: 75 | D37: 75 | E37: 75 | F37: 75 | G37: 75
A38: GRAND TOTAL | B38: n/a | C38: =SUM(C36:C37) -> 4749 | D38: =SUM(D36:D37) -> 3742 | E38: =SUM(E36:E37) -> 2844 | F38: =SUM(F36:F37) -> 2427 | G38: =SUM(G36:G37) -> 1859
A40: SEMI-ANNUAL RATES
A41: Main Insured Premium | B41: n/a | C41: =VLOOKUP($B$19,Tablas!$A$482:$H$505,4,TRUE) -> 2383.74 | D41: =VLOOKUP($B$19,Tablas!$A$482:$H$505,5,TRUE) -> 1870.17 | E41: =VLOOKUP($B$19,Tablas!$A$482:$H$505,6,TRUE) -> 1412.19 | F41: =VLOOKUP($B$19,Tablas!$A$482:$H$505,7,TRUE) -> 1199.52 | G41: =VLOOKUP($B$19,Tablas!$A$482:$H$505,8,TRUE) -> 909.84
A42: Spouse's Premium | B42: n/a | C42: =IF($B$17=1,0,(VLOOKUP($G$19,Tablas!$A$482:$H$505,4,TRUE))) -> 0 | D42: =IF($B$17=1,0,(VLOOKUP($G$19,Tablas!$A$482:$H$505,5,TRUE))) -> 0 | E42: =IF($B$17=1,0,(VLOOKUP($G$19,Tablas!$A$482:$H$505,6,TRUE))) -> 0 | F42: =IF($B$17=1,0,(VLOOKUP($G$19,Tablas!$A$482:$H$505,7,TRUE))) -> 0 | G42: =IF($B$17=1,0,(VLOOKUP($G$19,Tablas!$A$482:$H$505,8,TRUE))) -> 0
A43: Primas Hijos | B43: n/a | C43: =IF($G$17=0,0,(VLOOKUP($G$17,Tablas!$A$506:$H$508,4,TRUE))) -> 0 | D43: =IF($G$17=0,0,(VLOOKUP($G$17,Tablas!$A$506:$H$508,5,TRUE))) -> 0 | E43: =IF($G$17=0,0,(VLOOKUP($G$17,Tablas!$A$506:$H$508,6,TRUE))) -> 0 | F43: =IF($G$17=0,0,(VLOOKUP($G$17,Tablas!$A$506:$H$508,7,TRUE))) -> 0 | G43: =IF($G$17=0,0,(VLOOKUP($G$17,Tablas!$A$506:$H$508,8,TRUE))) -> 0
A44: Rider: Maternity Complications | B44: n/a | C44: =+IF($B$1=FALSE,0,Tablas!D$509) -> 0 | D44: =+IF($B$1=FALSE,0,Tablas!E$509) -> 0 | E44: =+IF($B$1=FALSE,0,Tablas!F$509) -> 0 | F44: =+IF($B$1=FALSE,0,Tablas!G$509) -> 0 | G44: =+IF($B$1=FALSE,0,Tablas!H$509) -> 0
A45: Rider: Organ Trasplant | B45: n/a | C45: =IF($C$1=FALSE,0,Tablas!D$510) -> 0 | D45: =IF($C$1=FALSE,0,Tablas!E$510) -> 0 | E45: =IF($C$1=FALSE,0,Tablas!F$510) -> 0 | F45: =IF($C$1=FALSE,0,Tablas!G$510) -> 0 | G45: =IF($C$1=FALSE,0,Tablas!H$510) -> 0
A46: TOTAL NET PREMIUM | B46: n/a | C46: =SUM(C41:C45) -> 2383.74 | D46: 1870.17 | E46: 1412.19 | F46: 1199.52 | G46: 909.84
A47: Annual administrative Fee | B47: n/a | C47: 75 | D47: 75 | E47: 75 | F47: 75 | G47: 75
A48: TOTAL (1st Rate) | B48: n/a | C48: =SUM(C46:C47) -> 2458.74 | D48: =SUM(D46:D47) -> 1945.17 | E48: =SUM(E46:E47) -> 1487.19 | F48: =SUM(F46:F47) -> 1274.52 | G48: =SUM(G46:G47) -> 984.84
A49: TOTAL (2nd Rate) | B49: n/a | C49: =C46 -> 2383.74 | D49: =D46 -> 1870.17 | E49: 1412.19 | F49: 1199.52 | G49: 909.84
A50: GRAND TOTAL | B50: n/a | C50: =SUM(C48:C49) -> 4842.48 | D50: =SUM(D48:D49) -> 3815.34 | E50: 2899.38 | F50: 2474.04 | G50: 1894.68
A52: QUARTERLY RATES
A53: Main Insured Premium | B53: n/a | C53: =C31*Tablas!$G$3 -> 1238.61 | D53: =D31*Tablas!$G$3 -> 971.755 | E53: =E31*Tablas!$G$3 -> 733.785 | F53: =F31*Tablas!$G$3 -> 623.28 | G53: =G31*Tablas!$G$3 -> 472.76
A54: Spouse's Premium | B54: n/a | C54: =C32*Tablas!$G$3 -> 0 | D54: =D32*Tablas!$G$3 -> 0 | E54: =E32*Tablas!$G$3 -> 0 | F54: =F32*Tablas!$G$3 -> 0 | G54: =G32*Tablas!$G$3 -> 0
A55: Primas Hijos | B55: n/a | C55: =C33*Tablas!$G$3 -> 0 | D55: =D33*Tablas!$G$3 -> 0 | E55: =E33*Tablas!$G$3 -> 0 | F55: =F33*Tablas!$G$3 -> 0 | G55: =G33*Tablas!$G$3 -> 0
A56: Rider: Maternity Complications | B56: n/a | C56: =C34*Tablas!$G$3 -> 0 | D56: =D34*Tablas!$G$3 -> 0 | E56: =E34*Tablas!$G$3 -> 0 | F56: =F34*Tablas!$G$3 -> 0 | G56: =G34*Tablas!$G$3 -> 0
A57: Rider: Organ Trasplant | B57: n/a | C57: =C35*Tablas!$G$3 -> 0 | D57: =D35*Tablas!$G$3 -> 0 | E57: =E35*Tablas!$G$3 -> 0 | F57: =F35*Tablas!$G$3 -> 0 | G57: =G35*Tablas!$G$3 -> 0
A58: TOTAL NET PREMIUM | B58: n/a | C58: =SUM(C53:C57) -> 1238.61 | D58: 971.755 | E58: 733.785 | F58: 623.28 | G58: 472.76
A59: Annual administrative Fee | B59: n/a | C59: 75 | D59: 75 | E59: 75 | F59: 75 | G59: 75
A60: TOTAL (1st Rate) | B60: n/a | C60: =SUM(C58:C59) -> 1313.61 | D60: =SUM(D58:D59) -> 1046.755 | E60: =SUM(E58:E59) -> 808.785 | F60: =SUM(F58:F59) -> 698.28 | G60: =SUM(G58:G59) -> 547.76
A61: TOTAL (Rate 2 to 4) | B61: n/a | C61: =C58 -> 1238.61 | D61: =D58 -> 971.755 | E61: 733.785 | F61: 623.28 | G61: 472.76
A62: GRAND TOTAL | B62: n/a | C62: =C60+C61*3 -> 5029.44 | D62: =D60+D61*3 -> 3962.02 | E62: 3010.14 | F62: 2568.12 | G62: =G60+G61*3 -> 1966.04
A64: MONTHLY RATES
A65: Main Insured Premium | B65: n/a | C65: =C31*Tablas!$G$4 -> 436.22442 | D65: =D31*Tablas!$G$4 -> 342.24111 | E65: =E31*Tablas!$G$4 -> 258.43077 | F65: =F31*Tablas!$G$4 -> 219.51216 | G65: =G31*Tablas!$G$4 -> 166.50072
A66: Spouse's Premium | B66: n/a | C66: =C32*Tablas!$G$4 -> 0 | D66: =D32*Tablas!$G$4 -> 0 | E66: =E32*Tablas!$G$4 -> 0 | F66: =F32*Tablas!$G$4 -> 0 | G66: =G32*Tablas!$G$4 -> 0
A67: Primas Hijos | B67: n/a | C67: =C33*Tablas!$G$4 -> 0 | D67: =D33*Tablas!$G$4 -> 0 | E67: =E33*Tablas!$G$4 -> 0 | F67: =F33*Tablas!$G$4 -> 0 | G67: =G33*Tablas!$G$4 -> 0
A68: Rider: Maternity Complications | B68: n/a | C68: =C34*Tablas!$G$4 -> 0 | D68: =D34*Tablas!$G$4 -> 0 | E68: =E34*Tablas!$G$4 -> 0 | F68: =F34*Tablas!$G$4 -> 0 | G68: =G34*Tablas!$G$4 -> 0
A69: Rider: Organ Trasplant | B69: n/a | C69: =C35*Tablas!$G$4 -> 0 | D69: =D35*Tablas!$G$4 -> 0 | E69: =E35*Tablas!$G$4 -> 0 | F69: =F35*Tablas!$G$4 -> 0 | G69: =G35*Tablas!$G$4 -> 0
A70: TOTAL NET PREMIUM | B70: n/a | C70: =SUM(C65:C69) -> 436.22442 | D70: 342.24111 | E70: 258.43077 | F70: 219.51216 | G70: 166.50072
A71: Annual administrative Fee | B71: n/a | C71: 75 | D71: 75 | E71: 75 | F71: 75 | G71: 75
A72: TOTAL (1st Rate) | B72: n/a | C72: =SUM(C70:C71) -> 511.22442 | D72: =SUM(D70:D71) -> 417.24111 | E72: =SUM(E70:E71) -> 333.43077 | F72: =SUM(F70:F71) -> 294.51216 | G72: =SUM(G70:G71) -> 241.50072
A73: TOTAL (Rate 2 to 12) | B73: n/a | C73: =C70 -> 436.22442 | D73: =D70 -> 342.24111 | E73: 258.43077 | F73: 219.51216 | G73: 166.50072
A74: GRAND TOTAL | B74: n/a | C74: =C72+C73*11 -> 5309.69304 | D74: =D72+D73*11 -> 4181.89332 | E74: 3176.16924 | F74: 2709.14592 | G74: =G72+G73*11 -> 2073.00864
A76: This quote is for informational purposes only and at no time expresses a legal commitment to provide you with insurance coverage. The issuance of a Bupa insurance policy is subject to all risk assessments by Bupa and receipt of all required premium payments.

Sheet Bupa Essential Care
B1: FALSE | C1: FALSE | I1: RESUMEN DE BENEFICIOS | W1: RESUMEN DE BENEFICIOS
A5: Quote for International Health Insurance Bupa Essential Care Rates in US$ |Effective: January 1, 2026 | G5: REGION
G7: ='INSURED INFORMATION'!W15 -> Trinidad & Tobago
A13: Main Insured Name | B13: =+'INSURED INFORMATION'!$C$36 -> John Doe
A15: Broker/Agent | B15: =+'INSURED INFORMATION'!$C$47 -> Agency
A17: Number of adults in the policy | B17: =+'INSURED INFORMATION'!$C$38 -> 1 | D17: Dependents (under 24 years) | G17: =+'INSURED INFORMATION'!$C$40 -> 0
D18: =IF('INSURED INFORMATION'!$P$2=TRUE, "Cotización para dependiente de 24 años","") -> 
A19: Age of the main insured | B19: =+'INSURED INFORMATION'!$C$42 -> 18 | D19: Spouse's age | G19: =+'INSURED INFORMATION'!$C$44 -> 46
D21: Quote date | F21: =NOW() -> 2025-11-19T09:47:12.310
A25: DEDUCTIBLES | B25: PLAN 1 | C25: PLAN 2 | D25: PLAN 3 | E25: PLAN 4 | F25: PLAN 5 | G25: PLAN 6
A26: Inside the country of residence | B26: US$0 | C26: 1000 | D26: 2000 | E26: 5000 | F26: 10000 | G26: 20000
A27: Outside the country of residence | B27: US$1,000 | C27: 2000 | D27: 3000 | E27: 5000 | F27: 10000 | G27: 20000
A30: ANNUAL RATES
A31: Main Insured Premium | B31: n/a | C31: =VLOOKUP($B$19,Tablas!$A$519:$H$542,4,TRUE) -> 3927 | D31: =VLOOKUP($B$19,Tablas!$A$519:$H$542,5,TRUE) -> 3083 | E31: =VLOOKUP($B$19,Tablas!$A$519:$H$542,6,TRUE) -> 2323 | F31: =VLOOKUP($B$19,Tablas!$A$519:$H$542,7,TRUE) -> 1969 | G31: =VLOOKUP($B$19,Tablas!$A$519:$H$542,8,TRUE) -> 1499
A32: Spouse's Premium | B32: n/a | C32: =IF($B$17=1,0,(VLOOKUP($G$19,Tablas!$A$519:$H$542,4,TRUE))) -> 0 | D32: =IF($B$17=1,0,(VLOOKUP($G$19,Tablas!$A$519:$H$542,5,TRUE))) -> 0 | E32: =IF($B$17=1,0,(VLOOKUP($G$19,Tablas!$A$519:$H$542,6,TRUE))) -> 0 | F32: =IF($B$17=1,0,(VLOOKUP($G$19,Tablas!$A$519:$H$542,7,TRUE))) -> 0 | G32: =IF($B$17=1,0,(VLOOKUP($G$19,Tablas!$A$519:$H$542,8,TRUE))) -> 0
A33: Primas Hijos | B33: n/a | C33: =IF($G$17=0,0,(VLOOKUP($G$17,Tablas!$A$543:$H$545,4,TRUE))) -> 0 | D33: =IF($G$17=0,0,(VLOOKUP($G$17,Tablas!$A$543:$H$545,5,TRUE))) -> 0 | E33: =IF($G$17=0,0,(VLOOKUP($G$17,Tablas!$A$543:$H$545,6,TRUE))) -> 0 | F33: =IF($G$17=0,0,(VLOOKUP($G$17,Tablas!$A$543:$H$545,7,TRUE))) -> 0 | G33: =IF($G$17=0,0,(VLOOKUP($G$17,Tablas!$A$543:$H$545,8,TRUE))) -> 0
A34: Rider: Maternity Complications | B34: n/a | C34: =+IF($B$1=FALSE,0,Tablas!D$546) -> 0 | D34: =+IF($B$1=FALSE,0,Tablas!E$546) -> 0 | E34: =+IF($B$1=FALSE,0,Tablas!F$546) -> 0 | F34: =+IF($B$1=FALSE,0,Tablas!G$546) -> 0 | G34: =+IF($B$1=FALSE,0,Tablas!H$546) -> 0
A35: Rider: Organ Trasplant | B35: n/a | C35: =IF($C$1=FALSE,0,Tablas!D$547) -> 0 | D35: =IF($C$1=FALSE,0,Tablas!E$547) -> 0 | E35: =IF($C$1=FALSE,0,Tablas!F$547) -> 0 | F35: =IF($C$1=FALSE,0,Tablas!G$547) -> 0 | G35: =IF($C$1=FALSE,0,Tablas!H$547) -> 0
A36: TOTAL NET PREMIUM | B36: n/a | C36: =SUM(C31:C35) -> 3927 | D36: 3083 | E36: 2323 | F36: 1969 | G36: 1499
A37: Costo Administrativo Annual | B37: n/a | C37: 75 | D37: 75 | E37: 75 | F37: 75 | G37: 75
A38: GRAND TOTAL | B38: n/a | C38: =SUM(C36:C37) -> 4002 | D38: 3158 | E38: 2398 | F38: 2044 | G38: 1574
A40: SEMI-ANNUAL RATES
A41: Main Insured Premium | B41: n/a | C41: =VLOOKUP($B$19,Tablas!$A$554:$H$577,4,TRUE) -> 2002.77 | D41: =VLOOKUP($B$19,Tablas!$A$554:$H$577,5,TRUE) -> 1572.33 | E41: =VLOOKUP($B$19,Tablas!$A$554:$H$577,6,TRUE) -> 1184.73 | F41: =VLOOKUP($B$19,Tablas!$A$554:$H$577,7,TRUE) -> 1004.19 | G41: =VLOOKUP($B$19,Tablas!$A$554:$H$577,8,TRUE) -> 764.49
A42: Spouse's Premium | B42: n/a | C42: =IF($B$17=1,0,(VLOOKUP($G$19,Tablas!$A$554:$H$577,4,TRUE))) -> 0 | D42: =IF($B$17=1,0,(VLOOKUP($G$19,Tablas!$A$554:$H$577,5,TRUE))) -> 0 | E42: =IF($B$17=1,0,(VLOOKUP($G$19,Tablas!$A$554:$H$577,6,TRUE))) -> 0 | F42: =IF($B$17=1,0,(VLOOKUP($G$19,Tablas!$A$554:$H$577,7,TRUE))) -> 0 | G42: =IF($B$17=1,0,(VLOOKUP($G$19,Tablas!$A$554:$H$577,8,TRUE))) -> 0
A43: Primas Hijos | B43: n/a | C43: =IF($G$17=0,0,(VLOOKUP($G$17,Tablas!$A$578:$H$580,4,TRUE))) -> 0 | D43: =IF($G$17=0,0,(VLOOKUP($G$17,Tablas!$A$578:$H$580,5,TRUE))) -> 0 | E43: =IF($G$17=0,0,(VLOOKUP($G$17,Tablas!$A$578:$H$580,6,TRUE))) -> 0 | F43: =IF($G$17=0,0,(VLOOKUP($G$17,Tablas!$A$578:$H$580,7,TRUE))) -> 0 | G43: =IF($G$17=0,0,(VLOOKUP($G$17,Tablas!$A$578:$H$580,8,TRUE))) -> 0
A44: Rider: Maternity Complications | B44: n/a | C44: =+IF($B$1=FALSE,0,Tablas!D$581) -> 0 | D44: =+IF($B$1=FALSE,0,Tablas!E$581) -> 0 | E44: =+IF($B$1=FALSE,0,Tablas!F$581) -> 0 | F44: =+IF($B$1=FALSE,0,Tablas!G$581) -> 0 | G44: =+IF($B$1=FALSE,0,Tablas!H$581) -> 0
A45: Rider: Organ Trasplant | B45: n/a | C45: =IF($C$1=FALSE,0,Tablas!D$582) -> 0 | D45: =IF($C$1=FALSE,0,Tablas!E$582) -> 0 | E45: =IF($C$1=FALSE,0,Tablas!F$582) -> 0 | F45: =IF($C$1=FALSE,0,Tablas!G$582) -> 0 | G45: =IF($C$1=FALSE,0,Tablas!H$582) -> 0
A46: TOTAL NET PREMIUM | B46: n/a | C46: =SUM(C41:C45) -> 2002.77 | D46: 1572.33 | E46: 1184.73 | F46: 1004.19 | G46: 764.49
A47: Annual administrative Fee | B47: n/a | C47: 75 | D47: 75 | E47: 75 | F47: 75 | G47: 75
A48: TOTAL (1st Rate) | B48: n/a | C48: =SUM(C46:C47) -> 2077.77 | D48: 1647.33 | E48: 1259.73 | F48: 1079.19 | G48: 839.49
A49: TOTAL (2nd Rate) | B49: n/a | C49: =C46 -> 2002.77 | D49: =D46 -> 1572.33 | E49: 1184.73 | F49: 1004.19 | G49: 764.49
A50: GRAND TOTAL | B50: n/a | C50: =SUM(C48:C49) -> 4080.54 | D50: =SUM(D48:D49) -> 3219.66 | E50: 2444.46 | F50: 2083.38 | G50: 1603.98
A52: QUARTERLY RATES
A53: Main Insured Premium | B53: n/a | C53: =C31*Tablas!$G$3 -> 1040.655 | D53: =D31*Tablas!$G$3 -> 816.995 | E53: =E31*Tablas!$G$3 -> 615.595 | F53: =F31*Tablas!$G$3 -> 521.785 | G53: =G31*Tablas!$G$3 -> 397.235
A54: Spouse's Premium | B54: n/a | C54: =C32*Tablas!$G$3 -> 0 | D54: =D32*Tablas!$G$3 -> 0 | E54: =E32*Tablas!$G$3 -> 0 | F54: =F32*Tablas!$G$3 -> 0 | G54: =G32*Tablas!$G$3 -> 0
A55: Primas Hijos | B55: n/a | C55: =C33*Tablas!$G$3 -> 0 | D55: =D33*Tablas!$G$3 -> 0 | E55: =E33*Tablas!$G$3 -> 0 | F55: =F33*Tablas!$G$3 -> 0 | G55: =G33*Tablas!$G$3 -> 0
A56: Rider: Maternity Complications | B56: n/a | C56: =C34*Tablas!$G$3 -> 0 | D56: =D34*Tablas!$G$3 -> 0 | E56: =E34*Tablas!$G$3 -> 0 | F56: =F34*Tablas!$G$3 -> 0 | G56: =G34*Tablas!$G$3 -> 0
A57: Rider: Organ Trasplant | B57: n/a | C57: =C35*Tablas!$G$3 -> 0 | D57: =D35*Tablas!$G$3 -> 0 | E57: =E35*Tablas!$G$3 -> 0 | F57: =F35*Tablas!$G$3 -> 0 | G57: =G35*Tablas!$G$3 -> 0
A58: TOTAL NET PREMIUM | B58: n/a | C58: =SUM(C53:C57) -> 1040.655 | D58: 816.995 | E58: 615.595 | F58: 521.785 | G58: 397.235
A59: Annual administrative Fee | B59: n/a | C59: 75 | D59: 75 | E59: 75 | F59: 75 | G59: 75
A60: TOTAL (1st Rate) | B60: n/a | C60: =SUM(C58:C59) -> 1115.655 | D60: 891.995 | E60: 690.595 | F60: 596.785 | G60: 472.235
A61: TOTAL (Rate 2 to 4) | B61: n/a | C61: =C58 -> 1040.655 | D61: =D58 -> 816.995 | E61: 615.595 | F61: 521.785 | G61: 397.235
A62: GRAND TOTAL | B62: n/a | C62: =C60+C61*3 -> 4237.62 | D62: =D60+D61*3 -> 3342.98 | E62: 2537.38 | F62: 2162.14 | G62: =G60+G61*3 -> 1663.94
A64: MONTHLY RATES
A65: Main Insured Premium | B65: n/a | C65: =C31*Tablas!$G$4 -> 366.50691 | D65: =D31*Tablas!$G$4 -> 287.73639 | E65: =E31*Tablas!$G$4 -> 216.80559 | F65: =F31*Tablas!$G$4 -> 183.76677 | G65: =G31*Tablas!$G$4 -> 139.90167
A66: Spouse's Premium | B66: n/a | C66: =C32*Tablas!$G$4 -> 0 | D66: =D32*Tablas!$G$4 -> 0 | E66: =E32*Tablas!$G$4 -> 0 | F66: =F32*Tablas!$G$4 -> 0 | G66: =G32*Tablas!$G$4 -> 0
A67: Primas Hijos | B67: n/a | C67: =C33*Tablas!$G$4 -> 0 | D67: =D33*Tablas!$G$4 -> 0 | E67: =E33*Tablas!$G$4 -> 0 | F67: =F33*Tablas!$G$4 -> 0 | G67: =G33*Tablas!$G$4 -> 0
A68: Rider: Maternity Complications | B68: n/a | C68: =C34*Tablas!$G$4 -> 0 | D68: =D34*Tablas!$G$4 -> 0 | E68: =E34*Tablas!$G$4 -> 0 | F68: =F34*Tablas!$G$4 -> 0 | G68: =G34*Tablas!$G$4 -> 0
A69: Rider: Organ Trasplant | B69: n/a | C69: =C35*Tablas!$G$4 -> 0 | D69: =D35*Tablas!$G$4 -> 0 | E69: =E35*Tablas!$G$4 -> 0 | F69: =F35*Tablas!$G$4 -> 0 | G69: =G35*Tablas!$G$4 -> 0
A70: TOTAL NET PREMIUM | B70: n/a | C70: =SUM(C65:C69) -> 366.50691 | D70: 287.73639 | E70: 216.80559 | F70: 183.76677 | G70: 139.90167
A71: Annual administrative Fee | B71: n/a | C71: 75 | D71: 75 | E71: 75 | F71: 75 | G71: 75
A72: TOTAL (1st Rate) | B72: n/a | C72: =SUM(C70:C71) -> 441.50691 | D72: 362.73639 | E72: 291.80559 | F72: 258.76677 | G72: 214.90167
A73: TOTAL (Rate 2 to 12) | B73: n/a | C73: =C70 -> 366.50691 | D73: =D70 -> 287.73639 | E73: 216.80559 | F73: 183.76677 | G73: 139.90167
A74: GRAND TOTAL | B74: n/a | C74: =C72+C73*11 -> 4473.08292 | D74: =D72+D73*11 -> 3527.83668 | E74: 2676.66708 | F74: 2280.20124 | G74: 1753.82004
A76: This quote is for informational purposes only and at no time expresses a legal commitment to provide you with insurance coverage. The issuance of a Bupa insurance policy is subject to all risk assessments by Bupa and receipt of all required premium payments.

Sheet Rate Summary
A5: Quote for International Health Insurance Bupa Care — Premium Summary (Annual) Rates in US$ |Effective: January 1, 2026 | H5: REGION
H7: ='INSURED INFORMATION'!W15 -> Trinidad & Tobago
A13: Main Insured Name | B13: =+'INSURED INFORMATION'!$C$36 -> John Doe
A15: Broker/Agent | B15: =+'INSURED INFORMATION'!$C$47 -> Agency
A17: Number of adults in the policy | B17: =+'INSURED INFORMATION'!$C$38 -> 1 | F17: Dependents (under 24 years) | H17: =+'INSURED INFORMATION'!$C$40 -> 0
F18: =IF('INSURED INFORMATION'!$P$2=TRUE, "Cotización para dependiente de 24 años","") -> 
A19: Age of the main insured | B19: =+'INSURED INFORMATION'!$C$42 -> 18 | F19: Spouse's age | H19: =+'INSURED INFORMATION'!$C$44 -> 46
A22: DEDUCTIBLES | D22: PLAN 2 | E22: PLAN 3 | F22: PLAN 4 | G22: PLAN 5 | H22: PLAN 6
A23: Inside the country of residence | D23: 1000 | E23: 2000 | F23: 5000 | G23: 10000 | H23: 20000
A24: Outside the country of residence | D24: 2000 | E24: 3000 | F24: 5000 | G24: 10000 | H24: 20000
C26: ANNUAL RATES
A27: Bupa Privilege Care | D27: =+'Bupa Privilege Care'!H37 -> 9641 | E27: =+'Bupa Privilege Care'!I37 -> 6654 | F27: =+'Bupa Privilege Care'!J37 -> 4689 | G27: =+'Bupa Privilege Care'!K37 -> 3288 | H27: =+'Bupa Privilege Care'!L37 -> 2521
A28: Bupa Advantage Care | D28: =+'Bupa Advantage Care'!C38 -> 6322 | E28: =+'Bupa Advantage Care'!D38 -> 4767 | F28: =+'Bupa Advantage Care'!E38 -> 3605 | G28: =+'Bupa Advantage Care'!F38 -> 2733 | H28: =+'Bupa Advantage Care'!G38 -> 2181
A29: Bupa Secure Care | D29: =+'Bupa Secure Care'!C38 -> 4749 | E29: =+'Bupa Secure Care'!D38 -> 3742 | F29: =+'Bupa Secure Care'!E38 -> 2844 | G29: =+'Bupa Secure Care'!F38 -> 2427 | H29: =+'Bupa Secure Care'!G38 -> 1859
A30: Bupa Essential Care | D30: =+'Bupa Essential Care'!C38 -> 4002 | E30: =+'Bupa Essential Care'!D38 -> 3158 | F30: =+'Bupa Essential Care'!E38 -> 2398 | G30: =+'Bupa Essential Care'!F38 -> 2044 | H30: =+'Bupa Essential Care'!G38 -> 1574
C31: SEMI-ANNUAL RATES
A32: BUPA CRITICAL CARE
A33: DEDUCTIBLES | C33: PLAN 1 | D33: PLAN 2 | E33: PLAN 3 | F33: PLAN 4 | G33: PLAN 5 | H33: PLAN 6
A34: Inside the country of residence | C34: 2000 | D34: 3500 | E34: 5000 | F34: 10000 | G34: 20000 | H34: 50000
A35: Outside the country of residence | C35: 2000 | D35: 3500 | E35: 5000 | F35: 10000 | G35: 20000 | H35: 50000
A36: Bupa Privilege Care | D36: ='Bupa Privilege Care'!H48 -> 9832.32 | E36: ='Bupa Privilege Care'!I48 -> 6785.58 | F36: ='Bupa Privilege Care'!J48 -> 4781.28 | G36: ='Bupa Privilege Care'!K48 -> 3352.26 | H36: ='Bupa Privilege Care'!L48 -> 2569.92
A37: Bupa Advantage Care | D37: ='Bupa Advantage Care'!C50 -> 6446.94 | E37: ='Bupa Advantage Care'!D50 -> 4860.84 | F37: ='Bupa Advantage Care'!E50 -> 3675.6 | G37: ='Bupa Advantage Care'!F50 -> 2786.16 | H37: ='Bupa Advantage Care'!G50 -> 2223.12
A38: Bupa Secure Care | D38: ='Bupa Secure Care'!C50 -> 4842.48 | E38: ='Bupa Secure Care'!D50 -> 3815.34 | F38: ='Bupa Secure Care'!E50 -> 2899.38 | G38: ='Bupa Secure Care'!F50 -> 2474.04 | H38: ='Bupa Secure Care'!G50 -> 1894.68
A39: Bupa Essential Care | D39: ='Bupa Essential Care'!C50 -> 4080.54 | E39: ='Bupa Essential Care'!D50 -> 3219.66 | F39: ='Bupa Essential Care'!E50 -> 2444.46 | G39: ='Bupa Essential Care'!F50 -> 2083.38 | H39: ='Bupa Essential Care'!G50 -> 1603.98
C40: QUARTERLY RATES
A41: Bupa Privilege Care | D41: ='Bupa Privilege Care'!H59 -> 10214.96 | E41: ='Bupa Privilege Care'!I59 -> 7048.74 | F41: ='Bupa Privilege Care'!J59 -> 4965.84 | G41: ='Bupa Privilege Care'!K59 -> 3480.78 | H41: ='Bupa Privilege Care'!L59 -> 2667.76
A42: Bupa Advantage Care | D42: ='Bupa Advantage Care'!C62 -> 6696.82 | E42: ='Bupa Advantage Care'!D62 -> 5048.52 | F42: ='Bupa Advantage Care'!E62 -> 3816.8 | G42: ='Bupa Advantage Care'!F62 -> 2892.48 | H42: ='Bupa Advantage Care'!G62 -> 2307.36
A43: Bupa Secure Care | D43: ='Bupa Secure Care'!C62 -> 5029.44 | E43: ='Bupa Secure Care'!D62 -> 3962.02 | F43: ='Bupa Secure Care'!E62 -> 3010.14 | G43: ='Bupa Secure Care'!F62 -> 2568.12 | H43: ='Bupa Secure Care'!G62 -> 1966.04
A44: Bupa Essential Care | D44: ='Bupa Essential Care'!C62 -> 4237.62 | E44: ='Bupa Essential Care'!D62 -> 3342.98 | F44: ='Bupa Essential Care'!E62 -> 2537.38 | G44: ='Bupa Essential Care'!F62 -> 2162.14 | H44: ='Bupa Essential Care'!G62 -> 1663.94
C45: MONTHLY RATES
A46: Bupa Privilege Care | D46: ='Bupa Privilege Care'!H70 -> 10788.53736 | E46: ='Bupa Privilege Care'!I70 -> 7443.21684 | F46: ='Bupa Privilege Care'!J70 -> 5242.49544 | G46: ='Bupa Privilege Care'!K70 -> 3673.43148 | H46: ='Bupa Privilege Care'!L70 -> 2814.42216
A47: Bupa Advantage Care | D47: ='Bupa Advantage Care'!C74 -> 7071.39012 | E47: ='Bupa Advantage Care'!D74 -> 5329.85232 | F47: ='Bupa Advantage Care'!E74 -> 4028.4588 | G47: ='Bupa Advantage Care'!F74 -> 3051.85368 | H47: ='Bupa Advantage Care'!G74 -> 2433.63576
A48: Bupa Secure Care | D48: ='Bupa Secure Care'!C74 -> 5309.69304 | E48: ='Bupa Secure Care'!D74 -> 4181.89332 | F48: ='Bupa Secure Care'!E74 -> 3176.16924 | G48: ='Bupa Secure Care'!F74 -> 2709.14592 | H48: ='Bupa Secure Care'!G74 -> 2073.00864
A49: Bupa Essential Care | D49: ='Bupa Essential Care'!C74 -> 4473.08292 | E49: ='Bupa Essential Care'!D74 -> 3527.83668 | F49: ='Bupa Essential Care'!E74 -> 2676.66708 | G49: ='Bupa Essential Care'!F74 -> 2280.20124 | H49: ='Bupa Essential Care'!G74 -> 1753.82004

Sheet Comparacion de Beneficios (hidden)
A1: 2023 BUPA CARE COMPARACION DE BENEFICIOS

Sheet Tablas (hidden)
L1: Critical | M1: Exclusive | N1: Privilege | O1: Advantage | P1: Secure | Q1: Essential
B2: REGIÓN | C2: ='INSURED INFORMATION'!W14 -> 8 | E2: FACTOR SEMESTRAL: | G2: =1.02/2 -> 0.51 | I2: TOTAL DISCOUNT | K2: Plan 1 | L2: ='INSURED INFORMATION'!P53 -> 1 | M2: ='INSURED INFORMATION'!Q53 -> 1 | N2: ='INSURED INFORMATION'!R53 -> 1 | O2: ='INSURED INFORMATION'!S53 -> 1 | P2: ='INSURED INFORMATION'!T53 -> 1 | Q2: ='INSURED INFORMATION'!U53 -> 1
E3: FACTOR TRIMESTRAL: | G3: =1.06/4 -> 0.265 | K3: Plan2 | L3: ='INSURED INFORMATION'!P54 -> 1 | M3: ='INSURED INFORMATION'!Q54 -> 1 | N3: ='INSURED INFORMATION'!R54 -> 1 | O3: ='INSURED INFORMATION'!S54 -> 1 | P3: ='INSURED INFORMATION'!T54 -> 1 | Q3: ='INSURED INFORMATION'!U54 -> 1
E4: FACTOR MENSUAL: | G4: 0.09333 | K4: Plan 3 | L4: ='INSURED INFORMATION'!P55 -> 1 | M4: ='INSURED INFORMATION'!Q55 -> 1 | N4: ='INSURED INFORMATION'!R55 -> 1 | O4: ='INSURED INFORMATION'!S55 -> 1 | P4: ='INSURED INFORMATION'!T55 -> 1 | Q4: ='INSURED INFORMATION'!U55 -> 1
K5: Plan 4 | L5: ='INSURED INFORMATION'!P56 -> 1 | M5: ='INSURED INFORMATION'!Q56 -> 1 | N5: ='INSURED INFORMATION'!R56 -> 1 | O5: ='INSURED INFORMATION'!S56 -> 1 | P5: ='INSURED INFORMATION'!T56 -> 1 | Q5: ='INSURED INFORMATION'!U56 -> 1
K6: Plan 5 | L6: ='INSURED INFORMATION'!P57 -> 1 | M6: ='INSURED INFORMATION'!Q57 -> 1 | N6: ='INSURED INFORMATION'!R57 -> 1 | O6: ='INSURED INFORMATION'!S57 -> 1 | P6: ='INSURED INFORMATION'!T57 -> 1 | Q6: ='INSURED INFORMATION'!U57 -> 1
K7: Plan 6 | L7: ='INSURED INFORMATION'!P58 -> 1 | M7: ='INSURED INFORMATION'!Q58 -> 1 | N7: ='INSURED INFORMATION'!R58 -> 1 | O7: ='INSURED INFORMATION'!S58 -> 1 | P7: ='INSURED INFORMATION'!T58 -> 1 | Q7: ='INSURED INFORMATION'!U58 -> 1
A11: EXCLUSIVE CARE | K11: ORIGINAL RATES | S11: DISCOUNTS APPLIED
A12: TARIFAS ANUALES
A13: EDAD
C14: DW1 | D14: DW2 | E14: DW3 | F14: DW4 | G14: DW5 | H14: DW6
A15: 18 | B15: 18-24 | C15: =S15 -> 0 | D15: =T15 -> 0 | E15: 0 | F15: 0 | G15: 0 | H15: 0 | S15: =K15*$M$2 -> 0 | T15: =L15*$M$3 -> 0 | U15: =M15*$M$4 -> 0 | V15: =N15*$M$5 -> 0 | W15: =O15*$M$6 -> 0 | X15: =P15*$M$7 -> 0
A16: 25 | B16: 25-29 | C16: =S16 -> 0 | D16: =T16 -> 0 | E16: =U16 -> 0 | F16: =V16 -> 0 | G16: =W16 -> 0 | H16: =X16 -> 0 | S16: =K16*$M$2 -> 0 | T16: =L16*$M$3 -> 0 | U16: =M16*$M$4 -> 0 | V16: =N16*$M$5 -> 0 | W16: =O16*$M$6 -> 0 | X16: =P16*$M$7 -> 0
A17: 30 | B17: 30-34 | C17: 0 | D17: 0 | E17: 0 | F17: 0 | G17: 0 | H17: 0 | S17: 0 | T17: 0 | U17: 0 | V17: 0 | W17: 0 | X17: 0
A18: 35 | B18: 35-39 | C18: 0 | D18: 0 | E18: 0 | F18: 0 | G18: 0 | H18: 0 | S18: 0 | T18: 0 | U18: 0 | V18: 0 | W18: 0 | X18: 0
A19: 40 | B19: 40-44 | C19: 0 | D19: 0 | E19: 0 | F19: 0 | G19: 0 | H19: 0 | S19: 0 | T19: 0 | U19: 0 | V19: 0 | W19: 0 | X19: 0
A20: 45 | B20: 45-49 | C20: 0 | D20: 0 | E20: 0 | F20: 0 | G20: 0 | H20: 0 | S20: 0 | T20: 0 | U20: 0 | V20: 0 | W20: 0 | X20: 0
A21: 50 | B21: 50-54 | C21: 0 | D21: 0 | E21: 0 | F21: 0 | G21: 0 | H21: 0 | S21: 0 | T21: 0 | U21: 0 | V21: 0 | W21: 0 | X21: 0
A22: 55 | B22: 55-59 | C22: 0 | D22: 0 | E22: 0 | F22: 0 | G22: 0 | H22: 0 | S22: 0 | T22: 0 | U22: 0 | V22: 0 | W22: 0 | X22: 0
A23: 60 | B23: 60 | C23: 0 | D23: 0 | E23: 0 | F23: 0 | G23: 0 | H23: 0 | S23: 0 | T23: 0 | U23: 0 | V23: 0 | W23: 0 | X23: 0
A24: 61 | B24: 61 | C24: 0 | D24: 0 | E24: 0 | F24: 0 | G24: 0 | H24: 0 | S24: 0 | T24: 0 | U24: 0 | V24: 0 | W24: 0 | X24: 0
A25: 62 | B25: 62 | C25: 0 | D25: 0 | E25: 0 | F25: 0 | G25: 0 | H25: 0 | S25: 0 | T25: 0 | U25: 0 | V25: 0 | W25: 0 | X25: 0
A26: 63 | B26: 63 | C26: 0 | D26: 0 | E26: 0 | F26: 0 | G26: 0 | H26: 0 | S26: 0 | T26: 0 | U26: 0 | V26: 0 | W26: 0 | X26: 0
A27: 64 | B27: 64 | C27: 0 | D27: 0 | E27: 0 | F27: 0 | G27: 0 | H27: 0 | S27: 0 | T27: 0 | U27: 0 | V27: 0 | W27: 0 | X27: 0
A28: 65 | B28: 65 | C28: 0 | D28: 0 | E28: 0 | F28: 0 | G28: 0 | H28: 0 | S28: 0 | T28: 0 | U28: 0 | V28: 0 | W28: 0 | X28: 0
A29: 66 | B29: 66 | C29: 0 | D29: 0 | E29: 0 | F29: 0 | G29: 0 | H29: 0 | S29: 0 | T29: 0 | U29: 0 | V29: 0 | W29: 0 | X29: 0
A30: 67 | B30: 67 | C30: 0 | D30: 0 | E30: 0 | F30: 0 | G30: 0 | H30: 0 | S30: 0 | T30: 0 | U30: 0 | V30: 0 | W30: 0 | X30: 0
A31: 68 | B31: 68 | C31: 0 | D31: 0 | E31: 0 | F31: 0 | G31: 0 | H31: 0 | S31: 0 | T31: 0 | U31: 0 | V31: 0 | W31: 0 | X31: 0
A32: 69 | B32: 69 | C32: 0 | D32: 0 | E32: 0 | F32: 0 | G32: 0 | H32: 0 | S32: 0 | T32: 0 | U32: 0 | V32: 0 | W32: 0 | X32: 0
A33: 70 | B33: 70 | C33: 0 | D33: 0 | E33: 0 | F33: 0 | G33: 0 | H33: 0 | S33: 0 | T33: 0 | U33: 0 | V33: 0 | W33: 0 | X33: 0
A34: 71 | B34: 71 | C34: 0 | D34: 0 | E34: 0 | F34: 0 | G34: 0 | H34: 0 | S34: 0 | T34: 0 | U34: 0 | V34: 0 | W34: 0 | X34: 0
A35: 72 | B35: 72 | C35: 0 | D35: 0 | E35: 0 | F35: 0 | G35: 0 | H35: 0 | S35: 0 | T35: 0 | U35: 0 | V35: 0 | W35: 0 | X35: 0
A36: 73 | B36: 73 | C36: 0 | D36: 0 | E36: 0 | F36: 0 | G36: 0 | H36: 0 | S36: 0 | T36: 0 | U36: 0 | V36: 0 | W36: 0 | X36: 0
A37: 74 | B37: 74 | C37: 0 | D37: 0 | E37: 0 | F37: 0 | G37: 0 | H37: 0 | S37: 0 | T37: 0 | U37: 0 | V37: 0 | W37: 0 | X37: 0
A38: 75 | B38: 75+ | C38: 0 | D38: 0 | E38: 0 | F38: 0 | G38: 0 | H38: 0 | S38: 0 | T38: 0 | U38: 0 | V38: 0 | W38: 0 | X38: 0
A39: 1 | B39: 1 Child | C39: 0 | D39: 0 | E39: 0 | F39: 0 | G39: 0 | H39: 0 | S39: =K39 -> 0 | T39: 0 | U39: 0 | V39: 0 | W39: 0 | X39: 0
A40: 2 | B40: 2 Children | C40: 0 | D40: 0 | E40: 0 | F40: 0 | G40: 0 | H40: 0 | S40: =K40 -> 0 | T40: =L40 -> 0 | U40: =M40 -> 0 | V40: =N40 -> 0 | W40: =O40 -> 0 | X40: =P40 -> 0
A41: 3 | B41: 3+ Children | C41: 0 | D41: 0 | E41: 0 | F41: 0 | G41: 0 | H41: 0 | S41: 0 | T41: 0 | U41: 0 | V41: 0 | W41: 0 | X41: 0
A42: 1 | B42: Rider Comp. Maternidad | D42: 0 | E42: 0 | F42: 225 | G42: 225 | H42: 225
A43: 1 | B43: Transplante de organos | D43: 0 | E43: 0 | F43: 0 | G43: 0 | H43: 0
A47: TARIFAS SEMESTRALES
A48: EDAD
C49: DW1 | D49: DW2 | E49: DW3 | F49: DW4 | G49: DW5 | H49: DW6
A50: 18 | B50: 18-24 | C50: =$G$2*C15 -> 0 | D50: =$G$2*D15 -> 0 | E50: 0 | F50: 0 | G50: 0 | H50: 0
A51: 25 | B51: 25-29 | C51: =$G$2*C16 -> 0 | D51: 0 | E51: 0 | F51: 0 | G51: 0 | H51: 0
A52: 30 | B52: 30-34 | C52: =$G$2*C17 -> 0 | D52: 0 | E52: 0 | F52: 0 | G52: 0 | H52: 0
A53: 35 | B53: 35-39 | C53: =$G$2*C18 -> 0 | D53: 0 | E53: 0 | F53: 0 | G53: 0 | H53: 0
A54: 40 | B54: 40-44 | C54: =$G$2*C19 -> 0 | D54: 0 | E54: 0 | F54: 0 | G54: 0 | H54: 0
A55: 45 | B55: 45-49 | C55: =$G$2*C20 -> 0 | D55: 0 | E55: 0 | F55: 0 | G55: 0 | H55: 0
A56: 50 | B56: 50-54 | C56: =$G$2*C21 -> 0 | D56: 0 | E56: 0 | F56: 0 | G56: 0 | H56: 0
A57: 55 | B57: 55-59 | C57: =$G$2*C22 -> 0 | D57: 0 | E57: 0 | F57: 0 | G57: 0 | H57: 0
A58: 60 | B58: 60 | C58: =$G$2*C23 -> 0 | D58: 0 | E58: 0 | F58: 0 | G58: 0 | H58: 0
A59: 61 | B59: 61 | C59: =$G$2*C24 -> 0 | D59: 0 | E59: 0 | F59: 0 | G59: 0 | H59: 0
A60: 62 | B60: 62 | C60: =$G$2*C25 -> 0 | D60: =$G$2*D25 -> 0 | E60: 0 | F60: 0 | G60: 0 | H60: 0
A61: 63 | B61: 63 | C61: =$G$2*C26 -> 0 | D61: 0 | E61: 0 | F61: 0 | G61: 0 | H61: 0
A62: 64 | B62: 64 | C62: =$G$2*C27 -> 0 | D62: 0 | E62: 0 | F62: 0 | G62: 0 | H62: 0
A63: 65 | B63: 65 | C63: =$G$2*C28 -> 0 | D63: 0 | E63: 0 | F63: 0 | G63: 0 | H63: 0
A64: 66 | B64: 66 | C64: =$G$2*C29 -> 0 | D64: 0 | E64: 0 | F64: 0 | G64: 0 | H64: 0
A65: 67 | B65: 67 | C65: =$G$2*C30 -> 0 | D65: 0 | E65: 0 | F65: 0 | G65: 0 | H65: 0
A66: 68 | B66: 68 | C66: =$G$2*C31 -> 0 | D66: 0 | E66: 0 | F66: 0 | G66: 0 | H66: 0
A67: 69 | B67: 69 | C67: =$G$2*C32 -> 0 | D67: 0 | E67: 0 | F67: 0 | G67: 0 | H67: 0
A68: 70 | B68: 70 | C68: =$G$2*C33 -> 0 | D68: 0 | E68: 0 | F68: 0 | G68: 0 | H68: 0
A69: 71 | B69: 71 | C69: =$G$2*C34 -> 0 | D69: 0 | E69: 0 | F69: 0 | G69: 0 | H69: 0
A70: 72 | B70: 72 | C70: =$G$2*C35 -> 0 | D70: =$G$2*D35 -> 0 | E70: 0 | F70: 0 | G70: 0 | H70: 0
A71: 73 | B71: 73 | C71: =$G$2*C36 -> 0 | D71: 0 | E71: 0 | F71: 0 | G71: 0 | H71: 0
A72: 74 | B72: 74 | C72: =$G$2*C37 -> 0 | D72: 0 | E72: 0 | F72: 0 | G72: 0 | H72: 0
A73: 75 | B73: 75+ | C73: =$G$2*C38 -> 0 | D73: 0 | E73: 0 | F73: 0 | G73: 0 | H73: 0
A74: 1 | B74: 1 Child | C74: =$G$2*C39 -> 0 | D74: 0 | E74: 0 | F74: 0 | G74: 0 | H74: 0
A75: 2 | B75: 2 Children | C75: =$G$2*C40 -> 0 | D75: 0 | E75: 0 | F75: 0 | G75: 0 | H75: 0
A76: 3 | B76: 3+ Children | C76: =$G$2*C41 -> 0 | D76: 0 | E76: 0 | F76: 0 | G76: 0 | H76: 0
A77: 1 | B77: Rider Comp. Maternidad | C77: =$G$2*C42 -> 0 | D77: =+D42*$G$2 -> 0 | E77: 0 | F77: 114.75 | G77: 114.75 | H77: 114.75
A78: 1 | B78: Transplante de organos | C78: =$G$2*C43 -> 0 | D78: 0 | E78: 0 | F78: 0 | G78: 0 | H78: 0
A84: DIAMOND (LATINAMERICA ONLY)
A85: TARIFAS ANUALES
A86: EDAD
C87: DL1 | D87: DL2 | E87: DL3 | F87: DL4 | G87: DL5 | H87: DL6
A88: 18 | B88: - 24
A89: 25 | B89: - 29
A90: 30 | B90: - 34
A91: 35 | B91: - 39
A92: 40 | B92: - 44
A93: 45 | B93: - 49
A94: 50 | B94: - 54
A95: 55 | B95: - 59
A96: 60
A97: 61
A98: 62
A99: 63
A100: 64
A101: 65
A102: 66
A103: 67
A104: 68
A105: 69
A106: 70
A107: 71
A108: 72
A109: 73
A110: 74
A111: 75 | B111: o más
A112: 1 | B112: Hijo
A113: 2 | B113: Hijos
A114: 3 | B114: Hijos o más
A115: 1 | B115: Rider Comp. Maternidad
A116: 1 | B116: Transplante de organos | C116: 0 | D116: 0 | E116: 0 | F116: 0 | G116: 0 | H116: 0
A118: TARIFAS SEMESTRALES
A119: EDAD
C120: DL1 | D120: DL2 | E120: DL3 | F120: DL4 | G120: DL5 | H120: DL6
A121: 18 | B121: - 24 | C121: =+C88*$G$2 -> 0 | D121: 0 | E121: 0 | F121: 0 | G121: 0 | H121: 0
A122: 25 | B122: - 29 | C122: 0 | D122: 0 | E122: 0 | F122: 0 | G122: 0 | H122: 0
A123: 30 | B123: - 34 | C123: 0 | D123: 0 | E123: 0 | F123: 0 | G123: 0 | H123: 0
A124: 35 | B124: - 39 | C124: 0 | D124: 0 | E124: 0 | F124: 0 | G124: 0 | H124: 0
A125: 40 | B125: - 44 | C125: 0 | D125: 0 | E125: 0 | F125: 0 | G125: 0 | H125: 0
A126: 45 | B126: - 49 | C126: 0 | D126: 0 | E126: 0 | F126: 0 | G126: 0 | H126: 0
A127: 50 | B127: - 54 | C127: 0 | D127: 0 | E127: 0 | F127: 0 | G127: 0 | H127: 0
A128: 55 | B128: - 59 | C128: 0 | D128: 0 | E128: 0 | F128: 0 | G128: 0 | H128: 0
A129: 60 | C129: 0 | D129: 0 | E129: 0 | F129: 0 | G129: 0 | H129: 0
A130: 61 | C130: 0 | D130: 0 | E130: 0 | F130: 0 | G130: 0 | H130: 0
A131: 62 | C131: =+C98*$G$2 -> 0 | D131: 0 | E131: 0 | F131: 0 | G131: 0 | H131: 0
A132: 63 | C132: 0 | D132: 0 | E132: 0 | F132: 0 | G132: 0 | H132: 0
A133: 64 | C133: 0 | D133: 0 | E133: 0 | F133: 0 | G133: 0 | H133: 0
A134: 65 | C134: 0 | D134: 0 | E134: 0 | F134: 0 | G134: 0 | H134: 0
A135: 66 | C135: 0 | D135: 0 | E135: 0 | F135: 0 | G135: 0 | H135: 0
A136: 67 | C136: 0 | D136: 0 | E136: 0 | F136: 0 | G136: 0 | H136: 0
A137: 68 | C137: 0 | D137: 0 | E137: 0 | F137: 0 | G137: 0 | H137: 0
A138: 69 | C138: 0 | D138: 0 | E138: 0 | F138: 0 | G138: 0 | H138: 0
A139: 70 | C139: 0 | D139: 0 | E139: 0 | F139: 0 | G139: 0 | H139: 0
A140: 71 | C140: 0 | D140: 0 | E140: 0 | F140: 0 | G140: 0 | H140: 0
A141: 72 | C141: =+C108*$G$2 -> 0 | D141: 0 | E141: 0 | F141: 0 | G141: 0 | H141: 0
A142: 73 | C142: 0 | D142: 0 | E142: 0 | F142: 0 | G142: 0 | H142: 0
A143: 74 | C143: 0 | D143: 0 | E143: 0 | F143: 0 | G143: 0 | H143: 0
A144: 75 | B144: o más | C144: 0 | D144: 0 | E144: 0 | F144: 0 | G144: 0 | H144: 0
A145: 1 | B145: Hijo | C145: 0 | D145: 0 | E145: 0 | F145: 0 | G145: 0 | H145: 0
A146: 2 | B146: Hijos | C146: 0 | D146: 0 | E146: 0 | F146: 0 | G146: 0 | H146: 0
A147: 3 | B147: Hijos o más | C147: 0 | D147: 0 | E147: 0 | F147: 0 | G147: 0 | H147: 0
A148: 1 | B148: Rider Comp. Maternidad | C148: 0 | D148: 0 | E148: 0 | F148: 0 | G148: 0 | H148: 0
A149: 1 | B149: Transplante de organos | C149: 0 | D149: 0 | E149: 0 | F149: 0 | G149: 0 | H149: 0
A154: BUPA PRIVILEGE CARE
A155: TARIFAS ANUALES
A156: EDAD
C157: CW1 | D157: CW2 | E157: CW3 | F157: CW4 | G157: CW5 | H157: CW6
A158: 18 | B158: 18-24 | D158: =U158 -> 9566 | E158: =V158 -> 6579 | F158: 4614 | G158: 3213 | H158: 2446 | L158: 9566 | M158: 6579 | N158: 4614 | O158: 3213 | P158: 2446 | U158: =(L158-50)*$N$2+50 -> 9566 | V158: =(M158-50)*$N$2+50 -> 6579 | W158: 4614 | X158: 3213 | Y158: 2446
A159: 25 | B159: 25-29 | D159: =U159 -> 10036 | E159: 7277 | F159: 5111 | G159: 3557 | H159: 2710 | L159: 10036 | M159: 7277 | N159: 5111 | O159: 3557 | P159: 2710 | U159: =(L159-50)*$N$2+50 -> 10036 | V159: =(M159-50)*$N$2+50 -> 7277 | W159: =(N159-50)*$N$2+50 -> 5111 | X159: =(O159-50)*$N$2+50 -> 3557 | Y159: =(P159-50)*$N$2+50 -> 2710
A160: 30 | B160: 30-34 | D160: 10485 | E160: 7783 | F160: 5732 | G160: 4300 | H160: 3291 | L160: 10485 | M160: 7783 | N160: 5732 | O160: 4300 | P160: 3291 | U160: 10485 | V160: 7783 | W160: 5732 | X160: 4300 | Y160: 3291
A161: 35 | B161: 35-39 | D161: 11735 | E161: 8711 | F161: 6426 | G161: 4823 | H161: 3680 | L161: 11735 | M161: 8711 | N161: 6426 | O161: 4823 | P161: 3680 | U161: 11735 | V161: 8711 | W161: 6426 | X161: 4823 | Y161: 3680
A162: 40 | B162: 40-44 | D162: 13587 | E162: 9552 | F162: 7144 | G162: 5315 | H162: 4063 | L162: 13587 | M162: 9552 | N162: 7144 | O162: 5315 | P162: 4063 | U162: 13587 | V162: 9552 | W162: 7144 | X162: 5315 | Y162: 4063
A163: 45 | B163: 45-49 | D163: 15180 | E163: 10678 | F163: 7980 | G163: 5944 | H163: 4542 | L163: 15180 | M163: 10678 | N163: 7980 | O163: 5944 | P163: 4542 | U163: 15180 | V163: 10678 | W163: 7980 | X163: 5944 | Y163: 4542
A164: 50 | B164: 50-54 | D164: 19843 | E164: 14084 | F164: 10479 | G164: 8474 | H164: 6478 | L164: 19843 | M164: 14084 | N164: 10479 | O164: 8474 | P164: 6478 | U164: 19843 | V164: 14084 | W164: 10479 | X164: 8474 | Y164: 6478
A165: 55 | B165: 55-59 | D165: 21106 | E165: 14979 | F165: 11150 | G165: 9019 | H165: 6895 | L165: 21106 | M165: 14979 | N165: 11150 | O165: 9019 | P165: 6895 | U165: 21106 | V165: 14979 | W165: 11150 | X165: 9019 | Y165: 6895
A166: 60 | B166: 60 | D166: 22988 | E166: 16264 | F166: 12692 | G166: 10725 | H166: 8620 | L166: 22988 | M166: 16264 | N166: 12692 | O166: 10725 | P166: 8620 | U166: 22988 | V166: 16264 | W166: 12692 | X166: 10725 | Y166: 8620
A167: 61 | B167: 61 | D167: 24694 | E167: 17472 | F167: 13630 | G167: 11529 | H167: 9257 | L167: 24694 | M167: 17472 | N167: 13630 | O167: 11529 | P167: 9257 | U167: 24694 | V167: 17472 | W167: 13630 | X167: 11529 | Y167: 9257
A168: 62 | B168: 62 | D168: 27030 | E168: 19138 | F168: 14930 | G168: 12622 | H168: 10139 | L168: 27030 | M168: 19138 | N168: 14930 | O168: 12622 | P168: 10139 | U168: 27030 | V168: 19138 | W168: 14930 | X168: 12622 | Y168: 10139
A169: 63 | B169: 63 | D169: 28742 | E169: 20343 | F169: 15874 | G169: 13423 | H169: 10776 | L169: 28742 | M169: 20343 | N169: 15874 | O169: 13423 | P169: 10776 | U169: 28742 | V169: 20343 | W169: 15874 | X169: 13423 | Y169: 10776
A170: 64 | B170: 64 | D170: 31087 | E170: 22012 | F170: 17177 | G170: 14520 | H170: 11663 | L170: 31087 | M170: 22012 | N170: 17177 | O170: 14520 | P170: 11663 | U170: 31087 | V170: 22012 | W170: 17177 | X170: 14520 | Y170: 11663
A171: 65 | B171: 65 | D171: 40644 | E171: 28705 | F171: 21709 | G171: 19359 | H171: 16442 | L171: 40644 | M171: 28705 | N171: 21709 | O171: 19359 | P171: 16442 | U171: 40644 | V171: 28705 | W171: 21709 | X171: 19359 | Y171: 16442
A172: 66 | B172: 66 | D172: 47216 | E172: 33358 | F172: 25223 | G172: 22501 | H172: 19102 | L172: 47216 | M172: 33358 | N172: 25223 | O172: 22501 | P172: 19102 | U172: 47216 | V172: 33358 | W172: 25223 | X172: 22501 | Y172: 19102
A173: 67 | B173: 67 | D173: 51565 | E173: 36431 | F173: 27549 | G173: 24566 | H173: 20867 | L173: 51565 | M173: 36431 | N173: 27549 | O173: 24566 | P173: 20867 | U173: 51565 | V173: 36431 | W173: 27549 | X173: 24566 | Y173: 20867
A174: 68 | B174: 68 | D174: 57096 | E174: =V174 -> 40333 | F174: =W174 -> 30510 | G174: =X174 -> 27209 | H174: =Y174 -> 23099 | L174: 57096 | M174: 40333 | N174: 30510 | O174: 27209 | P174: 23099 | U174: 57096 | V174: 40333 | W174: 30510 | X174: 27209 | Y174: 23099
A175: 69 | B175: 69 | D175: 62817 | E175: 44372 | F175: 33559 | G175: 29930 | H175: 25420 | L175: 62817 | M175: 44372 | N175: 33559 | O175: 29930 | P175: 25420 | U175: 62817 | V175: 44372 | W175: 33559 | X175: 29930 | Y175: 25420
A176: 70 | B176: 70 | D176: 77309 | E176: 54031 | F176: 39507 | G176: 34881 | H176: 29895 | L176: 77309 | M176: 54031 | N176: 39507 | O176: 34881 | P176: 29895 | U176: 77309 | V176: 54031 | W176: 39507 | X176: 34881 | Y176: 29895
A177: 71 | B177: 71 | D177: 80346 | E177: 56148 | F177: 41056 | G177: 36249 | H177: 31074 | L177: 80346 | M177: 56148 | N177: 41056 | O177: 36249 | P177: 31074 | U177: 80346 | V177: 56148 | W177: 41056 | X177: 36249 | Y177: 31074
A178: 72 | B178: 72 | D178: 82625 | E178: 57737 | F178: 42221 | G178: 37274 | H178: 31952 | L178: 82625 | M178: 57737 | N178: 42221 | O178: 37274 | P178: 31952 | U178: 82625 | V178: 57737 | W178: 42221 | X178: 37274 | Y178: 31952
A179: 73 | B179: 73 | D179: 85651 | E179: 59863 | F179: 43768 | G179: 38647 | H179: 33130 | L179: 85651 | M179: 59863 | N179: 43768 | O179: 38647 | P179: 33130 | U179: 85651 | V179: 59863 | W179: 43768 | X179: 38647 | Y179: 33130
A180: 74 | B180: 74 | D180: 87167 | E180: 60917 | F180: 44546 | G180: 39334 | H180: 33714 | L180: 87167 | M180: 60917 | N180: 44546 | O180: 39334 | P180: 33714 | U180: 87167 | V180: 60917 | W180: 44546 | X180: 39334 | Y180: 33714
A181: 75 | B181: 75+ | D181: 90964 | E181: 63570 | F181: 46484 | G181: 41044 | H181: 35180 | L181: 90964 | M181: 63570 | N181: 46484 | O181: 41044 | P181: 35180 | U181: 90964 | V181: 63570 | W181: 46484 | X181: 41044 | Y181: 35180
A182: 1 | B182: 1 Child | D182: 3317 | E182: 2424 | F182: 1878 | G182: 1554 | H182: 1153 | L182: 3317 | M182: 2424 | N182: 1878 | O182: 1554 | P182: 1153 | U182: =L182*$N$2 -> 3317 | V182: =M182*$N$2 -> 2424 | W182: 1878 | X182: 1554 | Y182: 1153
A183: 2 | B183: 2 Children | D183: 5271 | E183: 3857 | F183: 2988 | G183: 2468 | H183: 1829 | L183: 5271 | M183: 3857 | N183: 2988 | O183: 2468 | P183: 1829 | U183: =L183*$N$2 -> 5271 | V183: =M183*$N$2 -> 3857 | W183: =N183*$N$2 -> 2988 | X183: =O183*$N$2 -> 2468 | Y183: =P183*$N$2 -> 1829
A184: 3 | B184: 3+ Children | D184: =U184 -> 7733 | E184: 5651 | F184: 4375 | G184: 3616 | H184: 2678 | L184: 7733 | M184: 5651 | N184: 4375 | O184: 3616 | P184: 2678 | U184: 7733 | V184: 5651 | W184: 4375 | X184: 3616 | Y184: 2678
A185: 1 | B185: Rider Comp. Maternidad | D185: 0 | E185: 0 | F185: 225 | G185: 225 | H185: 225
A186: 1 | B186: Transplante de organos | D186: 0 | E186: 0 | F186: 0 | G186: 0 | H186: 0
A190: TARIFAS SEMESTRALES
A191: EDAD
C192: CW1 | D192: CW2 | E192: CW3 | F192: CW4 | G192: CW5 | H192: CW6
A193: 18 | B193: 18-24 | D193: =$G$2*D158 -> 4878.66 | E193: 3355.29 | F193: 2353.14 | G193: 1638.63 | H193: 1247.46
A194: 25 | B194: 25-29 | D194: 5118.36 | E194: 3711.27 | F194: 2606.61 | G194: 1814.07 | H194: 1382.1
A195: 30 | B195: 30-34 | D195: 5347.35 | E195: 3969.33 | F195: 2923.32 | G195: 2193 | H195: 1678.41
A196: 35 | B196: 35-39 | D196: 5984.85 | E196: 4442.61 | F196: 3277.26 | G196: 2459.73 | H196: 1876.8
A197: 40 | B197: 40-44 | D197: 6929.37 | E197: 4871.52 | F197: 3643.44 | G197: 2710.65 | H197: 2072.13
A198: 45 | B198: 45-49 | D198: 7741.8 | E198: 5445.78 | F198: 4069.8 | G198: 3031.44 | H198: 2316.42
A199: 50 | B199: 50-54 | D199: 10119.93 | E199: 7182.84 | F199: 5344.29 | G199: 4321.74 | H199: 3303.78
A200: 55 | B200: 55-59 | D200: 10764.06 | E200: 7639.29 | F200: 5686.5 | G200: 4599.69 | H200: 3516.45
A201: 60 | B201: 60 | D201: 11723.88 | E201: 8294.64 | F201: 6472.92 | G201: 5469.75 | H201: 4396.2
A202: 61 | B202: 61 | D202: 12593.94 | E202: 8910.72 | F202: 6951.3 | G202: 5879.79 | H202: 4721.07
A203: 62 | B203: 62 | D203: =$G$2*D168 -> 13785.3 | E203: 9760.38 | F203: 7614.3 | G203: 6437.22 | H203: 5170.89
A204: 63 | B204: 63 | D204: 14658.42 | E204: 10374.93 | F204: 8095.74 | G204: 6845.73 | H204: 5495.76
A205: 64 | B205: 64 | D205: 15854.37 | E205: 11226.12 | F205: 8760.27 | G205: 7405.2 | H205: 5948.13
A206: 65 | B206: 65 | D206: 20728.44 | E206: 14639.55 | F206: 11071.59 | G206: 9873.09 | H206: 8385.42
A207: 66 | B207: 66 | D207: 24080.16 | E207: 17012.58 | F207: 12863.73 | G207: 11475.51 | H207: 9742.02
A208: 67 | B208: 67 | D208: 26298.15 | E208: 18579.81 | F208: 14049.99 | G208: 12528.66 | H208: 10642.17
A209: 68 | B209: 68 | D209: 29118.96 | E209: 20569.83 | F209: 15560.1 | G209: 13876.59 | H209: 11780.49
A210: 69 | B210: 69 | D210: 32036.67 | E210: 22629.72 | F210: 17115.09 | G210: 15264.3 | H210: 12964.2
A211: 70 | B211: 70 | D211: 39427.59 | E211: 27555.81 | F211: 20148.57 | G211: 17789.31 | H211: 15246.45
A212: 71 | B212: 71 | D212: 40976.46 | E212: 28635.48 | F212: 20938.56 | G212: 18486.99 | H212: 15847.74
A213: 72 | B213: 72 | D213: =$G$2*D178 -> 42138.75 | E213: 29445.87 | F213: 21532.71 | G213: 19009.74 | H213: 16295.52
A214: 73 | B214: 73 | D214: 43682.01 | E214: 30530.13 | F214: 22321.68 | G214: 19709.97 | H214: 16896.3
A215: 74 | B215: 74 | D215: 44455.17 | E215: 31067.67 | F215: 22718.46 | G215: 20060.34 | H215: 17194.14
A216: 75 | B216: 75+ | D216: 46391.64 | E216: 32420.7 | F216: 23706.84 | G216: 20932.44 | H216: 17941.8
A217: 1 | B217: 1 Child | D217: 1691.67 | E217: 1236.24 | F217: 957.78 | G217: 792.54 | H217: 588.03
A218: 2 | B218: 2 Children | D218: 2688.21 | E218: 1967.07 | F218: 1523.88 | G218: 1258.68 | H218: 932.79
A219: 3 | B219: 3+ Children | D219: 3943.83 | E219: 2882.01 | F219: 2231.25 | G219: 1844.16 | H219: 1365.78
... 340 more rows

Sheet 2 (hidden)
K1: D1 | L1: D2 | M1: D3 | N1: D4 | O1: D5 | P1: D6
B2: REGIÓN | C2: ='INSURED INFORMATION'!W14 -> 8 | E2: FACTOR SEMESTRAL : | G2: 0.53 | I2: NEW BUSINESS DISCUOUNTS | K2: ='INSURED INFORMATION'!P53 -> 1 | L2: ='INSURED INFORMATION'!Q53 -> 1 | M2: ='INSURED INFORMATION'!R53 -> 1 | N2: ='INSURED INFORMATION'!S53 -> 1 | O2: ='INSURED INFORMATION'!T53 -> 1 | P2: ='INSURED INFORMATION'!U53 -> 1
A5: BUPA EXCLUSIVE CARE
A6: TARIFAS ANUALES
A7: EDAD
C8: DW1 | D8: DW2 | E8: DW3 | F8: DW4 | G8: DW5 | H8: DW6
A9: 18 | B9: 18-24 | D9: 23060 | E9: 15229 | F9: 9895 | G9: 6830 | H9: 5368
A10: 25 | B10: 25-29 | D10: 24186 | E10: 16831 | F10: 10959 | G10: 7574 | H10: 5948
A11: 30 | B11: 30-34 | D11: 25168 | E11: 18060 | F11: 12280 | G11: 9078 | H11: 7153
A12: 35 | B12: 35-39 | D12: 28180 | E12: 20215 | F12: 13774 | G12: 10182 | H12: 8014
A13: 40 | B13: 40-44 | D13: 32673 | E13: 22121 | F13: 15283 | G13: 11202 | H13: 8811
A14: 45 | B14: 45-49 | D14: 36535 | E14: 24737 | F14: 17086 | G14: 12524 | H14: 9860
A15: 50 | B15: 50-54 | D15: 46762 | E15: 32471 | F15: 22306 | G15: 17693 | H15: 13944
A16: 55 | B16: 55-59 | D16: 49760 | E16: 34552 | F16: 23734 | G16: 18834 | H16: 14847
A17: 60 | B17: 60 | D17: 54212 | E17: 37705 | F17: 27319 | G17: 22696 | H17: 18450
A18: 61 | B18: 61 | D18: 58244 | E18: 40509 | F18: 29340 | G18: 24400 | H18: 19829
A19: 62 | B19: 62 | D19: 63769 | E19: 44373 | F19: 32133 | G19: 26705 | H19: 21716
A20: 63 | B20: 63 | D20: 67807 | E20: 47175 | F20: 34163 | G20: 28406 | H20: 23090
A21: 64 | B21: 64 | D21: 73358 | E21: 51053 | F21: 36969 | G21: 30731 | H21: 24994
A22: 65 | B22: 65 | D22: 95905 | E22: 66594 | F22: 46755 | G22: 40996 | H22: 35257
A23: 66 | B23: 66 | D23: 111420 | E23: 77397 | F23: 54336 | G23: 47657 | H23: 40969
A24: 67 | B24: 67 | D24: 121703 | E24: 84530 | F24: 59354 | G24: 52039 | H24: 44755
A25: 68 | B25: 68 | D25: 134765 | E25: 93601 | F25: 65717 | G25: 57640 | H25: 49564
A26: 69 | B26: 69 | D26: 148281 | E26: 102980 | F26: 72314 | G26: 63415 | H26: 54544
A27: 70 | B27: 70 | D27: 182509 | E27: 125410 | F27: 85140 | G27: 73915 | H27: 64159
A28: 71 | B28: 71 | D28: 189671 | E28: 130330 | F28: 88482 | G28: 76817 | H28: 66683
A29: 72 | B29: 72 | D29: 195048 | E29: 134020 | F29: 90978 | G29: 78985 | H29: 68573
A30: 73 | B30: 73 | D30: 202210 | E30: 138953 | F30: 94318 | G30: 81904 | H30: 71098
A31: 74 | B31: 74 | D31: 205793 | E31: 141403 | F31: 96004 | G31: 83349 | H31: 72350
A32: 75 | B32: 75+ | D32: 214758 | E32: 147559 | F32: 100171 | G32: 86982 | H32: 75503
A33: 1 | B33: 1 Child | D33: 8022 | E33: 5908 | F33: 4435 | G33: 3642 | H33: 2839
A34: 2 | B34: 2 Children | D34: 12757 | E34: 9410 | F34: 7056 | G34: 5782 | H34: 4495
A35: 3 | B35: 3+ Children | D35: 18703 | E35: 13797 | F35: 10330 | G35: 8471 | H35: 6591
A36: 1 | B36: Rider Comp. Maternidad | D36: 0 | E36: 0 | F36: 225 | G36: 225 | H36: 225
A37: 1 | B37: Transplante de organos | D37: 0 | E37: 0 | F37: 0 | G37: 0 | H37: 0
A41: TARIFAS SEMESTRALES
A42: EDAD
D43: DW2 | E43: DW3 | F43: DW4 | G43: DW5 | H43: DW6
A44: 18 | B44: 18-24 | D44: =$G$2*D9 -> 12221.8 | E44: 8071.37 | F44: 5244.35 | G44: 3619.9 | H44: 2845.04
A45: 25 | B45: 25-29 | D45: 12818.58 | E45: 8920.43 | F45: 5808.27 | G45: 4014.22 | H45: 3152.44
A46: 30 | B46: 30-34 | D46: 13339.04 | E46: 9571.8 | F46: 6508.4 | G46: 4811.34 | H46: 3791.09
A47: 35 | B47: 35-39 | D47: 14935.4 | E47: 10713.95 | F47: 7300.22 | G47: 5396.46 | H47: 4247.42
A48: 40 | B48: 40-44 | D48: 17316.69 | E48: 11724.13 | F48: 8099.99 | G48: 5937.06 | H48: 4669.83
A49: 45 | B49: 45-49 | D49: 19363.55 | E49: 13110.61 | F49: 9055.58 | G49: 6637.72 | H49: 5225.8
A50: 50 | B50: 50-54 | D50: 24783.86 | E50: 17209.63 | F50: 11822.18 | G50: 9377.29 | H50: 7390.32
A51: 55 | B51: 55-59 | D51: 26372.8 | E51: 18312.56 | F51: 12579.02 | G51: 9982.02 | H51: 7868.91
A52: 60 | B52: 60 | D52: 28732.36 | E52: 19983.65 | F52: 14479.07 | G52: 12028.88 | H52: 9778.5
A53: 61 | B53: 61 | D53: 30869.32 | E53: 21469.77 | F53: 15550.2 | G53: 12932 | H53: 10509.37
A54: 62 | B54: 62 | D54: =$G$2*D19 -> 33797.57 | E54: 23517.69 | F54: 17030.49 | G54: 14153.65 | H54: 11509.48
A55: 63 | B55: 63 | D55: 35937.71 | E55: 25002.75 | F55: 18106.39 | G55: 15055.18 | H55: 12237.7
A56: 64 | B56: 64 | D56: 38879.74 | E56: 27058.09 | F56: 19593.57 | G56: 16287.43 | H56: 13246.82
A57: 65 | B57: 65 | D57: 50829.65 | E57: 35294.82 | F57: 24780.15 | G57: 21727.88 | H57: 18686.21
A58: 66 | B58: 66 | D58: 59052.6 | E58: 41020.41 | F58: 28798.08 | G58: 25258.21 | H58: 21713.57
A59: 67 | B59: 67 | D59: 64502.59 | E59: 44800.9 | F59: 31457.62 | G59: 27580.67 | H59: 23720.15
A60: 68 | B60: 68 | D60: 71425.45 | E60: 49608.53 | F60: 34830.01 | G60: 30549.2 | H60: 26268.92
A61: 69 | B61: 69 | D61: 78588.93 | E61: 54579.4 | F61: 38326.42 | G61: 33609.95 | H61: 28908.32
A62: 70 | B62: 70 | D62: 96729.77 | E62: 66467.3 | F62: 45124.2 | G62: 39174.95 | H62: 34004.27
A63: 71 | B63: 71 | D63: 100525.63 | E63: 69074.9 | F63: 46895.46 | G63: 40713.01 | H63: 35341.99
A64: 72 | B64: 72 | D64: =$G$2*D29 -> 103375.44 | E64: 71030.6 | F64: 48218.34 | G64: 41862.05 | H64: 36343.69
A65: 73 | B65: 73 | D65: 107171.3 | E65: 73645.09 | F65: 49988.54 | G65: 43409.12 | H65: 37681.94
A66: 74 | B66: 74 | D66: 109070.29 | E66: 74943.59 | F66: 50882.12 | G66: 44174.97 | H66: 38345.5
A67: 75 | B67: 75+ | D67: 113821.74 | E67: 78206.27 | F67: 53090.63 | G67: 46100.46 | H67: 40016.59
A68: 1 | B68: 1 Child | D68: 4251.66 | E68: 3131.24 | F68: 2350.55 | G68: 1930.26 | H68: 1504.67
A69: 2 | B69: 2 Children | D69: 6761.21 | E69: 4987.3 | F69: 3739.68 | G69: 3064.46 | H69: 2382.35
A70: 3 | B70: 3+ Children | D70: 9912.59 | E70: 7312.41 | F70: 5474.9 | G70: 4489.63 | H70: 3493.23
A71: 1 | B71: Rider Comp. Maternidad | D71: =+D36*$G$2 -> 0 | E71: 0 | F71: 119.25 | G71: 119.25 | H71: 119.25
A72: 1 | B72: Transplante de organos | D72: 0 | E72: 0 | F72: 0 | G72: 0 | H72: 0
A78: DIAMOND (LATINAMERICA ONLY)
A79: TARIFAS ANUALES
A80: EDAD
C81: DL1 | D81: DL2 | E81: DL3 | F81: DL4 | G81: DL5 | H81: DL6
A82: 18 | B82: - 24
A83: 25 | B83: - 29
A84: 30 | B84: - 34
A85: 35 | B85: - 39
A86: 40 | B86: - 44
A87: 45 | B87: - 49
A88: 50 | B88: - 54
A89: 55 | B89: - 59
A90: 60
A91: 61
A92: 62
A93: 63
A94: 64
A95: 65
A96: 66
A97: 67
A98: 68
A99: 69
A100: 70
A101: 71
A102: 72
A103: 73
A104: 74
A105: 75 | B105: o más
A106: 1 | B106: Hijo
A107: 2 | B107: Hijos
A108: 3 | B108: Hijos o más
A109: 1 | B109: Rider Comp. Maternidad
A110: 1 | B110: Transplante de organos | C110: 0 | D110: 0 | E110: 0 | F110: 0 | G110: 0 | H110: 0
A112: TARIFAS SEMESTRALES
A113: EDAD
C114: DL1 | D114: DL2 | E114: DL3 | F114: DL4 | G114: DL5 | H114: DL6
A115: 18 | B115: - 24 | C115: =+C82*$G$2 -> 0 | D115: 0 | E115: 0 | F115: 0 | G115: 0 | H115: 0
A116: 25 | B116: - 29 | C116: 0 | D116: 0 | E116: 0 | F116: 0 | G116: 0 | H116: 0
A117: 30 | B117: - 34 | C117: 0 | D117: 0 | E117: 0 | F117: 0 | G117: 0 | H117: 0
A118: 35 | B118: - 39 | C118: 0 | D118: 0 | E118: 0 | F118: 0 | G118: 0 | H118: 0
A119: 40 | B119: - 44 | C119: 0 | D119: 0 | E119: 0 | F119: 0 | G119: 0 | H119: 0
A120: 45 | B120: - 49 | C120: 0 | D120: 0 | E120: 0 | F120: 0 | G120: 0 | H120: 0
A121: 50 | B121: - 54 | C121: 0 | D121: 0 | E121: 0 | F121: 0 | G121: 0 | H121: 0
A122: 55 | B122: - 59 | C122: 0 | D122: 0 | E122: 0 | F122: 0 | G122: 0 | H122: 0
A123: 60 | C123: 0 | D123: 0 | E123: 0 | F123: 0 | G123: 0 | H123: 0
A124: 61 | C124: 0 | D124: 0 | E124: 0 | F124: 0 | G124: 0 | H124: 0
A125: 62 | C125: =+C92*$G$2 -> 0 | D125: 0 | E125: 0 | F125: 0 | G125: 0 | H125: 0
A126: 63 | C126: 0 | D126: 0 | E126: 0 | F126: 0 | G126: 0 | H126: 0
A127: 64 | C127: 0 | D127: 0 | E127: 0 | F127: 0 | G127: 0 | H127: 0
A128: 65 | C128: 0 | D128: 0 | E128: 0 | F128: 0 | G128: 0 | H128: 0
A129: 66 | C129: 0 | D129: 0 | E129: 0 | F129: 0 | G129: 0 | H129: 0
A130: 67 | C130: 0 | D130: 0 | E130: 0 | F130: 0 | G130: 0 | H130: 0
A131: 68 | C131: 0 | D131: 0 | E131: 0 | F131: 0 | G131: 0 | H131: 0
A132: 69 | C132: 0 | D132: 0 | E132: 0 | F132: 0 | G132: 0 | H132: 0
A133: 70 | C133: 0 | D133: 0 | E133: 0 | F133: 0 | G133: 0 | H133: 0
A134: 71 | C134: 0 | D134: 0 | E134: 0 | F134: 0 | G134: 0 | H134: 0
A135: 72 | C135: =+C102*$G$2 -> 0 | D135: 0 | E135: 0 | F135: 0 | G135: 0 | H135: 0
A136: 73 | C136: 0 | D136: 0 | E136: 0 | F136: 0 | G136: 0 | H136: 0
A137: 74 | C137: 0 | D137: 0 | E137: 0 | F137: 0 | G137: 0 | H137: 0
A138: 75 | B138: o más | C138: 0 | D138: 0 | E138: 0 | F138: 0 | G138: 0 | H138: 0
A139: 1 | B139: Hijo | C139: 0 | D139: 0 | E139: 0 | F139: 0 | G139: 0 | H139: 0
A140: 2 | B140: Hijos | C140: 0 | D140: 0 | E140: 0 | F140: 0 | G140: 0 | H140: 0
A141: 3 | B141: Hijos o más | C141: 0 | D141: 0 | E141: 0 | F141: 0 | G141: 0 | H141: 0
A142: 1 | B142: Rider Comp. Maternidad | C142: 0 | D142: 0 | E142: 0 | F142: 0 | G142: 0 | H142: 0
A143: 1 | B143: Transplante de organos | C143: 0 | D143: 0 | E143: 0 | F143: 0 | G143: 0 | H143: 0
A148: BUPA PRIVILEGE CARE
A149: TARIFAS ANUALES
A150: EDAD
C151: CW1 | D151: CW2 | E151: CW3 | F151: CW4 | G151: CW5 | H151: CW6
A152: 18 | B152: 18-24 | D152: 19400 | E152: 13337 | F152: 8612 | G152: 5945 | H152: 4521
A153: 25 | B153: 25-29 | D153: 20352 | E153: 14758 | F153: 9537 | G153: 6586 | H153: 5017
A154: 30 | B154: 30-34 | D154: 21239 | E154: 15785 | F154: 10702 | G154: 7967 | H154: 6076
A155: 35 | B155: 35-39 | D155: 23796 | E155: 17671 | F155: 11992 | G155: 8925 | H155: 6819
A156: 40 | B156: 40-44 | D156: 27545 | E156: 19376 | F156: 13331 | G156: 9837 | H156: 7509
A157: 45 | B157: 45-49 | D157: 30775 | E157: 21654 | F157: 14911 | G157: 10997 | H157: 8401
A158: 50 | B158: 50-54 | D158: 40233 | E158: 28561 | F158: 19576 | G158: 15706 | H158: 12003
A159: 55 | B159: 55-59 | D159: 42813 | E159: 30393 | F159: 20825 | G159: 16713 | H159: 12780
A160: 60 | B160: 60 | D160: 46626 | E160: 33003 | F160: 23713 | G160: 19884 | H160: 15954
A161: 61 | B161: 61 | D161: 50087 | E161: 35445 | F161: 25466 | G161: 21354 | H161: 17143
A162: 62 | B162: 62 | D162: 54823 | E162: 38815 | F162: 27884 | G162: 23384 | H162: 18774
A163: 63 | B163: 63 | D163: 58296 | E163: 41272 | F163: 29644 | G163: 24868 | H163: 19969
A164: 64 | B164: 64 | D164: 63061 | E164: 44650 | F164: 32076 | G164: 26893 | H164: 21610
A165: 65 | B165: 65 | D165: 82436 | E165: 58252 | F165: 40555 | G165: 35866 | H165: 30456
A166: 66 | B166: 66 | D166: 95765 | E166: 67679 | F166: 47118 | G166: 41691 | H166: 35396
A167: 67 | B167: 67 | D167: 104597 | E167: 73923 | F167: 51466 | G167: 45533 | H167: 38656
A168: 68 | B168: 68 | D168: 115812 | E168: 81835 | F168: 56989 | G168: 50417 | H168: 42794
A169: 69 | B169: 69 | D169: 127421 | E169: 90042 | F169: 62694 | G169: 55471 | H169: 47100
A170: 70 | B170: 70 | D170: 156811 | E170: 109649 | F170: 73803 | G170: 64629 | H170: 55400
A171: 71 | B171: 71 | D171: 162966 | E171: 113944 | F171: 76704 | G171: 67174 | H171: 57579
A172: 72 | B172: 72 | D172: 167589 | E172: 117166 | F172: 78873 | G172: 69079 | H172: 59208
A173: 73 | B173: 73 | D173: 173731 | E173: 121474 | F173: 81764 | G173: 71611 | H173: 61398
A174: 74 | B174: 74 | D174: 176830 | E174: 123629 | F174: 83221 | G174: 72880 | H174: 62471
A175: 75 | B175: 75+ | D175: 184509 | E175: 129008 | F175: 86838 | G175: 76049 | H175: 65188
A176: 1 | B176: 1 Child | D176: 6721 | E176: 4921 | F176: 3508 | G176: 2872 | H176: 2131
A177: 2 | B177: 2 Children | D177: 10704 | E177: 7828 | F177: 5573 | G177: 4560 | H177: 3385
A178: 3 | B178: 3+ Children | D178: 15688 | E178: 11467 | F178: 8161 | G178: 6683 | H178: 4961
A179: 1 | B179: Rider Comp. Maternidad | D179: 0 | E179: 0 | F179: 225 | G179: 225 | H179: 225
A180: 1 | B180: Transplante de organos | D180: 0 | E180: 0 | F180: 0 | G180: 0 | H180: 0
A184: TARIFAS SEMESTRALES
A185: EDAD
D186: CW2 | E186: CW3 | F186: CW4 | G186: CW5 | H186: CW6
A187: 18 | B187: 18-24 | D187: =$G$2*D152 -> 10282 | E187: 7068.61 | F187: 4564.36 | G187: 3150.85 | H187: 2396.13
A188: 25 | B188: 25-29 | D188: 10786.56 | E188: 7821.74 | F188: 5054.61 | G188: 3490.58 | H188: 2659.01
A189: 30 | B189: 30-34 | D189: 11256.67 | E189: 8366.05 | F189: 5672.06 | G189: 4222.51 | H189: 3220.28
A190: 35 | B190: 35-39 | D190: 12611.88 | E190: 9365.63 | F190: 6355.76 | G190: 4730.25 | H190: 3614.07
A191: 40 | B191: 40-44 | D191: 14598.85 | E191: 10269.28 | F191: 7065.43 | G191: 5213.61 | H191: 3979.77
A192: 45 | B192: 45-49 | D192: 16310.75 | E192: 11476.62 | F192: 7902.83 | G192: 5828.41 | H192: 4452.53
A193: 50 | B193: 50-54 | D193: 21323.49 | E193: 15137.33 | F193: 10375.28 | G193: 8324.18 | H193: 6361.59
A194: 55 | B194: 55-59 | D194: 22690.89 | E194: 16108.29 | F194: 11037.25 | G194: 8857.89 | H194: 6773.4
A195: 60 | B195: 60 | D195: 24711.78 | E195: 17491.59 | F195: 12567.89 | G195: 10538.52 | H195: 8455.62
A196: 61 | B196: 61 | D196: 26546.11 | E196: 18785.85 | F196: 13496.98 | G196: 11317.62 | H196: 9085.79
A197: 62 | B197: 62 | D197: =$G$2*D162 -> 29056.19 | E197: 20571.95 | F197: 14778.52 | G197: 12393.52 | H197: 9950.22
A198: 63 | B198: 63 | D198: 30896.88 | E198: 21874.16 | F198: 15711.32 | G198: 13180.04 | H198: 10583.57
A199: 64 | B199: 64 | D199: 33422.33 | E199: 23664.5 | F199: 17000.28 | G199: 14253.29 | H199: 11453.3
A200: 65 | B200: 65 | D200: 43691.08 | E200: 30873.56 | F200: 21494.15 | G200: 19008.98 | H200: 16141.68
A201: 66 | B201: 66 | D201: 50755.45 | E201: 35869.87 | F201: 24972.54 | G201: 22096.23 | H201: 18759.88
A202: 67 | B202: 67 | D202: 55436.41 | E202: 39179.19 | F202: 27276.98 | G202: 24132.49 | H202: 20487.68
A203: 68 | B203: 68 | D203: 61380.36 | E203: 43372.55 | F203: 30204.17 | G203: 26721.01 | H203: 22680.82
A204: 69 | B204: 69 | D204: 67533.13 | E204: 47722.26 | F204: 33227.82 | G204: 29399.63 | H204: 24963
A205: 70 | B205: 70 | D205: 83109.83 | E205: 58113.97 | F205: 39115.59 | G205: 34253.37 | H205: 29362
A206: 71 | B206: 71 | D206: 86371.98 | E206: 60390.32 | F206: 40653.12 | G206: 35602.22 | H206: 30516.87
A207: 72 | B207: 72 | D207: =$G$2*D172 -> 88822.17 | E207: 62097.98 | F207: 41802.69 | G207: 36611.87 | H207: 31380.24
A208: 73 | B208: 73 | D208: 92077.43 | E208: 64381.22 | F208: 43334.92 | G208: 37953.83 | H208: 32540.94
A209: 74 | B209: 74 | D209: 93719.9 | E209: 65523.37 | F209: 44107.13 | G209: 38626.4 | H209: 33109.63
A210: 75 | B210: 75+ | D210: 97789.77 | E210: 68374.24 | F210: 46024.14 | G210: 40305.97 | H210: 34549.64
A211: 1 | B211: 1 Child | D211: 3562.13 | E211: 2608.13 | F211: 1859.24 | G211: 1522.16 | H211: 1129.43
A212: 2 | B212: 2 Children | D212: 5673.12 | E212: 4148.84 | F212: 2953.69 | G212: 2416.8 | H212: 1794.05
A213: 3 | B213: 3+ Children | D213: 8314.64 | E213: 6077.51 | F213: 4325.33 | G213: 3541.99 | H213: 2629.33
A214: 1 | B214: Rider Comp. Maternidad | D214: =+D179*$G$2 -> 0 | E214: 0 | F214: 119.25 | G214: 119.25 | H214: 119.25
A215: 1 | B215: Transplante de organos | D215: 0 | E215: 0 | F215: 0 | G215: 0 | H215: 0
A220: COMPLETE (LATINAMERICA ONLY)
A221: TARIFAS ANUALES
A222: EDAD
... 335 more rows

Sheet 3 (hidden)
K1: D1 | L1: D2 | M1: D3 | N1: D4 | O1: D5 | P1: D6
B2: REGIÓN | C2: ='INSURED INFORMATION'!W14 -> 8 | E2: FACTOR SEMESTRAL : | G2: 0.53 | I2: NEW BUSINESS DISCUOUNTS | K2: ='INSURED INFORMATION'!P53 -> 1 | L2: ='INSURED INFORMATION'!Q53 -> 1 | M2: ='INSURED INFORMATION'!R53 -> 1 | N2: ='INSURED INFORMATION'!S53 -> 1 | O2: ='INSURED INFORMATION'!T53 -> 1 | P2: ='INSURED INFORMATION'!U53 -> 1
A5: BUPA EXCLUSIVE CARE
A6: TARIFAS ANUALES
A7: EDAD
C8: DW1 | D8: DW2 | E8: DW3 | F8: DW4 | G8: DW5 | H8: DW6
A9: 18 | B9: 18-24 | D9: 22314 | E9: 14739 | F9: 9665 | G9: 6731 | H9: 5301
A10: 25 | B10: 25-29 | D10: 23399 | E10: 16287 | F10: 10708 | G10: 7475 | H10: 5870
A11: 30 | B11: 30-34 | D11: 24342 | E11: 17470 | F11: 11989 | G11: 8949 | H11: 7058
A12: 35 | B12: 35-39 | D12: 27262 | E12: 19562 | F12: 13443 | G12: 10037 | H12: 7906
A13: 40 | B13: 40-44 | D13: 31616 | E13: 21397 | F13: 14917 | G13: 11044 | H13: 8686
A14: 45 | B14: 45-49 | D14: 35343 | E14: 23928 | F14: 16687 | G14: 12338 | H14: 9719
A15: 50 | B15: 50-54 | D15: 45234 | E15: 31418 | F15: 21771 | G15: 17438 | H15: 13750
A16: 55 | B16: 55-59 | D16: 48128 | E16: 33424 | F16: 23169 | G16: 18561 | H16: 14634
A17: 60 | B17: 60 | D17: 52438 | E17: 36476 | F17: 26658 | G17: 22359 | H17: 18191
A18: 61 | B18: 61 | D18: 56345 | E18: 39184 | F18: 28636 | G18: 24041 | H18: 19544
A19: 62 | B19: 62 | D19: 61682 | E19: 42919 | F19: 31366 | G19: 26315 | H19: 21399
A20: 63 | B20: 63 | D20: 65591 | E20: 45629 | F20: 33345 | G20: 27987 | H20: 22756
A21: 64 | B21: 64 | D21: 70948 | E21: 49395 | F21: 36084 | G21: 30279 | H21: 24622
A22: 65 | B22: 65 | D22: 92760 | E22: 64418 | F22: 45628 | G22: 40395 | H22: 34744
A23: 66 | B23: 66 | D23: 107768 | E23: 74859 | F23: 53017 | G23: 46957 | H23: 40376
A24: 67 | B24: 67 | D24: 117708 | E24: 81758 | F24: 57918 | G24: 51263 | H24: 44095
A25: 68 | B25: 68 | D25: 130341 | E25: 90526 | F25: 64134 | G25: 56799 | H25: 48834
A26: 69 | B26: 69 | D26: 143407 | E26: 99602 | F26: 70575 | G26: 62487 | H26: 53735
A27: 70 | B27: 70 | D27: 176505 | E27: 121290 | F27: 83076 | G27: 72816 | H27: 63216
A28: 71 | B28: 71 | D28: 183446 | E28: 126054 | F28: 86341 | G28: 75682 | H28: 65708
A29: 72 | B29: 72 | D29: 188640 | E29: 129614 | F29: 88773 | G29: 77819 | H29: 67565
A30: 73 | B30: 73 | D30: 195571 | E30: 134393 | F30: 92039 | G30: 80688 | H30: 70053
A31: 74 | B31: 74 | D31: 199028 | E31: 136759 | F31: 93674 | G31: 82116 | H31: 71282
A32: 75 | B32: 75+ | D32: 207695 | E32: 142717 | F32: 97749 | G32: 85698 | H32: 74402
A33: 1 | B33: 1 Child | D33: 7757 | E33: 5715 | F33: 4327 | G33: 3585 | H33: 2798
A34: 2 | B34: 2 Children | D34: 12338 | E34: 9106 | F34: 6887 | G34: 5691 | H34: 4431
A35: 3 | B35: 3+ Children | D35: 18075 | E35: 13338 | F35: 10079 | G35: 8345 | H35: 6504
A36: 1 | B36: Rider Comp. Maternidad | D36: 0 | E36: 0 | F36: 225 | G36: 225 | H36: 225
A37: 1 | B37: Transplante de organos | D37: 0 | E37: 0 | F37: 0 | G37: 0 | H37: 0
A41: TARIFAS SEMESTRALES
A42: EDAD
D43: DW2 | E43: DW3 | F43: DW4 | G43: DW5 | H43: DW6
A44: 18 | B44: 18-24 | D44: =$G$2*D9 -> 11826.42 | E44: 7811.67 | F44: 5122.45 | G44: 3567.43 | H44: 2809.53
A45: 25 | B45: 25-29 | D45: 12401.47 | E45: 8632.11 | F45: 5675.24 | G45: 3961.75 | H45: 3111.1
A46: 30 | B46: 30-34 | D46: 12901.26 | E46: 9259.1 | F46: 6354.17 | G46: 4742.97 | H46: 3740.74
A47: 35 | B47: 35-39 | D47: 14448.86 | E47: 10367.86 | F47: 7124.79 | G47: 5319.61 | H47: 4190.18
A48: 40 | B48: 40-44 | D48: 16756.48 | E48: 11340.41 | F48: 7906.01 | G48: 5853.32 | H48: 4603.58
A49: 45 | B49: 45-49 | D49: 18731.79 | E49: 12681.84 | F49: 8844.11 | G49: 6539.14 | H49: 5151.07
A50: 50 | B50: 50-54 | D50: 23974.02 | E50: 16651.54 | F50: 11538.63 | G50: 9242.14 | H50: 7287.5
A51: 55 | B51: 55-59 | D51: 25507.84 | E51: 17714.72 | F51: 12279.57 | G51: 9837.33 | H51: 7756.02
A52: 60 | B52: 60 | D52: 27792.14 | E52: 19332.28 | F52: 14128.74 | G52: 11850.27 | H52: 9641.23
A53: 61 | B53: 61 | D53: 29862.85 | E53: 20767.52 | F53: 15177.08 | G53: 12741.73 | H53: 10358.32
A54: 62 | B54: 62 | D54: 32691.46 | E54: 22747.07 | F54: 16623.98 | G54: 13946.95 | H54: 11341.47
A55: 63 | B55: 63 | D55: 34763.23 | E55: 24183.37 | F55: 17672.85 | G55: 14833.11 | H55: 12060.68
A56: 64 | B56: 64 | D56: 37602.44 | E56: 26179.35 | F56: 19124.52 | G56: 16047.87 | H56: 13049.66
A57: 65 | B57: 65 | D57: 49162.8 | E57: 34141.54 | F57: 24182.84 | G57: 21409.35 | H57: 18414.32
A58: 66 | B58: 66 | D58: 57117.04 | E58: 39675.27 | F58: 28099.01 | G58: 24887.21 | H58: 21399.28
A59: 67 | B59: 67 | D59: 62385.24 | E59: 43331.74 | F59: 30696.54 | G59: 27169.39 | H59: 23370.35
A60: 68 | B60: 68 | D60: =$G$2*D25 -> 69080.73 | E60: 47978.78 | F60: 33991.02 | G60: 30103.47 | H60: 25882.02
A61: 69 | B61: 69 | D61: 76005.71 | E61: 52789.06 | F61: 37404.75 | G61: 33118.11 | H61: 28479.55
A62: 70 | B62: 70 | D62: 93547.65 | E62: 64283.7 | F62: 44030.28 | G62: 38592.48 | H62: 33504.48
A63: 71 | B63: 71 | D63: 97226.38 | E63: 66808.62 | F63: 45760.73 | G63: 40111.46 | H63: 34825.24
A64: 72 | B64: 72 | D64: 99979.2 | E64: 68695.42 | F64: 47049.69 | G64: 41244.07 | H64: 35809.45
A65: 73 | B65: 73 | D65: 103652.63 | E65: 71228.29 | F65: 48780.67 | G65: 42764.64 | H65: 37128.09
A66: 74 | B66: 74 | D66: 105484.84 | E66: 72482.27 | F66: 49647.22 | G66: 43521.48 | H66: 37779.46
A67: 75 | B67: 75+ | D67: 110078.35 | E67: 75640.01 | F67: 51806.97 | G67: 45419.94 | H67: 39433.06
A68: 1 | B68: 1 Child | D68: 4111.21 | E68: 3028.95 | F68: 2293.31 | G68: 1900.05 | H68: 1482.94
A69: 2 | B69: 2 Children | D69: 6539.14 | E69: 4826.18 | F69: 3650.11 | G69: 3016.23 | H69: 2348.43
A70: 3 | B70: 3+ Children | D70: 9579.75 | E70: 7069.14 | F70: 5341.87 | G70: 4422.85 | H70: 3447.12
A71: 1 | B71: Rider Comp. Maternidad | D71: =+D36*$G$2 -> 0 | E71: 0 | F71: 119.25 | G71: 119.25 | H71: 119.25
A72: 1 | B72: Transplante de organos | D72: 0 | E72: 0 | F72: 0 | G72: 0 | H72: 0
A78: DIAMOND (LATINAMERICA ONLY)
A79: TARIFAS ANUALES
A80: EDAD
C81: DL1 | D81: DL2 | E81: DL3 | F81: DL4 | G81: DL5 | H81: DL6
A82: 18 | B82: - 24
A83: 25 | B83: - 29
A84: 30 | B84: - 34
A85: 35 | B85: - 39
A86: 40 | B86: - 44
A87: 45 | B87: - 49
A88: 50 | B88: - 54
A89: 55 | B89: - 59
A90: 60
A91: 61
A92: 62
A93: 63
A94: 64
A95: 65
A96: 66
A97: 67
A98: 68
A99: 69
A100: 70
A101: 71
A102: 72
A103: 73
A104: 74
A105: 75 | B105: o más
A106: 1 | B106: Hijo
A107: 2 | B107: Hijos
A108: 3 | B108: Hijos o más
A109: 1 | B109: Rider Comp. Maternidad
A110: 1 | B110: Transplante de organos | C110: 0 | D110: 0 | E110: 0 | F110: 0 | G110: 0 | H110: 0
A112: TARIFAS SEMESTRALES
A113: EDAD
C114: DL1 | D114: DL2 | E114: DL3 | F114: DL4 | G114: DL5 | H114: DL6
A115: 18 | B115: - 24 | C115: =+C82*$G$2 -> 0 | D115: 0 | E115: 0 | F115: 0 | G115: 0 | H115: 0
A116: 25 | B116: - 29 | C116: 0 | D116: 0 | E116: 0 | F116: 0 | G116: 0 | H116: 0
A117: 30 | B117: - 34 | C117: 0 | D117: 0 | E117: 0 | F117: 0 | G117: 0 | H117: 0
A118: 35 | B118: - 39 | C118: 0 | D118: 0 | E118: 0 | F118: 0 | G118: 0 | H118: 0
A119: 40 | B119: - 44 | C119: 0 | D119: 0 | E119: 0 | F119: 0 | G119: 0 | H119: 0
A120: 45 | B120: - 49 | C120: 0 | D120: 0 | E120: 0 | F120: 0 | G120: 0 | H120: 0
A121: 50 | B121: - 54 | C121: 0 | D121: 0 | E121: 0 | F121: 0 | G121: 0 | H121: 0
A122: 55 | B122: - 59 | C122: 0 | D122: 0 | E122: 0 | F122: 0 | G122: 0 | H122: 0
A123: 60 | C123: 0 | D123: 0 | E123: 0 | F123: 0 | G123: 0 | H123: 0
A124: 61 | C124: 0 | D124: 0 | E124: 0 | F124: 0 | G124: 0 | H124: 0
A125: 62 | C125: 0 | D125: 0 | E125: 0 | F125: 0 | G125: 0 | H125: 0
A126: 63 | C126: 0 | D126: 0 | E126: 0 | F126: 0 | G126: 0 | H126: 0
A127: 64 | C127: 0 | D127: 0 | E127: 0 | F127: 0 | G127: 0 | H127: 0
A128: 65 | C128: 0 | D128: 0 | E128: 0 | F128: 0 | G128: 0 | H128: 0
A129: 66 | C129: 0 | D129: 0 | E129: 0 | F129: 0 | G129: 0 | H129: 0
A130: 67 | C130: 0 | D130: 0 | E130: 0 | F130: 0 | G130: 0 | H130: 0
A131: 68 | C131: =+C98*$G$2 -> 0 | D131: 0 | E131: 0 | F131: 0 | G131: 0 | H131: 0
A132: 69 | C132: 0 | D132: 0 | E132: 0 | F132: 0 | G132: 0 | H132: 0
A133: 70 | C133: 0 | D133: 0 | E133: 0 | F133: 0 | G133: 0 | H133: 0
A134: 71 | C134: 0 | D134: 0 | E134: 0 | F134: 0 | G134: 0 | H134: 0
A135: 72 | C135: 0 | D135: 0 | E135: 0 | F135: 0 | G135: 0 | H135: 0
A136: 73 | C136: 0 | D136: 0 | E136: 0 | F136: 0 | G136: 0 | H136: 0
A137: 74 | C137: 0 | D137: 0 | E137: 0 | F137: 0 | G137: 0 | H137: 0
A138: 75 | B138: o más | C138: 0 | D138: 0 | E138: 0 | F138: 0 | G138: 0 | H138: 0
A139: 1 | B139: Hijo | C139: 0 | D139: 0 | E139: 0 | F139: 0 | G139: 0 | H139: 0
A140: 2 | B140: Hijos | C140: 0 | D140: 0 | E140: 0 | F140: 0 | G140: 0 | H140: 0
A141: 3 | B141: Hijos o más | C141: 0 | D141: 0 | E141: 0 | F141: 0 | G141: 0 | H141: 0
A142: 1 | B142: Rider Comp. Maternidad | C142: 0 | D142: 0 | E142: 0 | F142: 0 | G142: 0 | H142: 0
A143: 1 | B143: Transplante de organos | C143: 0 | D143: 0 | E143: 0 | F143: 0 | G143: 0 | H143: 0
A148: BUPA PRIVILEGE CARE
A149: TARIFAS ANUALES
A150: EDAD
C151: CW1 | D151: CW2 | E151: CW3 | F151: CW4 | G151: CW5 | H151: CW6
A152: 18 | B152: 18-24 | D152: 18757 | E152: 12893 | F152: 8401 | G152: 5852 | H152: 4466
A153: 25 | B153: 25-29 | D153: 19689 | E153: 14282 | F153: 9304 | G153: 6492 | H153: 4947
A154: 30 | B154: 30-34 | D154: 20551 | E154: 15273 | F154: 10449 | G154: 7841 | H154: 5980
A155: 35 | B155: 35-39 | D155: 23012 | E155: 17095 | F155: 11703 | G155: 8792 | H155: 6710
A156: 40 | B156: 40-44 | D156: 26641 | E156: 18743 | F156: 13010 | G156: 9698 | H156: 7403
A157: 45 | B157: 45-49 | D157: 29767 | E157: 20939 | F157: 14544 | G157: 10844 | H157: 8282
A158: 50 | B158: 50-54 | D158: 38915 | E158: 27630 | F158: 19094 | G158: 15470 | H158: 11831
A159: 55 | B159: 55-59 | D159: 41401 | E159: 29399 | F159: 20325 | G159: 16463 | H159: 12581
A160: 60 | B160: 60 | D160: 45080 | E160: 31927 | F160: 23128 | G160: 19584 | H160: 15716
A161: 61 | B161: 61 | D161: 48453 | E161: 34275 | F161: 24859 | G161: 21044 | H161: 16887
A162: 62 | B162: 62 | D162: 53025 | E162: 37551 | F162: 27214 | G162: 23042 | H162: 18502
A163: 63 | B163: 63 | D163: 56371 | E163: 39926 | F163: 28929 | G163: 24495 | H163: 19675
A164: 64 | B164: 64 | D164: 60984 | E164: 43192 | F164: 31302 | G164: 26496 | H164: 21286
A165: 65 | B165: 65 | D165: 79719 | E165: 56332 | F165: 39575 | G165: 35337 | H165: 30011
A166: 66 | B166: 66 | D166: 92615 | E166: 65449 | F166: 45970 | G166: 41062 | H166: 34875
A167: 67 | B167: 67 | D167: 101154 | E167: 71479 | F167: 50208 | G167: 44848 | H167: 38087
A168: 68 | B168: 68 | D168: 112010 | E168: 79155 | F168: 55612 | G168: 49674 | H168: 42168
A169: 69 | B169: 69 | D169: 123223 | E169: 87087 | F169: 61177 | G169: 54640 | H169: 46409
A170: 70 | B170: 70 | D170: 151659 | E170: 106037 | F170: 72006 | G170: 63674 | H170: 54578
A171: 71 | B171: 71 | D171: 157593 | E171: 110205 | F171: 74830 | G171: 66171 | H171: 56723
A172: 72 | B172: 72 | D172: 162065 | E172: 113318 | F172: 76956 | G172: 68049 | H172: 58328
A173: 73 | B173: 73 | D173: 168025 | E173: 117480 | F173: 79785 | G173: 70550 | H173: 60478
A174: 74 | B174: 74 | D174: 170989 | E174: 119555 | F174: 81198 | G174: 71805 | H174: 61547
A175: 75 | B175: 75+ | D175: 178437 | E175: 124762 | F175: 84735 | G175: 74917 | H175: 64234
A176: 1 | B176: 1 Child | D176: 6512 | E176: 4763 | F176: 3424 | G176: 2835 | H176: 2103
A177: 2 | B177: 2 Children | D177: 10351 | E177: 7569 | F177: 5433 | G177: 4511 | H177: 3333
A178: 3 | B178: 3+ Children | D178: 15163 | E178: 11084 | F178: 7966 | G178: 6604 | H178: 4883
A179: 1 | B179: Rider Comp. Maternidad | D179: 0 | E179: 0 | F179: 225 | G179: 225 | H179: 225
A180: 1 | B180: Transplante de organos | D180: 0 | E180: 0 | F180: 0 | G180: 0 | H180: 0
A184: TARIFAS SEMESTRALES
A185: EDAD
D186: CW2 | E186: CW3 | F186: CW4 | G186: CW5 | H186: CW6
A187: 18 | B187: 18-24 | D187: =$G$2*D152 -> 9941.21 | E187: 6833.29 | F187: 4452.53 | G187: 3101.56 | H187: 2366.98
A188: 25 | B188: 25-29 | D188: 10435.17 | E188: 7569.46 | F188: 4931.12 | G188: 3440.76 | H188: 2621.91
A189: 30 | B189: 30-34 | D189: 10892.03 | E189: 8094.69 | F189: 5537.97 | G189: 4155.73 | H189: 3169.4
A190: 35 | B190: 35-39 | D190: 12196.36 | E190: 9060.35 | F190: 6202.59 | G190: 4659.76 | H190: 3556.3
A191: 40 | B191: 40-44 | D191: 14119.73 | E191: 9933.79 | F191: 6895.3 | G191: 5139.94 | H191: 3923.59
A192: 45 | B192: 45-49 | D192: 15776.51 | E192: 11097.67 | F192: 7708.32 | G192: 5747.32 | H192: 4389.46
A193: 50 | B193: 50-54 | D193: 20624.95 | E193: 14643.9 | F193: 10119.82 | G193: 8199.1 | H193: 6270.43
A194: 55 | B194: 55-59 | D194: 21942.53 | E194: 15581.47 | F194: 10772.25 | G194: 8725.39 | H194: 6667.93
A195: 60 | B195: 60 | D195: 23892.4 | E195: 16921.31 | F195: 12257.84 | G195: 10379.52 | H195: 8329.48
A196: 61 | B196: 61 | D196: 25680.09 | E196: 18165.75 | F196: 13175.27 | G196: 11153.32 | H196: 8950.11
A197: 62 | B197: 62 | D197: 28103.25 | E197: 19902.03 | F197: 14423.42 | G197: 12212.26 | H197: 9806.06
A198: 63 | B198: 63 | D198: 29876.63 | E198: 21160.78 | F198: 15332.37 | G198: 12982.35 | H198: 10427.75
A199: 64 | B199: 64 | D199: 32321.52 | E199: 22891.76 | F199: 16590.06 | G199: 14042.88 | H199: 11281.58
A200: 65 | B200: 65 | D200: 42251.07 | E200: 29855.96 | F200: 20974.75 | G200: 18728.61 | H200: 15905.83
A201: 66 | B201: 66 | D201: 49085.95 | E201: 34687.97 | F201: 24364.1 | G201: 21762.86 | H201: 18483.75
A202: 67 | B202: 67 | D202: 53611.62 | E202: 37883.87 | F202: 26610.24 | G202: 23769.44 | H202: 20186.11
A203: 68 | B203: 68 | D203: =$G$2*D168 -> 59365.3 | E203: 41952.15 | F203: 29474.36 | G203: 26327.22 | H203: 22349.04
A204: 69 | B204: 69 | D204: 65308.19 | E204: 46156.11 | F204: 32423.81 | G204: 28959.2 | H204: 24596.77
A205: 70 | B205: 70 | D205: 80379.27 | E205: 56199.61 | F205: 38163.18 | G205: 33747.22 | H205: 28926.34
A206: 71 | B206: 71 | D206: 83524.29 | E206: 58408.65 | F206: 39659.9 | G206: 35070.63 | H206: 30063.19
A207: 72 | B207: 72 | D207: 85894.45 | E207: 60058.54 | F207: 40786.68 | G207: 36065.97 | H207: 30913.84
A208: 73 | B208: 73 | D208: 89053.25 | E208: 62264.4 | F208: 42286.05 | G208: 37391.5 | H208: 32053.34
A209: 74 | B209: 74 | D209: 90624.17 | E209: 63364.15 | F209: 43034.94 | G209: 38056.65 | H209: 32619.91
A210: 75 | B210: 75+ | D210: 94571.61 | E210: 66123.86 | F210: 44909.55 | G210: 39706.01 | H210: 34044.02
A211: 1 | B211: 1 Child | D211: 3451.36 | E211: 2524.39 | F211: 1814.72 | G211: 1502.55 | H211: 1114.59
A212: 2 | B212: 2 Children | D212: 5486.03 | E212: 4011.57 | F212: 2879.49 | G212: 2390.83 | H212: 1766.49
A213: 3 | B213: 3+ Children | D213: 8036.39 | E213: 5874.52 | F213: 4221.98 | G213: 3500.12 | H213: 2587.99
A214: 1 | B214: Rider Comp. Maternidad | D214: =+D179*$G$2 -> 0 | E214: 0 | F214: 119.25 | G214: 119.25 | H214: 119.25
A215: 1 | B215: Transplante de organos | D215: 0 | E215: 0 | F215: 0 | G215: 0 | H215: 0
A220: COMPLETE (LATINAMERICA ONLY)
A221: TARIFAS ANUALES
A222: EDAD
... 335 more rows

Sheet 4 (hidden)
K1: D1 | L1: D2 | M1: D3 | N1: D4 | O1: D5 | P1: D6
B2: REGIÓN | C2: ='INSURED INFORMATION'!W14 -> 8 | E2: FACTOR SEMESTRAL : | G2: 0.53 | I2: NEW BUSINESS DISCUOUNTS | K2: ='INSURED INFORMATION'!P53 -> 1 | L2: ='INSURED INFORMATION'!Q53 -> 1 | M2: ='INSURED INFORMATION'!R53 -> 1 | N2: ='INSURED INFORMATION'!S53 -> 1 | O2: ='INSURED INFORMATION'!T53 -> 1 | P2: ='INSURED INFORMATION'!U53 -> 1
A5: BUPA EXCLUSIVE CARE
A6: TARIFAS ANUALES
A7: EDAD
C8: DW1 | D8: DW2 | E8: DW3 | F8: DW4 | G8: DW5 | H8: DW6
A9: 18 | B9: 18-24 | D9: 19979 | E9: 13201 | F9: 8654 | G9: 5923 | H9: 4662
A10: 25 | B10: 25-29 | D10: 20959 | E10: 14590 | F10: 9589 | G10: 6569 | H10: 5163
A11: 30 | B11: 30-34 | D11: 21802 | E11: 15646 | F11: 10734 | G11: 7876 | H11: 6210
A12: 35 | B12: 35-39 | D12: 24418 | E12: 17516 | F12: 12036 | G12: 8827 | H12: 6954
A13: 40 | B13: 40-44 | D13: 28320 | E13: 19161 | F13: 13361 | G13: 9708 | H13: 7646
A14: 45 | B14: 45-49 | D14: 31660 | E14: 21430 | F14: 14933 | G14: 10844 | H14: 8548
A15: 50 | B15: 50-54 | D15: 40512 | E15: 28118 | F15: 19485 | G15: 15332 | H15: 12085
A16: 55 | B16: 55-59 | D16: 43104 | E16: 29922 | F16: 20726 | G16: 16311 | H16: 12864
A17: 60 | B17: 60 | D17: 46956 | E17: 32642 | F17: 23858 | G17: 19649 | H17: 15984
A18: 61 | B18: 61 | D18: 50446 | E18: 35078 | F18: 25621 | G18: 21126 | H18: 17174
A19: 62 | B19: 62 | D19: 55231 | E19: 38417 | F19: 28065 | G19: 23118 | H19: 18806
A20: 63 | B20: 63 | D20: 58728 | E20: 40848 | F20: 29827 | G20: 24597 | H20: 19990
A21: 64 | B21: 64 | D21: 63524 | E21: 44197 | F21: 32283 | G21: 26600 | H21: 21644
A22: 65 | B22: 65 | D22: 83050 | E22: 57652 | F22: 40817 | G22: 35481 | H22: 30520
A23: 66 | B23: 66 | D23: 96481 | E23: 66992 | F23: 47426 | G23: 41248 | H23: 35459
A24: 67 | B24: 67 | D24: 105388 | E24: 73169 | F24: 51804 | G24: 45040 | H24: 38737
A25: 68 | B25: 68 | D25: 116696 | E25: 81011 | F25: 57365 | G25: 49883 | H25: 42892
A26: 69 | B26: 69 | D26: 128397 | E26: 89128 | F26: 63119 | G26: 54880 | H26: 47201
A27: 70 | B27: 70 | D27: 158015 | E27: 108535 | F27: 74302 | G27: 63945 | H27: 55525
A28: 71 | B28: 71 | D28: 164228 | E28: 112792 | F28: 77226 | G28: 66466 | H28: 57706
A29: 72 | B29: 72 | D29: 168880 | E29: 115987 | F29: 79396 | G29: 68348 | H29: 59339
A30: 73 | B30: 73 | D30: 175080 | E30: 120254 | F30: 82318 | G30: 70863 | H30: 61507
A31: 74 | B31: 74 | D31: 178181 | E31: 122381 | F31: 83791 | G31: 72116 | H31: 62608
A32: 75 | B32: 75+ | D32: 185937 | E32: 127704 | F32: 87423 | G32: 75257 | H32: 65343
A33: 1 | B33: 1 Child | D33: 6942 | E33: 5114 | F33: 3871 | G33: 3150 | H33: 2450
A34: 2 | B34: 2 Children | D34: 11042 | E34: 8146 | F34: 6160 | G34: 4999 | H34: 3899
A35: 3 | B35: 3+ Children | D35: 16192 | E35: 11930 | F35: 9019 | G35: 7326 | H35: 5705
A36: 1 | B36: Rider Comp. Maternidad | D36: 0 | E36: 0 | F36: 225 | G36: 225 | H36: 225
A37: 1 | B37: Transplante de organos | D37: 0 | E37: 0 | F37: 0 | G37: 0 | H37: 0
A41: TARIFAS SEMESTRALES
A42: EDAD
D43: DW2 | E43: DW3 | F43: DW4 | G43: DW5 | H43: DW6
A44: 18 | B44: 18-24 | D44: =$G$2*D9 -> 10588.87 | E44: 6996.53 | F44: 4586.62 | G44: 3139.19 | H44: 2470.86
A45: 25 | B45: 25-29 | D45: 11108.27 | E45: 7732.7 | F45: 5082.17 | G45: 3481.57 | H45: 2736.39
A46: 30 | B46: 30-34 | D46: 11555.06 | E46: 8292.38 | F46: 5689.02 | G46: 4174.28 | H46: 3291.3
A47: 35 | B47: 35-39 | D47: 12941.54 | E47: 9283.48 | F47: 6379.08 | G47: 4678.31 | H47: 3685.62
A48: 40 | B48: 40-44 | D48: 15009.6 | E48: 10155.33 | F48: 7081.33 | G48: 5145.24 | H48: 4052.38
A49: 45 | B49: 45-49 | D49: 16779.8 | E49: 11357.9 | F49: 7914.49 | G49: 5747.32 | H49: 4530.44
A50: 50 | B50: 50-54 | D50: 21471.36 | E50: 14902.54 | F50: 10327.05 | G50: 8125.96 | H50: 6405.05
A51: 55 | B51: 55-59 | D51: 22845.12 | E51: 15858.66 | F51: 10984.78 | G51: 8644.83 | H51: 6817.92
A52: 60 | B52: 60 | D52: 24886.68 | E52: 17300.26 | F52: 12644.74 | G52: 10413.97 | H52: 8471.52
A53: 61 | B53: 61 | D53: 26736.38 | E53: 18591.34 | F53: 13579.13 | G53: 11196.78 | H53: 9102.22
A54: 62 | B54: 62 | D54: 29272.43 | E54: 20361.01 | F54: 14874.45 | G54: 12252.54 | H54: 9967.18
A55: 63 | B55: 63 | D55: 31125.84 | E55: 21649.44 | F55: 15808.31 | G55: 13036.41 | H55: 10594.7
A56: 64 | B56: 64 | D56: 33667.72 | E56: 23424.41 | F56: 17109.99 | G56: 14098 | H56: 11471.32
A57: 65 | B57: 65 | D57: 44016.5 | E57: 30555.56 | F57: 21633.01 | G57: 18804.93 | H57: 16175.6
A58: 66 | B58: 66 | D58: 51134.93 | E58: 35505.76 | F58: 25135.78 | G58: 21861.44 | H58: 18793.27
A59: 67 | B59: 67 | D59: 55855.64 | E59: 38779.57 | F59: 27456.12 | G59: 23871.2 | H59: 20530.61
A60: 68 | B60: 68 | D60: =$G$2*D25 -> 61848.88 | E60: 42935.83 | F60: 30403.45 | G60: 26437.99 | H60: 22732.76
A61: 69 | B61: 69 | D61: 68050.41 | E61: 47237.84 | F61: 33453.07 | G61: 29086.4 | H61: 25016.53
A62: 70 | B62: 70 | D62: 83747.95 | E62: 57523.55 | F62: 39380.06 | G62: 33890.85 | H62: 29428.25
A63: 71 | B63: 71 | D63: 87040.84 | E63: 59779.76 | F63: 40929.78 | G63: 35226.98 | H63: 30584.18
A64: 72 | B64: 72 | D64: 89506.4 | E64: 61473.11 | F64: 42079.88 | G64: 36224.44 | H64: 31449.67
A65: 73 | B65: 73 | D65: 92792.4 | E65: 63734.62 | F65: 43628.54 | G65: 37557.39 | H65: 32598.71
A66: 74 | B66: 74 | D66: 94435.93 | E66: 64861.93 | F66: 44409.23 | G66: 38221.48 | H66: 33182.24
A67: 75 | B67: 75+ | D67: 98546.61 | E67: 67683.12 | F67: 46334.19 | G67: 39886.21 | H67: 34631.79
A68: 1 | B68: 1 Child | D68: 3679.26 | E68: 2710.42 | F68: 2051.63 | G68: 1669.5 | H68: 1298.5
A69: 2 | B69: 2 Children | D69: 5852.26 | E69: 4317.38 | F69: 3264.8 | G69: 2649.47 | H69: 2066.47
A70: 3 | B70: 3+ Children | D70: 8581.76 | E70: 6322.9 | F70: 4780.07 | G70: 3882.78 | H70: 3023.65
A71: 1 | B71: Rider Comp. Maternidad | D71: =+D36*$G$2 -> 0 | E71: 0 | F71: 119.25 | G71: 119.25 | H71: 119.25
A72: 1 | B72: Transplante de organos | D72: 0 | E72: 0 | F72: 0 | G72: 0 | H72: 0
A78: DIAMOND (LATINAMERICA ONLY)
A79: TARIFAS ANUALES
A80: EDAD
C81: DL1 | D81: DL2 | E81: DL3 | F81: DL4 | G81: DL5 | H81: DL6
A82: 18 | B82: - 24
A83: 25 | B83: - 29
A84: 30 | B84: - 34
A85: 35 | B85: - 39
A86: 40 | B86: - 44
A87: 45 | B87: - 49
A88: 50 | B88: - 54
A89: 55 | B89: - 59
A90: 60
A91: 61
A92: 62
A93: 63
A94: 64
A95: 65
A96: 66
A97: 67
A98: 68
A99: 69
A100: 70
A101: 71
A102: 72
A103: 73
A104: 74
A105: 75 | B105: o más
A106: 1 | B106: Hijo
A107: 2 | B107: Hijos
A108: 3 | B108: Hijos o más
A109: 1 | B109: Rider Comp. Maternidad
A110: 1 | B110: Transplante de organos | C110: 0 | D110: 0 | E110: 0 | F110: 0 | G110: 0 | H110: 0
A112: TARIFAS SEMESTRALES
A113: EDAD
C114: DL1 | D114: DL2 | E114: DL3 | F114: DL4 | G114: DL5 | H114: DL6
A115: 18 | B115: - 24 | C115: =+C82*$G$2 -> 0 | D115: 0 | E115: 0 | F115: 0 | G115: 0 | H115: 0
A116: 25 | B116: - 29 | C116: 0 | D116: 0 | E116: 0 | F116: 0 | G116: 0 | H116: 0
A117: 30 | B117: - 34 | C117: 0 | D117: 0 | E117: 0 | F117: 0 | G117: 0 | H117: 0
A118: 35 | B118: - 39 | C118: 0 | D118: 0 | E118: 0 | F118: 0 | G118: 0 | H118: 0
A119: 40 | B119: - 44 | C119: 0 | D119: 0 | E119: 0 | F119: 0 | G119: 0 | H119: 0
A120: 45 | B120: - 49 | C120: 0 | D120: 0 | E120: 0 | F120: 0 | G120: 0 | H120: 0
A121: 50 | B121: - 54 | C121: 0 | D121: 0 | E121: 0 | F121: 0 | G121: 0 | H121: 0
A122: 55 | B122: - 59 | C122: 0 | D122: 0 | E122: 0 | F122: 0 | G122: 0 | H122: 0
A123: 60 | C123: 0 | D123: 0 | E123: 0 | F123: 0 | G123: 0 | H123: 0
A124: 61 | C124: 0 | D124: 0 | E124: 0 | F124: 0 | G124: 0 | H124: 0
A125: 62 | C125: 0 | D125: 0 | E125: 0 | F125: 0 | G125: 0 | H125: 0
A126: 63 | C126: 0 | D126: 0 | E126: 0 | F126: 0 | G126: 0 | H126: 0
A127: 64 | C127: 0 | D127: 0 | E127: 0 | F127: 0 | G127: 0 | H127: 0
A128: 65 | C128: 0 | D128: 0 | E128: 0 | F128: 0 | G128: 0 | H128: 0
A129: 66 | C129: 0 | D129: 0 | E129: 0 | F129: 0 | G129: 0 | H129: 0
A130: 67 | C130: 0 | D130: 0 | E130: 0 | F130: 0 | G130: 0 | H130: 0
A131: 68 | C131: =+C98*$G$2 -> 0 | D131: 0 | E131: 0 | F131: 0 | G131: 0 | H131: 0
A132: 69 | C132: 0 | D132: 0 | E132: 0 | F132: 0 | G132: 0 | H132: 0
A133: 70 | C133: 0 | D133: 0 | E133: 0 | F133: 0 | G133: 0 | H133: 0
A134: 71 | C134: 0 | D134: 0 | E134: 0 | F134: 0 | G134: 0 | H134: 0
A135: 72 | C135: 0 | D135: 0 | E135: 0 | F135: 0 | G135: 0 | H135: 0
A136: 73 | C136: 0 | D136: 0 | E136: 0 | F136: 0 | G136: 0 | H136: 0
A137: 74 | C137: 0 | D137: 0 | E137: 0 | F137: 0 | G137: 0 | H137: 0
A138: 75 | B138: o más | C138: 0 | D138: 0 | E138: 0 | F138: 0 | G138: 0 | H138: 0
A139: 1 | B139: Hijo | C139: 0 | D139: 0 | E139: 0 | F139: 0 | G139: 0 | H139: 0
A140: 2 | B140: Hijos | C140: 0 | D140: 0 | E140: 0 | F140: 0 | G140: 0 | H140: 0
A141: 3 | B141: Hijos o más | C141: 0 | D141: 0 | E141: 0 | F141: 0 | G141: 0 | H141: 0
A142: 1 | B142: Rider Comp. Maternidad | C142: 0 | D142: 0 | E142: 0 | F142: 0 | G142: 0 | H142: 0
A143: 1 | B143: Transplante de organos | C143: 0 | D143: 0 | E143: 0 | F143: 0 | G143: 0 | H143: 0
A148: BUPA PRIVILEGE CARE
A149: TARIFAS ANUALES
A150: EDAD
C151: CW1 | D151: CW2 | E151: CW3 | F151: CW4 | G151: CW5 | H151: CW6
A152: 18 | B152: 18-24 | D152: 16807 | E152: 11553 | F152: 7523 | G152: 5153 | H152: 3919
A153: 25 | B153: 25-29 | D153: 17628 | E153: 12782 | F153: 8331 | G153: 5704 | H153: 4342
A154: 30 | B154: 30-34 | D154: 18417 | E154: 13671 | F154: 9351 | G154: 6892 | H154: 5273
A155: 35 | B155: 35-39 | D155: 20616 | E155: 15304 | F155: 10479 | G155: 7731 | H155: 5903
A156: 40 | B156: 40-44 | D156: 23869 | E156: 16785 | F156: 11649 | G156: 8526 | H156: 6517
A157: 45 | B157: 45-49 | D157: 26667 | E157: 18755 | F157: 13014 | G157: 9530 | H157: 7278
A158: 50 | B158: 50-54 | D158: 34855 | E158: 24739 | F158: 17089 | G158: 13587 | H158: 10391
A159: 55 | B159: 55-59 | D159: 37077 | E159: 26316 | F159: 18184 | G159: 14464 | H159: 11056
A160: 60 | B160: 60 | D160: 40378 | E160: 28572 | F160: 20695 | G160: 17198 | H160: 13826
A161: 61 | B161: 61 | D161: 43379 | E161: 30693 | F161: 22232 | G161: 18485 | H161: 14848
A162: 62 | B162: 62 | D162: 47484 | E162: 33618 | F162: 24345 | G162: 20239 | H162: 16258
A163: 63 | B163: 63 | D163: 50495 | E163: 35740 | F163: 25882 | G163: 21529 | H163: 17283
A164: 64 | B164: 64 | D164: 54611 | E164: 38672 | F164: 28004 | G164: 23288 | H164: 18702
A165: 65 | B165: 65 | D165: 71403 | E165: 50431 | F165: 35402 | G165: 31048 | H165: 26366
A166: 66 | B166: 66 | D166: 82942 | E166: 58598 | F166: 41135 | G166: 36085 | H166: 30634
A167: 67 | B167: 67 | D167: 90584 | E167: 63998 | F167: 44928 | G167: 39396 | H167: 33461
A168: 68 | B168: 68 | D168: 100305 | E168: 70855 | F168: 49754 | G168: 43630 | H168: 37051
A169: 69 | B169: 69 | D169: 110353 | E169: 77953 | F169: 54729 | G169: 47998 | H169: 40770
A170: 70 | B170: 70 | D170: 135813 | E170: 94922 | F170: 64427 | G170: 55943 | H170: 47941
A171: 71 | B171: 71 | D171: 141147 | E171: 98635 | F171: 66947 | G171: 58133 | H171: 49835
A172: 72 | B172: 72 | D172: 145148 | E172: 101426 | F172: 68852 | G172: 59779 | H172: 51239
A173: 73 | B173: 73 | D173: 150470 | E173: 105160 | F173: 71375 | G173: 61978 | H173: 53137
A174: 74 | B174: 74 | D174: 153134 | E174: 107015 | F174: 72639 | G174: 63083 | H174: 54064
A175: 75 | B175: 75+ | D175: 159803 | E175: 111677 | F175: 75799 | G175: 65822 | H175: 56417
A176: 1 | B176: 1 Child | D176: 5826 | E176: 4251 | F176: 3056 | G176: 2487 | H176: 1845
A177: 2 | B177: 2 Children | D177: 9259 | E177: 6775 | F177: 4872 | G177: 3960 | H177: 2931
A178: 3 | B178: 3+ Children | D178: 13581 | E178: 9925 | F178: 7132 | G178: 5802 | H178: 4297
A179: 1 | B179: Rider Comp. Maternidad | D179: 0 | E179: 0 | F179: 225 | G179: 225 | H179: 225
A180: 1 | B180: Transplante de organos | D180: 0 | E180: 0 | F180: 0 | G180: 0 | H180: 0
A184: TARIFAS SEMESTRALES
A185: EDAD
D186: CW2 | E186: CW3 | F186: CW4 | G186: CW5 | H186: CW6
A187: 18 | B187: 18-24 | D187: =$G$2*D152 -> 8907.71 | E187: 6123.09 | F187: 3987.19 | G187: 2731.09 | H187: 2077.07
A188: 25 | B188: 25-29 | D188: 9342.84 | E188: 6774.46 | F188: 4415.43 | G188: 3023.12 | H188: 2301.26
A189: 30 | B189: 30-34 | D189: 9761.01 | E189: 7245.63 | F189: 4956.03 | G189: 3652.76 | H189: 2794.69
A190: 35 | B190: 35-39 | D190: 10926.48 | E190: 8111.12 | F190: 5553.87 | G190: 4097.43 | H190: 3128.59
A191: 40 | B191: 40-44 | D191: 12650.57 | E191: 8896.05 | F191: 6173.97 | G191: 4518.78 | H191: 3454.01
A192: 45 | B192: 45-49 | D192: 14133.51 | E192: 9940.15 | F192: 6897.42 | G192: 5050.9 | H192: 3857.34
A193: 50 | B193: 50-54 | D193: 18473.15 | E193: 13111.67 | F193: 9057.17 | G193: 7201.11 | H193: 5507.23
A194: 55 | B194: 55-59 | D194: 19650.81 | E194: 13947.48 | F194: 9637.52 | G194: 7665.92 | H194: 5859.68
A195: 60 | B195: 60 | D195: 21400.34 | E195: 15143.16 | F195: 10968.35 | G195: 9114.94 | H195: 7327.78
A196: 61 | B196: 61 | D196: 22990.87 | E196: 16267.29 | F196: 11782.96 | G196: 9797.05 | H196: 7869.44
A197: 62 | B197: 62 | D197: 25166.52 | E197: 17817.54 | F197: 12902.85 | G197: 10726.67 | H197: 8616.74
A198: 63 | B198: 63 | D198: 26762.35 | E198: 18942.2 | F198: 13717.46 | G198: 11410.37 | H198: 9159.99
A199: 64 | B199: 64 | D199: 28943.83 | E199: 20496.16 | F199: 14842.12 | G199: 12342.64 | H199: 9912.06
A200: 65 | B200: 65 | D200: 37843.59 | E200: 26728.43 | F200: 18763.06 | G200: 16455.44 | H200: 13973.98
A201: 66 | B201: 66 | D201: 43959.26 | E201: 31056.94 | F201: 21801.55 | G201: 19125.05 | H201: 16236.02
A202: 67 | B202: 67 | D202: 48009.52 | E202: 33918.94 | F202: 23811.84 | G202: 20879.88 | H202: 17734.33
A203: 68 | B203: 68 | D203: =$G$2*D168 -> 53161.65 | E203: 37553.15 | F203: 26369.62 | G203: 23123.9 | H203: 19637.03
A204: 69 | B204: 69 | D204: 58487.09 | E204: 41315.09 | F204: 29006.37 | G204: 25438.94 | H204: 21608.1
A205: 70 | B205: 70 | D205: 71980.89 | E205: 50308.66 | F205: 34146.31 | G205: 29649.79 | H205: 25408.73
A206: 71 | B206: 71 | D206: 74807.91 | E206: 52276.55 | F206: 35481.91 | G206: 30810.49 | H206: 26412.55
A207: 72 | B207: 72 | D207: 76928.44 | E207: 53755.78 | F207: 36491.56 | G207: 31682.87 | H207: 27156.67
A208: 73 | B208: 73 | D208: 79749.1 | E208: 55734.8 | F208: 37828.75 | G208: 32848.34 | H208: 28162.61
A209: 74 | B209: 74 | D209: 81161.02 | E209: 56717.95 | F209: 38498.67 | G209: 33433.99 | H209: 28653.92
A210: 75 | B210: 75+ | D210: 84695.59 | E210: 59188.81 | F210: 40173.47 | G210: 34885.66 | H210: 29901.01
A211: 1 | B211: 1 Child | D211: 3087.78 | E211: 2253.03 | F211: 1619.68 | G211: 1318.11 | H211: 977.85
A212: 2 | B212: 2 Children | D212: 4907.27 | E212: 3590.75 | F212: 2582.16 | G212: 2098.8 | H212: 1553.43
A213: 3 | B213: 3+ Children | D213: 7197.93 | E213: 5260.25 | F213: 3779.96 | G213: 3075.06 | H213: 2277.41
A214: 1 | B214: Rider Comp. Maternidad | D214: =+D179*$G$2 -> 0 | E214: 0 | F214: 119.25 | G214: 119.25 | H214: 119.25
A215: 1 | B215: Transplante de organos | D215: 0 | E215: 0 | F215: 0 | G215: 0 | H215: 0
A220: COMPLETE (LATINAMERICA ONLY)
A221: TARIFAS ANUALES
A222: EDAD
... 335 more rows

Sheet 5 (hidden)
K1: D1 | L1: D2 | M1: D3 | N1: D4 | O1: D5 | P1: D6
B2: REGIÓN | C2: ='INSURED INFORMATION'!W14 -> 8 | E2: FACTOR SEMESTRAL : | G2: 0.53 | I2: NEW BUSINESS DISCUOUNTS | K2: ='INSURED INFORMATION'!P53 -> 1 | L2: ='INSURED INFORMATION'!Q53 -> 1 | M2: ='INSURED INFORMATION'!R53 -> 1 | N2: ='INSURED INFORMATION'!S53 -> 1 | O2: ='INSURED INFORMATION'!T53 -> 1 | P2: ='INSURED INFORMATION'!U53 -> 1
A5: BUPA EXCLUSIVE CARE
A6: TARIFAS ANUALES
A7: EDAD
C8: DW1 | D8: DW2 | E8: DW3 | F8: DW4 | G8: DW5 | H8: DW6
A9: 18 | B9: 18-24 | D9: 12025 | E9: 7956 | F9: 5536 | G9: 3807 | H9: 2993
A10: 25 | B10: 25-29 | D10: 12613 | E10: 8787 | F10: 6128 | G10: 4209 | H10: 3314
A11: 30 | B11: 30-34 | D11: 13118 | E11: 9421 | F11: 6860 | G11: 5040 | H11: 3976
A12: 35 | B12: 35-39 | D12: 14696 | E12: 10550 | F12: 7686 | G12: 5648 | H12: 4452
A13: 40 | B13: 40-44 | D13: 17029 | E13: 11528 | F13: 8531 | G13: 6202 | H13: 4891
A14: 45 | B14: 45-49 | D14: 19035 | E14: 12895 | F14: 9524 | G14: 6935 | H14: 5466
A15: 50 | B15: 50-54 | D15: 24360 | E15: 16910 | F15: 12431 | G15: 9793 | H15: 7725
A16: 55 | B16: 55-59 | D16: 25912 | E16: 17994 | F16: 13225 | G16: 10417 | H16: 8221
A17: 60 | B17: 60 | D17: 28224 | E17: 19631 | F17: 15209 | G17: 12544 | H17: 10210
A18: 61 | B18: 61 | D18: 30326 | E18: 21092 | F18: 16328 | G18: 13481 | H18: 10966
A19: 62 | B19: 62 | D19: 33204 | E19: 23094 | F19: 17891 | G19: 14752 | H19: 12004
A20: 63 | B20: 63 | D20: 35298 | E20: 24554 | F20: 19014 | G20: 15695 | H20: 12767
A21: 64 | B21: 64 | D21: 38182 | E21: 26571 | F21: 20573 | G21: 16974 | H21: 13810
A22: 65 | B22: 65 | D22: 49902 | E22: 34651 | F22: 26005 | G22: 22631 | H22: 19468
A23: 66 | B23: 66 | D23: 57970 | E23: 40257 | F23: 30218 | G23: 26300 | H23: 22619
A24: 67 | B24: 67 | D24: 63322 | E24: 43965 | F24: 33005 | G24: 28723 | H24: 24700
A25: 68 | B25: 68 | D25: 70108 | E25: 48679 | F25: 36540 | G25: 31807 | H25: 27358
A26: 69 | B26: 69 | D26: 77142 | E26: 53567 | F26: 40201 | G26: 34989 | H26: 30096
A27: 70 | B27: 70 | D27: 94934 | E27: 65214 | F27: 47326 | G27: 40770 | H27: 35393
A28: 71 | B28: 71 | D28: 98660 | E28: 67778 | F28: 49183 | G28: 42375 | H28: 36783
A29: 72 | B29: 72 | D29: 101458 | E29: 69685 | F29: 50569 | G29: 43572 | H29: 37833
A30: 73 | B30: 73 | D30: 105182 | E30: 72247 | F30: 52428 | G30: 45178 | H30: 39219
A31: 74 | B31: 74 | D31: 107042 | E31: 73522 | F31: 53360 | G31: 45972 | H31: 39911
A32: 75 | B32: 75+ | D32: 111702 | E32: 76728 | F32: 55678 | G32: 47976 | H32: 41651
A33: 1 | B33: 1 Child | D33: 4177 | E33: 3073 | F33: 2467 | G33: 2005 | H33: 1566
A34: 2 | B34: 2 Children | D34: 6636 | E34: 4894 | F34: 3918 | G34: 3185 | H34: 2479
A35: 3 | B35: 3+ Children | D35: 9731 | E35: 7162 | F35: 5744 | G35: 4669 | H35: 3638
A36: 1 | B36: Rider Comp. Maternidad | D36: 0 | E36: 0 | F36: 225 | G36: 225 | H36: 225
A37: 1 | B37: Transplante de organos | D37: 0 | E37: 0 | F37: 0 | G37: 0 | H37: 0
A41: TARIFAS SEMESTRALES
A42: EDAD
D43: DW2 | E43: DW3 | F43: DW4 | G43: DW5 | H43: DW6
A44: 18 | B44: 18-24 | D44: =$G$2*D9 -> 6373.25 | E44: 4216.68 | F44: 2934.08 | G44: 2017.71 | H44: 1586.29
A45: 25 | B45: 25-29 | D45: 6684.89 | E45: 4657.11 | F45: 3247.84 | G45: 2230.77 | H45: 1756.42
A46: 30 | B46: 30-34 | D46: 6952.54 | E46: 4993.13 | F46: 3635.8 | G46: 2671.2 | H46: 2107.28
A47: 35 | B47: 35-39 | D47: 7788.88 | E47: 5591.5 | F47: 4073.58 | G47: 2993.44 | H47: 2359.56
A48: 40 | B48: 40-44 | D48: 9025.37 | E48: 6109.84 | F48: 4521.43 | G48: 3287.06 | H48: 2592.23
A49: 45 | B49: 45-49 | D49: 10088.55 | E49: 6834.35 | F49: 5047.72 | G49: 3675.55 | H49: 2896.98
A50: 50 | B50: 50-54 | D50: 12910.8 | E50: 8962.3 | F50: 6588.43 | G50: 5190.29 | H50: 4094.25
A51: 55 | B51: 55-59 | D51: 13733.36 | E51: 9536.82 | F51: 7009.25 | G51: 5521.01 | H51: 4357.13
A52: 60 | B52: 60 | D52: 14958.72 | E52: 10404.43 | F52: 8060.77 | G52: 6648.32 | H52: 5411.3
A53: 61 | B53: 61 | D53: 16072.78 | E53: 11178.76 | F53: 8653.84 | G53: 7144.93 | H53: 5811.98
A54: 62 | B54: 62 | D54: 17598.12 | E54: 12239.82 | F54: 9482.23 | G54: 7818.56 | H54: 6362.12
A55: 63 | B55: 63 | D55: 18707.94 | E55: 13013.62 | F55: 10077.42 | G55: 8318.35 | H55: 6766.51
A56: 64 | B56: 64 | D56: 20236.46 | E56: 14082.63 | F56: 10903.69 | G56: 8996.22 | H56: 7319.3
A57: 65 | B57: 65 | D57: 26448.06 | E57: 18365.03 | F57: 13782.65 | G57: 11994.43 | H57: 10318.04
A58: 66 | B58: 66 | D58: 30724.1 | E58: 21336.21 | F58: 16015.54 | G58: 13939 | H58: 11988.07
A59: 67 | B59: 67 | D59: 33560.66 | E59: 23301.45 | F59: 17492.65 | G59: 15223.19 | H59: 13091
A60: 68 | B60: 68 | D60: =$G$2*D25 -> 37157.24 | E60: 25799.87 | F60: 19366.2 | G60: 16857.71 | H60: 14499.74
A61: 69 | B61: 69 | D61: 40885.26 | E61: 28390.51 | F61: 21306.53 | G61: 18544.17 | H61: 15950.88
A62: 70 | B62: 70 | D62: 50315.02 | E62: 34563.42 | F62: 25082.78 | G62: 21608.1 | H62: 18758.29
A63: 71 | B63: 71 | D63: 52289.8 | E63: 35922.34 | F63: 26066.99 | G63: 22458.75 | H63: 19494.99
A64: 72 | B64: 72 | D64: 53772.74 | E64: 36933.05 | F64: 26801.57 | G64: 23093.16 | H64: 20051.49
A65: 73 | B65: 73 | D65: 55746.46 | E65: 38290.91 | F65: 27786.84 | G65: 23944.34 | H65: 20786.07
A66: 74 | B66: 74 | D66: 56732.26 | E66: 38966.66 | F66: 28280.8 | G66: 24365.16 | H66: 21152.83
A67: 75 | B67: 75+ | D67: 59202.06 | E67: 40665.84 | F67: 29509.34 | G67: 25427.28 | H67: 22075.03
A68: 1 | B68: 1 Child | D68: 2213.81 | E68: 1628.69 | F68: 1307.51 | G68: 1062.65 | H68: 829.98
A69: 2 | B69: 2 Children | D69: 3517.08 | E69: 2593.82 | F69: 2076.54 | G69: 1688.05 | H69: 1313.87
A70: 3 | B70: 3+ Children | D70: 5157.43 | E70: 3795.86 | F70: 3044.32 | G70: 2474.57 | H70: 1928.14
A71: 1 | B71: Rider Comp. Maternidad | D71: =+D36*$G$2 -> 0 | E71: 0 | F71: 119.25 | G71: 119.25 | H71: 119.25
A72: 1 | B72: Transplante de organos | D72: 0 | E72: 0 | F72: 0 | G72: 0 | H72: 0
A78: DIAMOND (LATINAMERICA ONLY)
A79: TARIFAS ANUALES
A80: EDAD
C81: DL1 | D81: DL2 | E81: DL3 | F81: DL4 | G81: DL5 | H81: DL6
A82: 18 | B82: - 24
A83: 25 | B83: - 29
A84: 30 | B84: - 34
A85: 35 | B85: - 39
A86: 40 | B86: - 44
A87: 45 | B87: - 49
A88: 50 | B88: - 54
A89: 55 | B89: - 59
A90: 60
A91: 61
A92: 62
A93: 63
A94: 64
A95: 65
A96: 66
A97: 67
A98: 68
A99: 69
A100: 70
A101: 71
A102: 72
A103: 73
A104: 74
A105: 75 | B105: o más
A106: 1 | B106: Hijo
A107: 2 | B107: Hijos
A108: 3 | B108: Hijos o más
A109: 1 | B109: Rider Comp. Maternidad
A110: 1 | B110: Transplante de organos | C110: 0 | D110: 0 | E110: 0 | F110: 0 | G110: 0 | H110: 0
A112: TARIFAS SEMESTRALES
A113: EDAD
C114: DL1 | D114: DL2 | E114: DL3 | F114: DL4 | G114: DL5 | H114: DL6
A115: 18 | B115: - 24 | C115: =+C82*$G$2 -> 0 | D115: 0 | E115: 0 | F115: 0 | G115: 0 | H115: 0
A116: 25 | B116: - 29 | C116: 0 | D116: 0 | E116: 0 | F116: 0 | G116: 0 | H116: 0
A117: 30 | B117: - 34 | C117: 0 | D117: 0 | E117: 0 | F117: 0 | G117: 0 | H117: 0
A118: 35 | B118: - 39 | C118: 0 | D118: 0 | E118: 0 | F118: 0 | G118: 0 | H118: 0
A119: 40 | B119: - 44 | C119: 0 | D119: 0 | E119: 0 | F119: 0 | G119: 0 | H119: 0
A120: 45 | B120: - 49 | C120: 0 | D120: 0 | E120: 0 | F120: 0 | G120: 0 | H120: 0
A121: 50 | B121: - 54 | C121: 0 | D121: 0 | E121: 0 | F121: 0 | G121: 0 | H121: 0
A122: 55 | B122: - 59 | C122: 0 | D122: 0 | E122: 0 | F122: 0 | G122: 0 | H122: 0
A123: 60 | C123: 0 | D123: 0 | E123: 0 | F123: 0 | G123: 0 | H123: 0
A124: 61 | C124: 0 | D124: 0 | E124: 0 | F124: 0 | G124: 0 | H124: 0
A125: 62 | C125: 0 | D125: 0 | E125: 0 | F125: 0 | G125: 0 | H125: 0
A126: 63 | C126: 0 | D126: 0 | E126: 0 | F126: 0 | G126: 0 | H126: 0
A127: 64 | C127: 0 | D127: 0 | E127: 0 | F127: 0 | G127: 0 | H127: 0
A128: 65 | C128: 0 | D128: 0 | E128: 0 | F128: 0 | G128: 0 | H128: 0
A129: 66 | C129: 0 | D129: 0 | E129: 0 | F129: 0 | G129: 0 | H129: 0
A130: 67 | C130: 0 | D130: 0 | E130: 0 | F130: 0 | G130: 0 | H130: 0
A131: 68 | C131: =+C98*$G$2 -> 0 | D131: 0 | E131: 0 | F131: 0 | G131: 0 | H131: 0
A132: 69 | C132: 0 | D132: 0 | E132: 0 | F132: 0 | G132: 0 | H132: 0
A133: 70 | C133: 0 | D133: 0 | E133: 0 | F133: 0 | G133: 0 | H133: 0
A134: 71 | C134: 0 | D134: 0 | E134: 0 | F134: 0 | G134: 0 | H134: 0
A135: 72 | C135: 0 | D135: 0 | E135: 0 | F135: 0 | G135: 0 | H135: 0
A136: 73 | C136: 0 | D136: 0 | E136: 0 | F136: 0 | G136: 0 | H136: 0
A137: 74 | C137: 0 | D137: 0 | E137: 0 | F137: 0 | G137: 0 | H137: 0
A138: 75 | B138: o más | C138: 0 | D138: 0 | E138: 0 | F138: 0 | G138: 0 | H138: 0
A139: 1 | B139: Hijo | C139: 0 | D139: 0 | E139: 0 | F139: 0 | G139: 0 | H139: 0
A140: 2 | B140: Hijos | C140: 0 | D140: 0 | E140: 0 | F140: 0 | G140: 0 | H140: 0
A141: 3 | B141: Hijos o más | C141: 0 | D141: 0 | E141: 0 | F141: 0 | G141: 0 | H141: 0
A142: 1 | B142: Rider Comp. Maternidad | C142: 0 | D142: 0 | E142: 0 | F142: 0 | G142: 0 | H142: 0
A143: 1 | B143: Transplante de organos | C143: 0 | D143: 0 | E143: 0 | F143: 0 | G143: 0 | H143: 0
A148: BUPA PRIVILEGE CARE
A149: TARIFAS ANUALES
A150: EDAD
C151: CW1 | D151: CW2 | E151: CW3 | F151: CW4 | G151: CW5 | H151: CW6
A152: 18 | B152: 18-24 | D152: 10115 | E152: 6955 | F152: 4806 | G152: 3287 | H152: 2504
A153: 25 | B153: 25-29 | D153: 10613 | E153: 7689 | F153: 5325 | G153: 3643 | H153: 2781
A154: 30 | B154: 30-34 | D154: 11091 | E154: 8241 | F154: 5965 | G154: 4413 | H154: 3365
A155: 35 | B155: 35-39 | D155: 12416 | E155: 9223 | F155: 6682 | G155: 4942 | H155: 3769
A156: 40 | B156: 40-44 | D156: 14372 | E156: 10102 | F156: 7430 | G156: 5448 | H156: 4158
A157: 45 | B157: 45-49 | D157: 16049 | E157: 11292 | F157: 8313 | G157: 6085 | H157: 4651
A158: 50 | B158: 50-54 | D158: 20980 | E158: 14889 | F158: 10910 | G158: 8684 | H158: 6637
A159: 55 | B159: 55-59 | D159: 22324 | E159: 15841 | F159: 11609 | G159: 9242 | H159: 7066
A160: 60 | B160: 60 | D160: 24311 | E160: 17207 | F160: 13205 | G160: 10996 | H160: 8827
A161: 61 | B161: 61 | D161: 26115 | E161: 18480 | F161: 14184 | G161: 11809 | H161: 9479
A162: 62 | B162: 62 | D162: 28588 | E162: 20239 | F162: 15536 | G162: 12929 | H162: 10385
A163: 63 | B163: 63 | D163: 30397 | E163: 21512 | F163: 16514 | G163: 13745 | H163: 11039
A164: 64 | B164: 64 | D164: 32877 | E164: 23275 | F164: 17865 | G164: 14870 | H164: 11944
A165: 65 | B165: 65 | D165: 42971 | E165: 30357 | F165: 22591 | G165: 19824 | H165: 16838
A166: 66 | B166: 66 | D166: 49925 | E166: 35267 | F166: 26245 | G166: 23036 | H166: 19570
A167: 67 | B167: 67 | D167: 54532 | E167: 38524 | F167: 28662 | G167: 25160 | H167: 21366
A168: 68 | B168: 68 | D168: 60385 | E168: 42654 | F168: 31746 | G168: 27870 | H168: 23659
A169: 69 | B169: 69 | D169: 66431 | E169: 46926 | F169: 34923 | G169: 30654 | H169: 26033
A170: 70 | B170: 70 | D170: 81752 | E170: 57135 | F170: 41104 | G170: 35723 | H170: 30622
A171: 71 | B171: 71 | D171: 84961 | E171: 59370 | F171: 42723 | G171: 37119 | H171: 31822
A172: 72 | B172: 72 | D172: 87357 | E172: 61058 | F172: 43930 | G172: 38175 | H172: 32723
A173: 73 | B173: 73 | D173: 90583 | E173: 63298 | F173: 45543 | G173: 39575 | H173: 33928
A174: 74 | B174: 74 | D174: 92181 | E174: 64420 | F174: 46344 | G174: 40275 | H174: 34526
A175: 75 | B175: 75+ | D175: 96191 | E175: 67216 | F175: 48365 | G175: 42030 | H175: 36030
A176: 1 | B176: 1 Child | D176: 3509 | E176: 2564 | F176: 1953 | G176: 1591 | H176: 1178
A177: 2 | B177: 2 Children | D177: 5583 | E177: 4083 | F177: 3106 | G177: 2532 | H177: 1872
A178: 3 | B178: 3+ Children | D178: 8178 | E178: 5983 | F178: 4553 | G178: 3707 | H178: 2746
A179: 1 | B179: Rider Comp. Maternidad | D179: 0 | E179: 0 | F179: 225 | G179: 225 | H179: 225
A180: 1 | B180: Transplante de organos | D180: 0 | E180: 0 | F180: 0 | G180: 0 | H180: 0
A184: TARIFAS SEMESTRALES
A185: EDAD
D186: CW2 | E186: CW3 | F186: CW4 | G186: CW5 | H186: CW6
A187: 18 | B187: 18-24 | D187: =$G$2*D152 -> 5360.95 | E187: 3686.15 | F187: 2547.18 | G187: 1742.11 | H187: 1327.12
A188: 25 | B188: 25-29 | D188: 5624.89 | E188: 4075.17 | F188: 2822.25 | G188: 1930.79 | H188: 1473.93
A189: 30 | B189: 30-34 | D189: 5878.23 | E189: 4367.73 | F189: 3161.45 | G189: 2338.89 | H189: 1783.45
A190: 35 | B190: 35-39 | D190: 6580.48 | E190: 4888.19 | F190: 3541.46 | G190: 2619.26 | H190: 1997.57
A191: 40 | B191: 40-44 | D191: 7617.16 | E191: 5354.06 | F191: 3937.9 | G191: 2887.44 | H191: 2203.74
A192: 45 | B192: 45-49 | D192: 8505.97 | E192: 5984.76 | F192: 4405.89 | G192: 3225.05 | H192: 2465.03
A193: 50 | B193: 50-54 | D193: 11119.4 | E193: 7891.17 | F193: 5782.3 | G193: 4602.52 | H193: 3517.61
A194: 55 | B194: 55-59 | D194: 11831.72 | E194: 8395.73 | F194: 6152.77 | G194: 4898.26 | H194: 3744.98
A195: 60 | B195: 60 | D195: 12884.83 | E195: 9119.71 | F195: 6998.65 | G195: 5827.88 | H195: 4678.31
A196: 61 | B196: 61 | D196: 13840.95 | E196: 9794.4 | F196: 7517.52 | G196: 6258.77 | H196: 5023.87
A197: 62 | B197: 62 | D197: 15151.64 | E197: 10726.67 | F197: 8234.08 | G197: 6852.37 | H197: 5504.05
A198: 63 | B198: 63 | D198: 16110.41 | E198: 11401.36 | F198: 8752.42 | G198: 7284.85 | H198: 5850.67
A199: 64 | B199: 64 | D199: 17424.81 | E199: 12335.75 | F199: 9468.45 | G199: 7881.1 | H199: 6330.32
A200: 65 | B200: 65 | D200: 22774.63 | E200: 16089.21 | F200: 11973.23 | G200: 10506.72 | H200: 8924.14
A201: 66 | B201: 66 | D201: 26460.25 | E201: 18691.51 | F201: 13909.85 | G201: 12209.08 | H201: 10372.1
A202: 67 | B202: 67 | D202: 28901.96 | E202: 20417.72 | F202: 15190.86 | G202: 13334.8 | H202: 11323.98
A203: 68 | B203: 68 | D203: =$G$2*D168 -> 32004.05 | E203: 22606.62 | F203: 16825.38 | G203: 14771.1 | H203: 12539.27
A204: 69 | B204: 69 | D204: 35208.43 | E204: 24870.78 | F204: 18509.19 | G204: 16246.62 | H204: 13797.49
A205: 70 | B205: 70 | D205: 43328.56 | E205: 30281.55 | F205: 21785.12 | G205: 18933.19 | H205: 16229.66
A206: 71 | B206: 71 | D206: 45029.33 | E206: 31466.1 | F206: 22643.19 | G206: 19673.07 | H206: 16865.66
A207: 72 | B207: 72 | D207: 46299.21 | E207: 32360.74 | F207: 23282.9 | G207: 20232.75 | H207: 17343.19
A208: 73 | B208: 73 | D208: 48008.99 | E208: 33547.94 | F208: 24137.79 | G208: 20974.75 | H208: 17981.84
A209: 74 | B209: 74 | D209: 48855.93 | E209: 34142.6 | F209: 24562.32 | G209: 21345.75 | H209: 18298.78
A210: 75 | B210: 75+ | D210: 50981.23 | E210: 35624.48 | F210: 25633.45 | G210: 22275.9 | H210: 19095.9
A211: 1 | B211: 1 Child | D211: 1859.77 | E211: 1358.92 | F211: 1035.09 | G211: 843.23 | H211: 624.34
A212: 2 | B212: 2 Children | D212: 2958.99 | E212: 2163.99 | F212: 1646.18 | G212: 1341.96 | H212: 992.16
A213: 3 | B213: 3+ Children | D213: 4334.34 | E213: 3170.99 | F213: 2413.09 | G213: 1964.71 | H213: 1455.38
A214: 1 | B214: Rider Comp. Maternidad | D214: =+D179*$G$2 -> 0 | E214: 0 | F214: 119.25 | G214: 119.25 | H214: 119.25
A215: 1 | B215: Transplante de organos | D215: 0 | E215: 0 | F215: 0 | G215: 0 | H215: 0
A220: COMPLETE (LATINAMERICA ONLY)
A221: TARIFAS ANUALES
A222: EDAD
... 335 more rows

Sheet 6 (hidden)
K1: D1 | L1: D2 | M1: D3 | N1: D4 | O1: D5 | P1: D6
B2: REGIÓN | C2: ='INSURED INFORMATION'!W14 -> 8 | E2: FACTOR SEMESTRAL : | G2: 0.53 | I2: NEW BUSINESS DISCUOUNTS | K2: ='INSURED INFORMATION'!P53 -> 1 | L2: ='INSURED INFORMATION'!Q53 -> 1 | M2: ='INSURED INFORMATION'!R53 -> 1 | N2: ='INSURED INFORMATION'!S53 -> 1 | O2: ='INSURED INFORMATION'!T53 -> 1 | P2: ='INSURED INFORMATION'!U53 -> 1
A5: BUPA EXCLUSIVE CARE
A6: TARIFAS ANUALES
A7: EDAD
C8: DW1 | D8: DW2 | E8: DW3 | F8: DW4 | G8: DW5 | H8: DW6
A9: 18 | B9: 18-24 | D9: 14445 | E9: 9556 | F9: 6490 | G9: 4376 | H9: 3445
A10: 25 | B10: 25-29 | D10: 15151 | E10: 10549 | F10: 7190 | G10: 4844 | H10: 3815
A11: 30 | B11: 30-34 | D11: 15752 | E11: 11323 | F11: 8049 | G11: 5796 | H11: 4573
A12: 35 | B12: 35-39 | D12: 17647 | E12: 12673 | F12: 9019 | G12: 6501 | H12: 5124
A13: 40 | B13: 40-44 | D13: 20453 | E13: 13863 | F13: 10004 | G13: 7144 | H13: 5629
A14: 45 | B14: 45-49 | D14: 22868 | E14: 15496 | F14: 11181 | G14: 7984 | H14: 6295
A15: 50 | B15: 50-54 | D15: 29255 | E15: 20323 | F15: 14590 | G15: 11275 | H15: 8890
A16: 55 | B16: 55-59 | D16: 31124 | E16: 21622 | F16: 15518 | G16: 11992 | H16: 9461
A17: 60 | B17: 60 | D17: 33906 | E17: 23591 | F17: 17852 | G17: 14444 | H17: 11750
A18: 61 | B18: 61 | D18: 36422 | E18: 25342 | F18: 19172 | G18: 15528 | H18: 12626
A19: 62 | B19: 62 | D19: 39879 | E19: 27760 | F19: 20999 | G19: 16988 | H19: 13829
A20: 63 | B20: 63 | D20: 42406 | E20: 29513 | F20: 22310 | G20: 18068 | H20: 14698
A21: 64 | B21: 64 | D21: 45861 | E21: 31933 | F21: 24140 | G21: 19549 | H21: 15899
A22: 65 | B22: 65 | D22: 59951 | E22: 41646 | F22: 30518 | G22: 26063 | H22: 22413
A23: 66 | B23: 66 | D23: 69639 | E23: 48386 | F23: 35470 | G23: 30289 | H23: 26047
A24: 67 | B24: 67 | D24: 76077 | E24: 52845 | F24: 38741 | G24: 33078 | H24: 28449
A25: 68 | B25: 68 | D25: 84224 | E25: 58519 | F25: 42893 | G25: 36632 | H25: 31505
A26: 69 | B26: 69 | D26: 92670 | E26: 64379 | F26: 47187 | G26: 40299 | H26: 34664
A27: 70 | B27: 70 | D27: 114050 | E27: 78385 | F27: 55553 | G27: 46955 | H27: 40765
A28: 71 | B28: 71 | D28: 118527 | E28: 81461 | F28: 57732 | G28: 48802 | H28: 42370
A29: 72 | B29: 72 | D29: 121884 | E29: 83761 | F29: 59358 | G29: 50186 | H29: 43576
A30: 73 | B30: 73 | D30: 126361 | E30: 86839 | F30: 61542 | G30: 52034 | H30: 45176
A31: 74 | B31: 74 | D31: 128594 | E31: 88374 | F31: 62630 | G31: 52951 | H31: 45980
A32: 75 | B32: 75+ | D32: 134199 | E32: 92216 | F32: 65357 | G32: 55264 | H32: 47976
A33: 1 | B33: 1 Child | D33: 5017 | E33: 3693 | F33: 2892 | G33: 2312 | H33: 1808
A34: 2 | B34: 2 Children | D34: 7971 | E34: 5874 | F34: 4603 | G34: 3668 | H34: 2855
A35: 3 | B35: 3+ Children | D35: 11688 | E35: 8614 | F35: 6739 | G35: 5383 | H35: 4192
A36: 1 | B36: Rider Comp. Maternidad | D36: 0 | E36: 0 | F36: 225 | G36: 225 | H36: 225
A37: 1 | B37: Transplante de organos | D37: 0 | E37: 0 | F37: 0 | G37: 0 | H37: 0
A41: TARIFAS SEMESTRALES
A42: EDAD
D43: DW2 | E43: DW3 | F43: DW4 | G43: DW5 | H43: DW6
A44: 18 | B44: 18-24 | D44: =$G$2*D9 -> 7655.85 | E44: 5064.68 | F44: 3439.7 | G44: 2319.28 | H44: 1825.85
A45: 25 | B45: 25-29 | D45: 8030.03 | E45: 5590.97 | F45: 3810.7 | G45: 2567.32 | H45: 2021.95
A46: 30 | B46: 30-34 | D46: 8348.56 | E46: 6001.19 | F46: 4265.97 | G46: 3071.88 | H46: 2423.69
A47: 35 | B47: 35-39 | D47: 9352.91 | E47: 6716.69 | F47: 4780.07 | G47: 3445.53 | H47: 2715.72
A48: 40 | B48: 40-44 | D48: 10840.09 | E48: 7347.39 | F48: 5302.12 | G48: 3786.32 | H48: 2983.37
A49: 45 | B49: 45-49 | D49: 12120.04 | E49: 8212.88 | F49: 5925.93 | G49: 4231.52 | H49: 3336.35
A50: 50 | B50: 50-54 | D50: 15505.15 | E50: 10771.19 | F50: 7732.7 | G50: 5975.75 | H50: 4711.7
A51: 55 | B51: 55-59 | D51: 16495.72 | E51: 11459.66 | F51: 8224.54 | G51: 6355.76 | H51: 5014.33
A52: 60 | B52: 60 | D52: 17970.18 | E52: 12503.23 | F52: 9461.56 | G52: 7655.32 | H52: 6227.5
A53: 61 | B53: 61 | D53: 19303.66 | E53: 13431.26 | F53: 10161.16 | G53: 8229.84 | H53: 6691.78
A54: 62 | B54: 62 | D54: 21135.87 | E54: 14712.8 | F54: 11129.47 | G54: 9003.64 | H54: 7329.37
A55: 63 | B55: 63 | D55: 22475.18 | E55: 15641.89 | F55: 11824.3 | G55: 9576.04 | H55: 7789.94
A56: 64 | B56: 64 | D56: 24306.33 | E56: 16924.49 | F56: 12794.2 | G56: 10360.97 | H56: 8426.47
A57: 65 | B57: 65 | D57: 31774.03 | E57: 22072.38 | F57: 16174.54 | G57: 13813.39 | H57: 11878.89
A58: 66 | B58: 66 | D58: 36908.67 | E58: 25644.58 | F58: 18799.1 | G58: 16053.17 | H58: 13804.91
A59: 67 | B59: 67 | D59: 40320.81 | E59: 28007.85 | F59: 20532.73 | G59: 17531.34 | H59: 15077.97
A60: 68 | B60: 68 | D60: =$G$2*D25 -> 44638.72 | E60: 31015.07 | F60: 22733.29 | G60: 19414.96 | H60: 16697.65
A61: 69 | B61: 69 | D61: 49115.1 | E61: 34120.87 | F61: 25009.11 | G61: 21358.47 | H61: 18371.92
A62: 70 | B62: 70 | D62: 60446.5 | E62: 41544.05 | F62: 29443.09 | G62: 24886.15 | H62: 21605.45
A63: 71 | B63: 71 | D63: 62819.31 | E63: 43174.33 | F63: 30597.96 | G63: 25865.06 | H63: 22456.1
A64: 72 | B64: 72 | D64: 64598.52 | E64: 44393.33 | F64: 31459.74 | G64: 26598.58 | H64: 23095.28
A65: 73 | B65: 73 | D65: 66971.33 | E65: 46024.67 | F65: 32617.26 | G65: 27578.02 | H65: 23943.28
A66: 74 | B66: 74 | D66: 68154.82 | E66: 46838.22 | F66: 33193.9 | G66: 28064.03 | H66: 24369.4
A67: 75 | B67: 75+ | D67: 71125.47 | E67: 48874.48 | F67: 34639.21 | G67: 29289.92 | H67: 25427.28
A68: 1 | B68: 1 Child | D68: 2659.01 | E68: 1957.29 | F68: 1532.76 | G68: 1225.36 | H68: 958.24
A69: 2 | B69: 2 Children | D69: 4224.63 | E69: 3113.22 | F69: 2439.59 | G69: 1944.04 | H69: 1513.15
A70: 3 | B70: 3+ Children | D70: 6194.64 | E70: 4565.42 | F70: 3571.67 | G70: 2852.99 | H70: 2221.76
A71: 1 | B71: Rider Comp. Maternidad | D71: =+D36*$G$2 -> 0 | E71: 0 | F71: 119.25 | G71: 119.25 | H71: 119.25
A72: 1 | B72: Transplante de organos | D72: 0 | E72: 0 | F72: 0 | G72: 0 | H72: 0
A78: DIAMOND (LATINAMERICA ONLY)
A79: TARIFAS ANUALES
A80: EDAD
C81: DL1 | D81: DL2 | E81: DL3 | F81: DL4 | G81: DL5 | H81: DL6
A82: 18 | B82: - 24
A83: 25 | B83: - 29
A84: 30 | B84: - 34
A85: 35 | B85: - 39
A86: 40 | B86: - 44
A87: 45 | B87: - 49
A88: 50 | B88: - 54
A89: 55 | B89: - 59
A90: 60
A91: 61
A92: 62
A93: 63
A94: 64
A95: 65
A96: 66
A97: 67
A98: 68
A99: 69
A100: 70
A101: 71
A102: 72
A103: 73
A104: 74
A105: 75 | B105: o más
A106: 1 | B106: Hijo
A107: 2 | B107: Hijos
A108: 3 | B108: Hijos o más
A109: 1 | B109: Rider Comp. Maternidad
A110: 1 | B110: Transplante de organos | C110: 0 | D110: 0 | E110: 0 | F110: 0 | G110: 0 | H110: 0
A112: TARIFAS SEMESTRALES
A113: EDAD
C114: DL1 | D114: DL2 | E114: DL3 | F114: DL4 | G114: DL5 | H114: DL6
A115: 18 | B115: - 24 | C115: =+C82*$G$2 -> 0 | D115: 0 | E115: 0 | F115: 0 | G115: 0 | H115: 0
A116: 25 | B116: - 29 | C116: 0 | D116: 0 | E116: 0 | F116: 0 | G116: 0 | H116: 0
A117: 30 | B117: - 34 | C117: 0 | D117: 0 | E117: 0 | F117: 0 | G117: 0 | H117: 0
A118: 35 | B118: - 39 | C118: 0 | D118: 0 | E118: 0 | F118: 0 | G118: 0 | H118: 0
A119: 40 | B119: - 44 | C119: 0 | D119: 0 | E119: 0 | F119: 0 | G119: 0 | H119: 0
A120: 45 | B120: - 49 | C120: 0 | D120: 0 | E120: 0 | F120: 0 | G120: 0 | H120: 0
A121: 50 | B121: - 54 | C121: 0 | D121: 0 | E121: 0 | F121: 0 | G121: 0 | H121: 0
A122: 55 | B122: - 59 | C122: 0 | D122: 0 | E122: 0 | F122: 0 | G122: 0 | H122: 0
A123: 60 | C123: 0 | D123: 0 | E123: 0 | F123: 0 | G123: 0 | H123: 0
A124: 61 | C124: 0 | D124: 0 | E124: 0 | F124: 0 | G124: 0 | H124: 0
A125: 62 | C125: 0 | D125: 0 | E125: 0 | F125: 0 | G125: 0 | H125: 0
A126: 63 | C126: 0 | D126: 0 | E126: 0 | F126: 0 | G126: 0 | H126: 0
A127: 64 | C127: 0 | D127: 0 | E127: 0 | F127: 0 | G127: 0 | H127: 0
A128: 65 | C128: 0 | D128: 0 | E128: 0 | F128: 0 | G128: 0 | H128: 0
A129: 66 | C129: 0 | D129: 0 | E129: 0 | F129: 0 | G129: 0 | H129: 0
A130: 67 | C130: 0 | D130: 0 | E130: 0 | F130: 0 | G130: 0 | H130: 0
A131: 68 | C131: =+C98*$G$2 -> 0 | D131: 0 | E131: 0 | F131: 0 | G131: 0 | H131: 0
A132: 69 | C132: 0 | D132: 0 | E132: 0 | F132: 0 | G132: 0 | H132: 0
A133: 70 | C133: 0 | D133: 0 | E133: 0 | F133: 0 | G133: 0 | H133: 0
A134: 71 | C134: 0 | D134: 0 | E134: 0 | F134: 0 | G134: 0 | H134: 0
A135: 72 | C135: 0 | D135: 0 | E135: 0 | F135: 0 | G135: 0 | H135: 0
A136: 73 | C136: 0 | D136: 0 | E136: 0 | F136: 0 | G136: 0 | H136: 0
A137: 74 | C137: 0 | D137: 0 | E137: 0 | F137: 0 | G137: 0 | H137: 0
A138: 75 | B138: o más | C138: 0 | D138: 0 | E138: 0 | F138: 0 | G138: 0 | H138: 0
A139: 1 | B139: Hijo | C139: 0 | D139: 0 | E139: 0 | F139: 0 | G139: 0 | H139: 0
A140: 2 | B140: Hijos | C140: 0 | D140: 0 | E140: 0 | F140: 0 | G140: 0 | H140: 0
A141: 3 | B141: Hijos o más | C141: 0 | D141: 0 | E141: 0 | F141: 0 | G141: 0 | H141: 0
A142: 1 | B142: Rider Comp. Maternidad | C142: 0 | D142: 0 | E142: 0 | F142: 0 | G142: 0 | H142: 0
A143: 1 | B143: Transplante de organos | C143: 0 | D143: 0 | E143: 0 | F143: 0 | G143: 0 | H143: 0
A148: BUPA PRIVILEGE CARE
A149: TARIFAS ANUALES
A150: EDAD
C151: CW1 | D151: CW2 | E151: CW3 | F151: CW4 | G151: CW5 | H151: CW6
A152: 18 | B152: 18-24 | D152: 12152 | E152: 8357 | F152: 5635 | G152: 3787 | H152: 2888
A153: 25 | B153: 25-29 | D153: 12751 | E153: 9250 | F153: 6245 | G153: 4193 | H153: 3193
A154: 30 | B154: 30-34 | D154: 13321 | E154: 9900 | F154: 7003 | G154: 5073 | H154: 3873
A155: 35 | B155: 35-39 | D155: 14914 | E155: 11083 | F155: 7842 | G155: 5688 | H155: 4338
A156: 40 | B156: 40-44 | D156: 17261 | E156: 12141 | F156: 8728 | G156: 6271 | H156: 4787
A157: 45 | B157: 45-49 | D157: 19283 | E157: 13567 | F157: 9755 | G157: 7008 | H157: 5358
A158: 50 | B158: 50-54 | D158: 25210 | E158: 17896 | F158: 12799 | G158: 10002 | H158: 7640
A159: 55 | B159: 55-59 | D159: 26818 | E159: 19041 | F159: 13627 | G159: 10640 | H159: 8138
A160: 60 | B160: 60 | D160: 29206 | E160: 20682 | F160: 15501 | G160: 12655 | H160: 10168
A161: 61 | B161: 61 | D161: 31376 | E161: 22204 | F161: 16653 | G161: 13606 | H161: 10916
A162: 62 | B162: 62 | D162: 34344 | E162: 24322 | F162: 18238 | G162: 14897 | H162: 11954
A163: 63 | B163: 63 | D163: 36520 | E163: 25860 | F163: 19386 | G163: 15833 | H163: 12711
A164: 64 | B164: 64 | D164: 39501 | E164: 27979 | F164: 20974 | G164: 17127 | H164: 13756
A165: 65 | B165: 65 | D165: 51636 | E165: 36490 | F165: 26519 | G165: 22845 | H165: 19394
A166: 66 | B166: 66 | D166: 59987 | E166: 42401 | F166: 30812 | G166: 26545 | H166: 22538
A167: 67 | B167: 67 | D167: 65518 | E167: 46315 | F167: 33650 | G167: 28983 | H167: 24615
A168: 68 | B168: 68 | D168: 72550 | E168: 51273 | F168: 37275 | G168: 32110 | H168: 27254
A169: 69 | B169: 69 | D169: 79817 | E169: 56404 | F169: 40999 | G169: 35317 | H169: 29990
A170: 70 | B170: 70 | D170: 98226 | E170: 68688 | F170: 48258 | G170: 41150 | H170: 35276
A171: 71 | B171: 71 | D171: 102089 | E171: 71382 | F171: 50154 | G171: 42767 | H171: 36666
A172: 72 | B172: 72 | D172: 104980 | E172: 73405 | F172: 51574 | G172: 43979 | H172: 37694
A173: 73 | B173: 73 | D173: 108837 | E173: 76102 | F173: 53475 | G173: 45591 | H173: 39090
A174: 74 | B174: 74 | D174: 110760 | E174: 77442 | F174: 54415 | G174: 46405 | H174: 39780
A175: 75 | B175: 75+ | D175: 115592 | E175: 80815 | F175: 56785 | G175: 48425 | H175: 41505
A176: 1 | B176: 1 Child | D176: 4217 | E176: 3087 | F176: 2293 | G176: 1832 | H176: 1353
A177: 2 | B177: 2 Children | D177: 6711 | E177: 4909 | F177: 3647 | G177: 2913 | H177: 2155
A178: 3 | B178: 3+ Children | D178: 9820 | E178: 7196 | F178: 5340 | G178: 4265 | H178: 3162
A179: 1 | B179: Rider Comp. Maternidad | D179: 0 | E179: 0 | F179: 225 | G179: 225 | H179: 225
A180: 1 | B180: Transplante de organos | D180: 0 | E180: 0 | F180: 0 | G180: 0 | H180: 0
A184: TARIFAS SEMESTRALES
A185: EDAD
D186: CW2 | E186: CW3 | F186: CW4 | G186: CW5 | H186: CW6
A187: 18 | B187: 18-24 | D187: =$G$2*D152 -> 6440.56 | E187: 4429.21 | F187: 2986.55 | G187: 2007.11 | H187: 1530.64
A188: 25 | B188: 25-29 | D188: 6758.03 | E188: 4902.5 | F188: 3309.85 | G188: 2222.29 | H188: 1692.29
A189: 30 | B189: 30-34 | D189: 7060.13 | E189: 5247 | F189: 3711.59 | G189: 2688.69 | H189: 2052.69
A190: 35 | B190: 35-39 | D190: 7904.42 | E190: 5873.99 | F190: 4156.26 | G190: 3014.64 | H190: 2299.14
A191: 40 | B191: 40-44 | D191: 9148.33 | E191: 6434.73 | F191: 4625.84 | G191: 3323.63 | H191: 2537.11
A192: 45 | B192: 45-49 | D192: 10219.99 | E192: 7190.51 | F192: 5170.15 | G192: 3714.24 | H192: 2839.74
A193: 50 | B193: 50-54 | D193: 13361.3 | E193: 9484.88 | F193: 6783.47 | G193: 5301.06 | H193: 4049.2
A194: 55 | B194: 55-59 | D194: 14213.54 | E194: 10091.73 | F194: 7222.31 | G194: 5639.2 | H194: 4313.14
A195: 60 | B195: 60 | D195: 15479.18 | E195: 10961.46 | F195: 8215.53 | G195: 6707.15 | H195: 5389.04
A196: 61 | B196: 61 | D196: 16629.28 | E196: 11768.12 | F196: 8826.09 | G196: 7211.18 | H196: 5785.48
A197: 62 | B197: 62 | D197: 18202.32 | E197: 12890.66 | F197: 9666.14 | G197: 7895.41 | H197: 6335.62
A198: 63 | B198: 63 | D198: 19355.6 | E198: 13705.8 | F198: 10274.58 | G198: 8391.49 | H198: 6736.83
A199: 64 | B199: 64 | D199: 20935.53 | E199: 14828.87 | F199: 11116.22 | G199: 9077.31 | H199: 7290.68
A200: 65 | B200: 65 | D200: 27367.08 | E200: 19339.7 | F200: 14055.07 | G200: 12107.85 | H200: 10278.82
A201: 66 | B201: 66 | D201: 31793.11 | E201: 22472.53 | F201: 16330.36 | G201: 14068.85 | H201: 11945.14
A202: 67 | B202: 67 | D202: 34724.54 | E202: 24546.95 | F202: 17834.5 | G202: 15360.99 | H202: 13045.95
A203: 68 | B203: 68 | D203: =$G$2*D168 -> 38451.5 | E203: 27174.69 | F203: 19755.75 | G203: 17018.3 | H203: 14444.62
A204: 69 | B204: 69 | D204: 42303.01 | E204: 29894.12 | F204: 21729.47 | G204: 18718.01 | H204: 15894.7
A205: 70 | B205: 70 | D205: 52059.78 | E205: 36404.64 | F205: 25576.74 | G205: 21809.5 | H205: 18696.28
A206: 71 | B206: 71 | D206: 54107.17 | E206: 37832.46 | F206: 26581.62 | G206: 22666.51 | H206: 19432.98
A207: 72 | B207: 72 | D207: 55639.4 | E207: 38904.65 | F207: 27334.22 | G207: 23308.87 | H207: 19977.82
A208: 73 | B208: 73 | D208: 57683.61 | E208: 40334.06 | F208: 28341.75 | G208: 24163.23 | H208: 20717.7
A209: 74 | B209: 74 | D209: 58702.8 | E209: 41044.26 | F209: 28839.95 | G209: 24594.65 | H209: 21083.4
A210: 75 | B210: 75+ | D210: 61263.76 | E210: 42831.95 | F210: 30096.05 | G210: 25665.25 | H210: 21997.65
A211: 1 | B211: 1 Child | D211: 2235.01 | E211: 1636.11 | F211: 1215.29 | G211: 970.96 | H211: 717.09
A212: 2 | B212: 2 Children | D212: 3556.83 | E212: 2601.77 | F212: 1932.91 | G212: 1543.89 | H212: 1142.15
A213: 3 | B213: 3+ Children | D213: 5204.6 | E213: 3813.88 | F213: 2830.2 | G213: 2260.45 | H213: 1675.86
A214: 1 | B214: Rider Comp. Maternidad | D214: =+D179*$G$2 -> 0 | E214: 0 | F214: 119.25 | G214: 119.25 | H214: 119.25
A215: 1 | B215: Transplante de organos | D215: 0 | E215: 0 | F215: 0 | G215: 0 | H215: 0
A220: COMPLETE (LATINAMERICA ONLY)
A221: TARIFAS ANUALES
A222: EDAD
... 335 more rows

Sheet 8 (hidden)
K1: D1 | L1: D2 | M1: D3 | N1: D4 | O1: D5 | P1: D6
B2: REGIÓN | C2: ='INSURED INFORMATION'!W14 -> 8 | E2: FACTOR SEMESTRAL : | G2: 0.53 | I2: NEW BUSINESS DISCUOUNTS | K2: ='INSURED INFORMATION'!P53 -> 1 | L2: ='INSURED INFORMATION'!Q53 -> 1 | M2: ='INSURED INFORMATION'!R53 -> 1 | N2: ='INSURED INFORMATION'!S53 -> 1 | O2: ='INSURED INFORMATION'!T53 -> 1 | P2: ='INSURED INFORMATION'!U53 -> 1
A5: BUPA EXCLUSIVE CARE
A6: TARIFAS ANUALES
A7: EDAD
C8: DW1 | D8: DW2 | E8: DW3 | F8: DW4 | G8: DW5 | H8: DW6
A9: 18 | B9: 18-24 | D9: 11957 | E9: 7899 | F9: 5579 | G9: 3886 | H9: 3056
A10: 25 | B10: 25-29 | D10: 12540 | E10: 8728 | F10: 6183 | G10: 4308 | H10: 3384
A11: 30 | B11: 30-34 | D11: 13047 | E11: 9364 | F11: 6920 | G11: 5165 | H11: 4073
A12: 35 | B12: 35-39 | D12: 14613 | E12: 10483 | F12: 7760 | G12: 5789 | H12: 4561
A13: 40 | B13: 40-44 | D13: 16942 | E13: 11470 | F13: 8609 | G13: 6365 | H13: 5015
A14: 45 | B14: 45-49 | D14: 18944 | E14: 12823 | F14: 9628 | G14: 7108 | H14: 5606
A15: 50 | B15: 50-54 | D15: 24238 | E15: 16822 | F15: 12560 | G15: 10048 | H15: 7921
A16: 55 | B16: 55-59 | D16: 25791 | E16: 17905 | F16: 13360 | G16: 10691 | H16: 8434
A17: 60 | B17: 60 | D17: 28098 | E17: 19530 | F17: 15376 | G17: 12882 | H17: 10475
A18: 61 | B18: 61 | D18: 30183 | E18: 20989 | F18: 16514 | G18: 13846 | H18: 11259
A19: 62 | B19: 62 | D19: 33047 | E19: 22989 | F19: 18095 | G19: 15157 | H19: 12326
A20: 63 | B20: 63 | D20: 35141 | E20: 24442 | F20: 19227 | G20: 16123 | H20: 13106
A21: 64 | B21: 64 | D21: 38010 | E21: 26448 | F21: 20808 | G21: 17438 | H21: 14186
A22: 65 | B22: 65 | D22: 49693 | E22: 34493 | F22: 26308 | G22: 23255 | H22: 20003
A23: 66 | B23: 66 | D23: 57728 | E23: 40085 | F23: 30569 | G23: 27036 | H23: 23244
A24: 67 | B24: 67 | D24: 63059 | E24: 43781 | F24: 33391 | G24: 29518 | H24: 25390
A25: 68 | B25: 68 | D25: 69822 | E25: 48471 | F25: 36978 | G25: 32697 | H25: 28114
A26: 69 | B26: 69 | D26: 76822 | E26: 53328 | F26: 40687 | G26: 35970 | H26: 30936
A27: 70 | B27: 70 | D27: 94548 | E27: 64942 | F27: 47895 | G27: 41916 | H27: 36393
A28: 71 | B28: 71 | D28: 98265 | E28: 67491 | F28: 49779 | G28: 43566 | H28: 37826
A29: 72 | B29: 72 | D29: 101047 | E29: 69402 | F29: 51180 | G29: 44799 | H29: 38893
A30: 73 | B30: 73 | D30: 104758 | E30: 71955 | F30: 53058 | G30: 46444 | H30: 40318
A31: 74 | B31: 74 | D31: 106610 | E31: 73222 | F31: 54008 | G31: 47271 | H31: 41035
A32: 75 | B32: 75+ | D32: 111255 | E32: 76411 | F32: 56351 | G32: 49326 | H32: 42827
A33: 1 | B33: 1 Child | D33: 4156 | E33: 3062 | F33: 2494 | G33: 2066 | H33: 1610
A34: 2 | B34: 2 Children | D34: 6611 | E34: 4873 | F34: 3970 | G34: 3275 | H34: 2556
A35: 3 | B35: 3+ Children | D35: 9686 | E35: 7139 | F35: 5814 | G35: 4804 | H35: 3745
A36: 1 | B36: Rider Comp. Maternidad | D36: 0 | E36: 0 | F36: 225 | G36: 225 | H36: 225
A37: 1 | B37: Transplante de organos | D37: 0 | E37: 0 | F37: 0 | G37: 0 | H37: 0
A41: TARIFAS SEMESTRALES
A42: EDAD
D43: DW2 | E43: DW3 | F43: DW4 | G43: DW5 | H43: DW6
A44: 18 | B44: 18-24 | D44: =$G$2*D9 -> 6337.21 | E44: 4186.47 | F44: 2956.87 | G44: 2059.58 | H44: 1619.68
A45: 25 | B45: 25-29 | D45: 6646.2 | E45: 4625.84 | F45: 3276.99 | G45: 2283.24 | H45: 1793.52
A46: 30 | B46: 30-34 | D46: 6914.91 | E46: 4962.92 | F46: 3667.6 | G46: 2737.45 | H46: 2158.69
A47: 35 | B47: 35-39 | D47: 7744.89 | E47: 5555.99 | F47: 4112.8 | G47: 3068.17 | H47: 2417.33
A48: 40 | B48: 40-44 | D48: 8979.26 | E48: 6079.1 | F48: 4562.77 | G48: 3373.45 | H48: 2657.95
A49: 45 | B49: 45-49 | D49: 10040.32 | E49: 6796.19 | F49: 5102.84 | G49: 3767.24 | H49: 2971.18
A50: 50 | B50: 50-54 | D50: 12846.14 | E50: 8915.66 | F50: 6656.8 | G50: 5325.44 | H50: 4198.13
A51: 55 | B51: 55-59 | D51: 13669.23 | E51: 9489.65 | F51: 7080.8 | G51: 5666.23 | H51: 4470.02
A52: 60 | B52: 60 | D52: 14891.94 | E52: 10350.9 | F52: 8149.28 | G52: 6827.46 | H52: 5551.75
A53: 61 | B53: 61 | D53: 15996.99 | E53: 11124.17 | F53: 8752.42 | G53: 7338.38 | H53: 5967.27
A54: 62 | B54: 62 | D54: 17514.91 | E54: 12184.17 | F54: 9590.35 | G54: 8033.21 | H54: 6532.78
A55: 63 | B55: 63 | D55: 18624.73 | E55: 12954.26 | F55: 10190.31 | G55: 8545.19 | H55: 6946.18
A56: 64 | B56: 64 | D56: 20145.3 | E56: 14017.44 | F56: 11028.24 | G56: 9242.14 | H56: 7518.58
A57: 65 | B57: 65 | D57: 26337.29 | E57: 18281.29 | F57: 13943.24 | G57: 12325.15 | H57: 10601.59
A58: 66 | B58: 66 | D58: 30595.84 | E58: 21245.05 | F58: 16201.57 | G58: 14329.08 | H58: 12319.32
A59: 67 | B59: 67 | D59: 33421.27 | E59: 23203.93 | F59: 17697.23 | G59: 15644.54 | H59: 13456.7
A60: 68 | B60: 68 | D60: =$G$2*D25 -> 37005.66 | E60: 25689.63 | F60: 19598.34 | G60: 17329.41 | H60: 14900.42
A61: 69 | B61: 69 | D61: 40715.66 | E61: 28263.84 | F61: 21564.11 | G61: 19064.1 | H61: 16396.08
A62: 70 | B62: 70 | D62: 50110.44 | E62: 34419.26 | F62: 25384.35 | G62: 22215.48 | H62: 19288.29
A63: 71 | B63: 71 | D63: 52080.45 | E63: 35770.23 | F63: 26382.87 | G63: 23089.98 | H63: 20047.78
A64: 72 | B64: 72 | D64: 53554.91 | E64: 36783.06 | F64: 27125.4 | G64: 23743.47 | H64: 20613.29
A65: 73 | B65: 73 | D65: 55521.74 | E65: 38136.15 | F65: 28120.74 | G65: 24615.32 | H65: 21368.54
A66: 74 | B66: 74 | D66: 56503.3 | E66: 38807.66 | F66: 28624.24 | G66: 25053.63 | H66: 21748.55
A67: 75 | B67: 75+ | D67: 58965.15 | E67: 40497.83 | F67: 29866.03 | G67: 26142.78 | H67: 22698.31
A68: 1 | B68: 1 Child | D68: 2202.68 | E68: 1622.86 | F68: 1321.82 | G68: 1094.98 | H68: 853.3
A69: 2 | B69: 2 Children | D69: 3503.83 | E69: 2582.69 | F69: 2104.1 | G69: 1735.75 | H69: 1354.68
A70: 3 | B70: 3+ Children | D70: 5133.58 | E70: 3783.67 | F70: 3081.42 | G70: 2546.12 | H70: 1984.85
A71: 1 | B71: Rider Comp. Maternidad | D71: =+D36*$G$2 -> 0 | E71: 0 | F71: 119.25 | G71: 119.25 | H71: 119.25
A72: 1 | B72: Transplante de organos | D72: 0 | E72: 0 | F72: 0 | G72: 0 | H72: 0
A78: DIAMOND (LATINAMERICA ONLY)
A79: TARIFAS ANUALES
A80: EDAD
C81: DL1 | D81: DL2 | E81: DL3 | F81: DL4 | G81: DL5 | H81: DL6
A82: 18 | B82: - 24
A83: 25 | B83: - 29
A84: 30 | B84: - 34
A85: 35 | B85: - 39
A86: 40 | B86: - 44
A87: 45 | B87: - 49
A88: 50 | B88: - 54
A89: 55 | B89: - 59
A90: 60
A91: 61
A92: 62
A93: 63
A94: 64
A95: 65
A96: 66
A97: 67
A98: 68
A99: 69
A100: 70
A101: 71
A102: 72
A103: 73
A104: 74
A105: 75 | B105: o más
A106: 1 | B106: Hijo
A107: 2 | B107: Hijos
A108: 3 | B108: Hijos o más
A109: 1 | B109: Rider Comp. Maternidad
A110: 1 | B110: Transplante de organos | C110: 0 | D110: 0 | E110: 0 | F110: 0 | G110: 0 | H110: 0
A112: TARIFAS SEMESTRALES
A113: EDAD
C114: DL1 | D114: DL2 | E114: DL3 | F114: DL4 | G114: DL5 | H114: DL6
A115: 18 | B115: - 24 | C115: =+C82*$G$2 -> 0 | D115: 0 | E115: 0 | F115: 0 | G115: 0 | H115: 0
A116: 25 | B116: - 29 | C116: 0 | D116: 0 | E116: 0 | F116: 0 | G116: 0 | H116: 0
A117: 30 | B117: - 34 | C117: 0 | D117: 0 | E117: 0 | F117: 0 | G117: 0 | H117: 0
A118: 35 | B118: - 39 | C118: 0 | D118: 0 | E118: 0 | F118: 0 | G118: 0 | H118: 0
A119: 40 | B119: - 44 | C119: 0 | D119: 0 | E119: 0 | F119: 0 | G119: 0 | H119: 0
A120: 45 | B120: - 49 | C120: 0 | D120: 0 | E120: 0 | F120: 0 | G120: 0 | H120: 0
A121: 50 | B121: - 54 | C121: 0 | D121: 0 | E121: 0 | F121: 0 | G121: 0 | H121: 0
A122: 55 | B122: - 59 | C122: 0 | D122: 0 | E122: 0 | F122: 0 | G122: 0 | H122: 0
A123: 60 | C123: 0 | D123: 0 | E123: 0 | F123: 0 | G123: 0 | H123: 0
A124: 61 | C124: 0 | D124: 0 | E124: 0 | F124: 0 | G124: 0 | H124: 0
A125: 62 | C125: 0 | D125: 0 | E125: 0 | F125: 0 | G125: 0 | H125: 0
A126: 63 | C126: 0 | D126: 0 | E126: 0 | F126: 0 | G126: 0 | H126: 0
A127: 64 | C127: 0 | D127: 0 | E127: 0 | F127: 0 | G127: 0 | H127: 0
A128: 65 | C128: 0 | D128: 0 | E128: 0 | F128: 0 | G128: 0 | H128: 0
A129: 66 | C129: 0 | D129: 0 | E129: 0 | F129: 0 | G129: 0 | H129: 0
A130: 67 | C130: 0 | D130: 0 | E130: 0 | F130: 0 | G130: 0 | H130: 0
A131: 68 | C131: =+C98*$G$2 -> 0 | D131: 0 | E131: 0 | F131: 0 | G131: 0 | H131: 0
A132: 69 | C132: 0 | D132: 0 | E132: 0 | F132: 0 | G132: 0 | H132: 0
A133: 70 | C133: 0 | D133: 0 | E133: 0 | F133: 0 | G133: 0 | H133: 0
A134: 71 | C134: 0 | D134: 0 | E134: 0 | F134: 0 | G134: 0 | H134: 0
A135: 72 | C135: 0 | D135: 0 | E135: 0 | F135: 0 | G135: 0 | H135: 0
A136: 73 | C136: 0 | D136: 0 | E136: 0 | F136: 0 | G136: 0 | H136: 0
A137: 74 | C137: 0 | D137: 0 | E137: 0 | F137: 0 | G137: 0 | H137: 0
A138: 75 | B138: o más | C138: 0 | D138: 0 | E138: 0 | F138: 0 | G138: 0 | H138: 0
A139: 1 | B139: Hijo | C139: 0 | D139: 0 | E139: 0 | F139: 0 | G139: 0 | H139: 0
A140: 2 | B140: Hijos | C140: 0 | D140: 0 | E140: 0 | F140: 0 | G140: 0 | H140: 0
A141: 3 | B141: Hijos o más | C141: 0 | D141: 0 | E141: 0 | F141: 0 | G141: 0 | H141: 0
A142: 1 | B142: Rider Comp. Maternidad | C142: 0 | D142: 0 | E142: 0 | F142: 0 | G142: 0 | H142: 0
A143: 1 | B143: Transplante de organos | C143: 0 | D143: 0 | E143: 0 | F143: 0 | G143: 0 | H143: 0
A148: BUPA PRIVILEGE CARE
A149: TARIFAS ANUALES
A150: EDAD
C151: CW1 | D151: CW2 | E151: CW3 | F151: CW4 | G151: CW5 | H151: CW6
A152: 18 | B152: 18-24 | D152: 10008 | E152: 6884 | F152: 4828 | G152: 3361 | H152: 2557
A153: 25 | B153: 25-29 | D153: 10502 | E153: 7614 | F153: 5345 | G153: 3723 | H153: 2835
A154: 30 | B154: 30-34 | D154: 10971 | E154: 8143 | F154: 5999 | G154: 4497 | H154: 3442
A155: 35 | B155: 35-39 | D155: 12278 | E155: 9114 | F155: 6721 | G155: 5047 | H155: 3850
A156: 40 | B156: 40-44 | D156: 14215 | E156: 9996 | F156: 7475 | G156: 5562 | H156: 4250
A157: 45 | B157: 45-49 | D157: 15885 | E157: 11173 | F157: 8351 | G157: 6220 | H157: 4753
A158: 50 | B158: 50-54 | D158: 20761 | E158: 14739 | F158: 10964 | G158: 8867 | H158: 6780
A159: 55 | B159: 55-59 | D159: 22082 | E159: 15672 | F159: 11666 | G159: 9436 | H159: 7217
A160: 60 | B160: 60 | D160: 24051 | E160: 17017 | F160: 13280 | G160: 11223 | H160: 9022
A161: 61 | B161: 61 | D161: 25840 | E161: 18283 | F161: 14263 | G161: 12061 | H161: 9688
A162: 62 | B162: 62 | D162: 28283 | E162: 20025 | F162: 15620 | G162: 13207 | H162: 10610
A163: 63 | B163: 63 | D163: 30075 | E163: 21286 | F163: 16607 | G163: 14046 | H163: 11277
A164: 64 | B164: 64 | D164: 32527 | E164: 23035 | F164: 17973 | G164: 15196 | H164: 12204
A165: 65 | B165: 65 | D165: 42526 | E165: 30035 | F165: 22717 | G165: 20258 | H165: 17201
A166: 66 | B166: 66 | D166: 49401 | E166: 34900 | F166: 26391 | G166: 23544 | H166: 19985
A167: 67 | B167: 67 | D167: 53953 | E167: 38117 | F167: 28826 | G167: 25705 | H167: 21834
A168: 68 | B168: 68 | D168: 59738 | E168: 42202 | F168: 31923 | G168: 28469 | H168: 24172
A169: 69 | B169: 69 | D169: 65728 | E169: 46427 | F169: 35115 | G169: 31317 | H169: 26600
A170: 70 | B170: 70 | D170: 80889 | E170: 56532 | F170: 41337 | G170: 36498 | H170: 31279
A171: 71 | B171: 71 | D171: 84067 | E171: 58747 | F171: 42957 | G171: 37928 | H171: 32516
A172: 72 | B172: 72 | D172: 86451 | E172: 60411 | F172: 44175 | G172: 39001 | H172: 33431
A173: 73 | B173: 73 | D173: 89617 | E173: 62632 | F173: 45795 | G173: 40437 | H173: 34667
A174: 74 | B174: 74 | D174: 91206 | E174: 63740 | F174: 46608 | G174: 41155 | H174: 35278
A175: 75 | B175: 75+ | D175: 95178 | E175: 66515 | F175: 48637 | G175: 42945 | H175: 36806
A176: 1 | B176: 1 Child | D176: 3471 | E176: 2538 | F176: 1962 | G176: 1628 | H176: 1204
A177: 2 | B177: 2 Children | D177: 5515 | E177: 4037 | F177: 3126 | G177: 2585 | H177: 1914
A178: 3 | B178: 3+ Children | D178: 8091 | E178: 5915 | F178: 4578 | G178: 3782 | H178: 2804
A179: 1 | B179: Rider Comp. Maternidad | D179: 0 | E179: 0 | F179: 225 | G179: 225 | H179: 225
A180: 1 | B180: Transplante de organos | D180: 0 | E180: 0 | F180: 0 | G180: 0 | H180: 0
A184: TARIFAS SEMESTRALES
A185: EDAD
D186: CW2 | E186: CW3 | F186: CW4 | G186: CW5 | H186: CW6
A187: 18 | B187: 18-24 | D187: =$G$2*D152 -> 5304.24 | E187: 3648.52 | F187: 2558.84 | G187: 1781.33 | H187: 1355.21
A188: 25 | B188: 25-29 | D188: 5566.06 | E188: 4035.42 | F188: 2832.85 | G188: 1973.19 | H188: 1502.55
A189: 30 | B189: 30-34 | D189: 5814.63 | E189: 4315.79 | F189: 3179.47 | G189: 2383.41 | H189: 1824.26
A190: 35 | B190: 35-39 | D190: 6507.34 | E190: 4830.42 | F190: 3562.13 | G190: 2674.91 | H190: 2040.5
A191: 40 | B191: 40-44 | D191: 7533.95 | E191: 5297.88 | F191: 3961.75 | G191: 2947.86 | H191: 2252.5
A192: 45 | B192: 45-49 | D192: 8419.05 | E192: 5921.69 | F192: 4426.03 | G192: 3296.6 | H192: 2519.09
A193: 50 | B193: 50-54 | D193: 11003.33 | E193: 7811.67 | F193: 5810.92 | G193: 4699.51 | H193: 3593.4
A194: 55 | B194: 55-59 | D194: 11703.46 | E194: 8306.16 | F194: 6182.98 | G194: 5001.08 | H194: 3825.01
A195: 60 | B195: 60 | D195: 12747.03 | E195: 9019.01 | F195: 7038.4 | G195: 5948.19 | H195: 4781.66
A196: 61 | B196: 61 | D196: 13695.2 | E196: 9689.99 | F196: 7559.39 | G196: 6392.33 | H196: 5134.64
A197: 62 | B197: 62 | D197: 14989.99 | E197: 10613.25 | F197: 8278.6 | G197: 6999.71 | H197: 5623.3
A198: 63 | B198: 63 | D198: 15939.75 | E198: 11281.58 | F198: 8801.71 | G198: 7444.38 | H198: 5976.81
A199: 64 | B199: 64 | D199: 17239.31 | E199: 12208.55 | F199: 9525.69 | G199: 8053.88 | H199: 6468.12
A200: 65 | B200: 65 | D200: 22538.78 | E200: 15918.55 | F200: 12040.01 | G200: 10736.74 | H200: 9116.53
A201: 66 | B201: 66 | D201: 26182.53 | E201: 18497 | F201: 13987.23 | G201: 12478.32 | H201: 10592.05
A202: 67 | B202: 67 | D202: 28595.09 | E202: 20202.01 | F202: 15277.78 | G202: 13623.65 | H202: 11572.02
A203: 68 | B203: 68 | D203: =$G$2*D168 -> 31661.14 | E203: 22367.06 | F203: 16919.19 | G203: 15088.57 | H203: 12811.16
A204: 69 | B204: 69 | D204: 34835.84 | E204: 24606.31 | F204: 18610.95 | G204: 16598.01 | H204: 14098
A205: 70 | B205: 70 | D205: 42871.17 | E205: 29961.96 | F205: 21908.61 | G205: 19343.94 | H205: 16577.87
A206: 71 | B206: 71 | D206: 44555.51 | E206: 31135.91 | F206: 22767.21 | G206: 20101.84 | H206: 17233.48
A207: 72 | B207: 72 | D207: 45819.03 | E207: 32017.83 | F207: 23412.75 | G207: 20670.53 | H207: 17718.43
A208: 73 | B208: 73 | D208: 47497.01 | E208: 33194.96 | F208: 24271.35 | G208: 21431.61 | H208: 18373.51
A209: 74 | B209: 74 | D209: 48339.18 | E209: 33782.2 | F209: 24702.24 | G209: 21812.15 | H209: 18697.34
A210: 75 | B210: 75+ | D210: 50444.34 | E210: 35252.95 | F210: 25777.61 | G210: 22760.85 | H210: 19507.18
A211: 1 | B211: 1 Child | D211: 1839.63 | E211: 1345.14 | F211: 1039.86 | G211: 862.84 | H211: 638.12
A212: 2 | B212: 2 Children | D212: 2922.95 | E212: 2139.61 | F212: 1656.78 | G212: 1370.05 | H212: 1014.42
A213: 3 | B213: 3+ Children | D213: 4288.23 | E213: 3134.95 | F213: 2426.34 | G213: 2004.46 | H213: 1486.12
A214: 1 | B214: Rider Comp. Maternidad | D214: =+D179*$G$2 -> 0 | E214: 0 | F214: 119.25 | G214: 119.25 | H214: 119.25
A215: 1 | B215: Transplante de organos | D215: 0 | E215: 0 | F215: 0 | G215: 0 | H215: 0
A220: COMPLETE (LATINAMERICA ONLY)
A221: TARIFAS ANUALES
A222: EDAD
... 335 more rows

Sheet 9 (hidden)
K1: D1 | L1: D2 | M1: D3 | N1: D4 | O1: D5 | P1: D6
B2: REGIÓN | C2: ='INSURED INFORMATION'!W14 -> 8 | E2: FACTOR SEMESTRAL : | G2: 0.53 | I2: NEW BUSINESS DISCUOUNTS | K2: ='INSURED INFORMATION'!P53 -> 1 | L2: ='INSURED INFORMATION'!Q53 -> 1 | M2: ='INSURED INFORMATION'!R53 -> 1 | N2: ='INSURED INFORMATION'!S53 -> 1 | O2: ='INSURED INFORMATION'!T53 -> 1 | P2: ='INSURED INFORMATION'!U53 -> 1
A5: BUPA EXCLUSIVE CARE
A6: TARIFAS ANUALES
A7: EDAD
C8: DW1 | D8: DW2 | E8: DW3 | F8: DW4 | G8: DW5 | H8: DW6
A9: 18 | B9: 18-24 | D9: 20289 | E9: 13420 | F9: 9281 | G9: 6485 | H9: 5109
A10: 25 | B10: 25-29 | D10: 21281 | E10: 14822 | F10: 10277 | G10: 7191 | H10: 5656
A11: 30 | B11: 30-34 | D11: 22130 | E11: 15891 | F11: 11506 | G11: 8607 | H11: 6790
A12: 35 | B12: 35-39 | D12: 24782 | E12: 17792 | F12: 12890 | G12: 9637 | H12: 7603
A13: 40 | B13: 40-44 | D13: 28721 | E13: 19446 | F13: 14300 | G13: 10589 | H13: 8351
A14: 45 | B14: 45-49 | D14: 32110 | E14: 21755 | F14: 15971 | G14: 11833 | H14: 9327
A15: 50 | B15: 50-54 | D15: 41088 | E15: 28522 | F15: 20849 | G15: 16708 | H15: 13183
A16: 55 | B16: 55-59 | D16: 43710 | E16: 30351 | F16: 22177 | G16: 17786 | H16: 14036
A17: 60 | B17: 60 | D17: 47612 | E17: 33112 | F17: 25514 | G17: 21412 | H17: 17429
A18: 61 | B18: 61 | D18: 51154 | E18: 35584 | F18: 27390 | G18: 23020 | H18: 18719
A19: 62 | B19: 62 | D19: 56004 | E19: 38955 | F19: 30006 | G19: 25185 | H19: 20492
A20: 63 | B20: 63 | D20: 59541 | E20: 41421 | F20: 31890 | G20: 26794 | H20: 21788
A21: 64 | B21: 64 | D21: 64408 | E21: 44821 | F21: 34503 | G21: 28971 | H21: 23570
A22: 65 | B22: 65 | D22: 84180 | E22: 58449 | F22: 43617 | G22: 38629 | H22: 33235
A23: 66 | B23: 66 | D23: 97789 | E23: 67905 | F23: 50685 | G23: 44894 | H23: 38613
A24: 67 | B24: 67 | D24: 106824 | E24: 74171 | F24: 55353 | G24: 49024 | H24: 42162
A25: 68 | B25: 68 | D25: 118266 | E25: 82118 | F25: 61287 | G25: 54300 | H25: 46695
A26: 69 | B26: 69 | D26: 130139 | E26: 90355 | F26: 67426 | G26: 59734 | H26: 51376
A27: 70 | B27: 70 | D27: 160148 | E27: 110011 | F27: 79380 | G27: 69601 | H27: 60427
A28: 71 | B28: 71 | D28: 166435 | E28: 114335 | F28: 82490 | G28: 72338 | H28: 62792
A29: 72 | B29: 72 | D29: 171153 | E29: 117559 | F29: 84817 | G29: 74381 | H29: 64578
A30: 73 | B30: 73 | D30: 177437 | E30: 121883 | F30: 87940 | G30: 77122 | H30: 66951
A31: 74 | B31: 74 | D31: 180568 | E31: 124031 | F31: 89493 | G31: 78476 | H31: 68138
A32: 75 | B32: 75+ | D32: 188438 | E32: 129431 | F32: 93386 | G32: 81902 | H32: 71100
A33: 1 | B33: 1 Child | D33: 7044 | E33: 5185 | F33: 4132 | G33: 3418 | H33: 2674
A34: 2 | B34: 2 Children | D34: 11188 | E34: 8253 | F34: 6570 | G34: 5440 | H34: 4227
A35: 3 | B35: 3+ Children | D35: 16406 | E35: 12078 | F35: 9632 | G35: 7967 | H35: 6204
A36: 1 | B36: Rider Comp. Maternidad | D36: 0 | E36: 0 | F36: 225 | G36: 225 | H36: 225
A37: 1 | B37: Transplante de organos | D37: 0 | E37: 0 | F37: 0 | G37: 0 | H37: 0
A41: TARIFAS SEMESTRALES
A42: EDAD
D43: DW2 | E43: DW3 | F43: DW4 | G43: DW5 | H43: DW6
A44: 18 | B44: 18-24 | D44: =$G$2*D9 -> 10753.17 | E44: 7112.6 | F44: 4918.93 | G44: 3437.05 | H44: 2707.77
A45: 25 | B45: 25-29 | D45: 11278.93 | E45: 7855.66 | F45: 5446.81 | G45: 3811.23 | H45: 2997.68
A46: 30 | B46: 30-34 | D46: 11728.9 | E46: 8422.23 | F46: 6098.18 | G46: 4561.71 | H46: 3598.7
A47: 35 | B47: 35-39 | D47: 13134.46 | E47: 9429.76 | F47: 6831.7 | G47: 5107.61 | H47: 4029.59
A48: 40 | B48: 40-44 | D48: 15222.13 | E48: 10306.38 | F48: 7579 | G48: 5612.17 | H48: 4426.03
A49: 45 | B49: 45-49 | D49: 17018.3 | E49: 11530.15 | F49: 8464.63 | G49: 6271.49 | H49: 4943.31
A50: 50 | B50: 50-54 | D50: 21776.64 | E50: 15116.66 | F50: 11049.97 | G50: 8855.24 | H50: 6986.99
A51: 55 | B51: 55-59 | D51: 23166.3 | E51: 16086.03 | F51: 11753.81 | G51: 9426.58 | H51: 7439.08
A52: 60 | B52: 60 | D52: 25234.36 | E52: 17549.36 | F52: 13522.42 | G52: 11348.36 | H52: 9237.37
A53: 61 | B53: 61 | D53: 27111.62 | E53: 18859.52 | F53: 14516.7 | G53: 12200.6 | H53: 9921.07
A54: 62 | B54: 62 | D54: 29682.12 | E54: 20646.15 | F54: 15903.18 | G54: 13348.05 | H54: 10860.76
A55: 63 | B55: 63 | D55: 31556.73 | E55: 21953.13 | F55: 16901.7 | G55: 14200.82 | H55: 11547.64
A56: 64 | B56: 64 | D56: 34136.24 | E56: 23755.13 | F56: 18286.59 | G56: 15354.63 | H56: 12492.1
A57: 65 | B57: 65 | D57: 44615.4 | E57: 30977.97 | F57: 23117.01 | G57: 20473.37 | H57: 17614.55
A58: 66 | B58: 66 | D58: 51828.17 | E58: 35989.65 | F58: 26863.05 | G58: 23793.82 | H58: 20464.89
A59: 67 | B59: 67 | D59: 56616.72 | E59: 39310.63 | F59: 29337.09 | G59: 25982.72 | H59: 22345.86
A60: 68 | B60: 68 | D60: =$G$2*D25 -> 62680.98 | E60: 43522.54 | F60: 32482.11 | G60: 28779 | H60: 24748.35
A61: 69 | B61: 69 | D61: 68973.67 | E61: 47888.15 | F61: 35735.78 | G61: 31659.02 | H61: 27229.28
A62: 70 | B62: 70 | D62: 84878.44 | E62: 58305.83 | F62: 42071.4 | G62: 36888.53 | H62: 32026.31
A63: 71 | B63: 71 | D63: 88210.55 | E63: 60597.55 | F63: 43719.7 | G63: 38339.14 | H63: 33279.76
A64: 72 | B64: 72 | D64: 90711.09 | E64: 62306.27 | F64: 44953.01 | G64: 39421.93 | H64: 34226.34
A65: 73 | B65: 73 | D65: 94041.61 | E65: 64597.99 | F65: 46608.2 | G65: 40874.66 | H65: 35484.03
A66: 74 | B66: 74 | D66: 95701.04 | E66: 65736.43 | F66: 47431.29 | G66: 41592.28 | H66: 36113.14
A67: 75 | B67: 75+ | D67: 99872.14 | E67: 68598.43 | F67: 49494.58 | G67: 43408.06 | H67: 37683
A68: 1 | B68: 1 Child | D68: 3733.32 | E68: 2748.05 | F68: 2189.96 | G68: 1811.54 | H68: 1417.22
A69: 2 | B69: 2 Children | D69: 5929.64 | E69: 4374.09 | F69: 3482.1 | G69: 2883.2 | H69: 2240.31
A70: 3 | B70: 3+ Children | D70: 8695.18 | E70: 6401.34 | F70: 5104.96 | G70: 4222.51 | H70: 3288.12
A71: 1 | B71: Rider Comp. Maternidad | D71: =+D36*$G$2 -> 0 | E71: 0 | F71: 119.25 | G71: 119.25 | H71: 119.25
A72: 1 | B72: Transplante de organos | D72: 0 | E72: 0 | F72: 0 | G72: 0 | H72: 0
A78: DIAMOND (LATINAMERICA ONLY)
A79: TARIFAS ANUALES
A80: EDAD
C81: DL1 | D81: DL2 | E81: DL3 | F81: DL4 | G81: DL5 | H81: DL6
A82: 18 | B82: - 24
A83: 25 | B83: - 29
A84: 30 | B84: - 34
A85: 35 | B85: - 39
A86: 40 | B86: - 44
A87: 45 | B87: - 49
A88: 50 | B88: - 54
A89: 55 | B89: - 59
A90: 60
A91: 61
A92: 62
A93: 63
A94: 64
A95: 65
A96: 66
A97: 67
A98: 68
A99: 69
A100: 70
A101: 71
A102: 72
A103: 73
A104: 74
A105: 75 | B105: o más
A106: 1 | B106: Hijo
A107: 2 | B107: Hijos
A108: 3 | B108: Hijos o más
A109: 1 | B109: Rider Comp. Maternidad
A110: 1 | B110: Transplante de organos | C110: 0 | D110: 0 | E110: 0 | F110: 0 | G110: 0 | H110: 0
A112: TARIFAS SEMESTRALES
A113: EDAD
C114: DL1 | D114: DL2 | E114: DL3 | F114: DL4 | G114: DL5 | H114: DL6
A115: 18 | B115: - 24 | C115: =+C82*$G$2 -> 0 | D115: 0 | E115: 0 | F115: 0 | G115: 0 | H115: 0
A116: 25 | B116: - 29 | C116: 0 | D116: 0 | E116: 0 | F116: 0 | G116: 0 | H116: 0
A117: 30 | B117: - 34 | C117: 0 | D117: 0 | E117: 0 | F117: 0 | G117: 0 | H117: 0
A118: 35 | B118: - 39 | C118: 0 | D118: 0 | E118: 0 | F118: 0 | G118: 0 | H118: 0
A119: 40 | B119: - 44 | C119: 0 | D119: 0 | E119: 0 | F119: 0 | G119: 0 | H119: 0
A120: 45 | B120: - 49 | C120: 0 | D120: 0 | E120: 0 | F120: 0 | G120: 0 | H120: 0
A121: 50 | B121: - 54 | C121: 0 | D121: 0 | E121: 0 | F121: 0 | G121: 0 | H121: 0
A122: 55 | B122: - 59 | C122: 0 | D122: 0 | E122: 0 | F122: 0 | G122: 0 | H122: 0
A123: 60 | C123: 0 | D123: 0 | E123: 0 | F123: 0 | G123: 0 | H123: 0
A124: 61 | C124: 0 | D124: 0 | E124: 0 | F124: 0 | G124: 0 | H124: 0
A125: 62 | C125: 0 | D125: 0 | E125: 0 | F125: 0 | G125: 0 | H125: 0
A126: 63 | C126: 0 | D126: 0 | E126: 0 | F126: 0 | G126: 0 | H126: 0
A127: 64 | C127: 0 | D127: 0 | E127: 0 | F127: 0 | G127: 0 | H127: 0
A128: 65 | C128: 0 | D128: 0 | E128: 0 | F128: 0 | G128: 0 | H128: 0
A129: 66 | C129: 0 | D129: 0 | E129: 0 | F129: 0 | G129: 0 | H129: 0
A130: 67 | C130: 0 | D130: 0 | E130: 0 | F130: 0 | G130: 0 | H130: 0
A131: 68 | C131: =+C98*$G$2 -> 0 | D131: 0 | E131: 0 | F131: 0 | G131: 0 | H131: 0
A132: 69 | C132: 0 | D132: 0 | E132: 0 | F132: 0 | G132: 0 | H132: 0
A133: 70 | C133: 0 | D133: 0 | E133: 0 | F133: 0 | G133: 0 | H133: 0
A134: 71 | C134: 0 | D134: 0 | E134: 0 | F134: 0 | G134: 0 | H134: 0
A135: 72 | C135: 0 | D135: 0 | E135: 0 | F135: 0 | G135: 0 | H135: 0
A136: 73 | C136: 0 | D136: 0 | E136: 0 | F136: 0 | G136: 0 | H136: 0
A137: 74 | C137: 0 | D137: 0 | E137: 0 | F137: 0 | G137: 0 | H137: 0
A138: 75 | B138: o más | C138: 0 | D138: 0 | E138: 0 | F138: 0 | G138: 0 | H138: 0
A139: 1 | B139: Hijo | C139: 0 | D139: 0 | E139: 0 | F139: 0 | G139: 0 | H139: 0
A140: 2 | B140: Hijos | C140: 0 | D140: 0 | E140: 0 | F140: 0 | G140: 0 | H140: 0
A141: 3 | B141: Hijos o más | C141: 0 | D141: 0 | E141: 0 | F141: 0 | G141: 0 | H141: 0
A142: 1 | B142: Rider Comp. Maternidad | C142: 0 | D142: 0 | E142: 0 | F142: 0 | G142: 0 | H142: 0
A143: 1 | B143: Transplante de organos | C143: 0 | D143: 0 | E143: 0 | F143: 0 | G143: 0 | H143: 0
A148: BUPA PRIVILEGE CARE
A149: TARIFAS ANUALES
A150: EDAD
C151: CW1 | D151: CW2 | E151: CW3 | F151: CW4 | G151: CW5 | H151: CW6
A152: 18 | B152: 18-24 | D152: 17060 | E152: 11722 | F152: 8058 | G152: 5611 | H152: 4275
A153: 25 | B153: 25-29 | D153: 17903 | E153: 12970 | F153: 8928 | G153: 6217 | H153: 4744
A154: 30 | B154: 30-34 | D154: 18700 | E154: 13901 | F154: 10003 | G154: 7528 | H154: 5742
A155: 35 | B155: 35-39 | D155: 20940 | E155: 15557 | F155: 11210 | G155: 8435 | H155: 6438
A156: 40 | B156: 40-44 | D156: 24234 | E156: 17042 | F156: 12465 | G156: 9298 | H156: 7093
A157: 45 | B157: 45-49 | D157: 27071 | E157: 19044 | F157: 13943 | G157: 10383 | H157: 7938
A158: 50 | B158: 50-54 | D158: 35393 | E158: 25113 | F158: 18296 | G158: 14824 | H158: 11336
A159: 55 | B159: 55-59 | D159: 37654 | E159: 26721 | F159: 19469 | G159: 15774 | H159: 12064
A160: 60 | B160: 60 | D160: 41006 | E160: 29028 | F160: 22153 | G160: 18767 | H160: 15064
A161: 61 | B161: 61 | D161: 44051 | E161: 31173 | F161: 23796 | G161: 20157 | H161: 16183
A162: 62 | B162: 62 | D162: 48222 | E162: 34136 | F162: 26063 | G162: 22070 | H162: 17727
A163: 63 | B163: 63 | D163: 51280 | E163: 36291 | F163: 27703 | G163: 23467 | H163: 18840
A164: 64 | B164: 64 | D164: 55456 | E164: 39256 | F164: 29963 | G164: 25381 | H164: 20397
A165: 65 | B165: 65 | D165: 72492 | E165: 51206 | F165: 37889 | G165: 33838 | H165: 28744
A166: 66 | B166: 66 | D166: 84212 | E166: 59497 | F166: 44018 | G166: 39328 | H166: 33402
A167: 67 | B167: 67 | D167: 91987 | E167: 64985 | F167: 48075 | G167: 42951 | H167: 36473
A168: 68 | B168: 68 | D168: 101862 | E168: 71950 | F168: 53248 | G168: 47573 | H168: 40390
A169: 69 | B169: 69 | D169: 112057 | E169: 79157 | F169: 58574 | G169: 52330 | H169: 44443
A170: 70 | B170: 70 | D170: 137912 | E170: 96373 | F170: 68939 | G170: 60985 | H170: 52269
A171: 71 | B171: 71 | D171: 143317 | E171: 100156 | F171: 71656 | G171: 63372 | H171: 54323
A172: 72 | B172: 72 | D172: 147367 | E172: 103000 | F172: 73677 | G172: 65166 | H172: 55862
A173: 73 | B173: 73 | D173: 152804 | E173: 106778 | F173: 76389 | G173: 67555 | H173: 57916
A174: 74 | B174: 74 | D174: 155501 | E174: 108674 | F174: 77735 | G174: 68754 | H174: 58935
A175: 75 | B175: 75+ | D175: 162267 | E175: 113392 | F175: 81121 | G175: 71751 | H175: 61500
A176: 1 | B176: 1 Child | D176: 5924 | E176: 4329 | F176: 3271 | G176: 2710 | H176: 2003
A177: 2 | B177: 2 Children | D177: 9419 | E177: 6888 | F177: 5211 | G177: 4316 | H177: 3193
A178: 3 | B178: 3+ Children | D178: 13790 | E178: 10086 | F178: 7631 | G178: 6319 | H178: 4681
A179: 1 | B179: Rider Comp. Maternidad | D179: 0 | E179: 0 | F179: 225 | G179: 225 | H179: 225
A180: 1 | B180: Transplante de organos | D180: 0 | E180: 0 | F180: 0 | G180: 0 | H180: 0
A184: TARIFAS SEMESTRALES
A185: EDAD
D186: CW2 | E186: CW3 | F186: CW4 | G186: CW5 | H186: CW6
A187: 18 | B187: 18-24 | D187: =$G$2*D152 -> 9041.8 | E187: 6212.66 | F187: 4270.74 | G187: 2973.83 | H187: 2265.75
A188: 25 | B188: 25-29 | D188: 9488.59 | E188: 6874.1 | F188: 4731.84 | G188: 3295.01 | H188: 2514.32
A189: 30 | B189: 30-34 | D189: 9911 | E189: 7367.53 | F189: 5301.59 | G189: 3989.84 | H189: 3043.26
A190: 35 | B190: 35-39 | D190: 11098.2 | E190: 8245.21 | F190: 5941.3 | G190: 4470.55 | H190: 3412.14
A191: 40 | B191: 40-44 | D191: 12844.02 | E191: 9032.26 | F191: 6606.45 | G191: 4927.94 | H191: 3759.29
A192: 45 | B192: 45-49 | D192: 14347.63 | E192: 10093.32 | F192: 7389.79 | G192: 5502.99 | H192: 4207.14
A193: 50 | B193: 50-54 | D193: 18758.29 | E193: 13309.89 | F193: 9696.88 | G193: 7856.72 | H193: 6008.08
A194: 55 | B194: 55-59 | D194: 19956.62 | E194: 14162.13 | F194: 10318.57 | G194: 8360.22 | H194: 6393.92
A195: 60 | B195: 60 | D195: 21733.18 | E195: 15384.84 | F195: 11741.09 | G195: 9946.51 | H195: 7983.92
A196: 61 | B196: 61 | D196: 23347.03 | E196: 16521.69 | F196: 12611.88 | G196: 10683.21 | H196: 8576.99
A197: 62 | B197: 62 | D197: 25557.66 | E197: 18092.08 | F197: 13813.39 | G197: 11697.1 | H197: 9395.31
A198: 63 | B198: 63 | D198: 27178.4 | E198: 19234.23 | F198: 14682.59 | G198: 12437.51 | H198: 9985.2
A199: 64 | B199: 64 | D199: 29391.68 | E199: 20805.68 | F199: 15880.39 | G199: 13451.93 | H199: 10810.41
A200: 65 | B200: 65 | D200: 38420.76 | E200: 27139.18 | F200: 20081.17 | G200: 17934.14 | H200: 15234.32
A201: 66 | B201: 66 | D201: 44632.36 | E201: 31533.41 | F201: 23329.54 | G201: 20843.84 | H201: 17703.06
A202: 67 | B202: 67 | D202: 48753.11 | E202: 34442.05 | F202: 25479.75 | G202: 22764.03 | H202: 19330.69
A203: 68 | B203: 68 | D203: =$G$2*D168 -> 53986.86 | E203: 38133.5 | F203: 28221.44 | G203: 25213.69 | H203: 21406.7
A204: 69 | B204: 69 | D204: 59390.21 | E204: 41953.21 | F204: 31044.22 | G204: 27734.9 | H204: 23554.79
A205: 70 | B205: 70 | D205: 73093.36 | E205: 51077.69 | F205: 36537.67 | G205: 32322.05 | H205: 27702.57
A206: 71 | B206: 71 | D206: 75958.01 | E206: 53082.68 | F206: 37977.68 | G206: 33587.16 | H206: 28791.19
A207: 72 | B207: 72 | D207: 78104.51 | E207: 54590 | F207: 39048.81 | G207: 34537.98 | H207: 29606.86
A208: 73 | B208: 73 | D208: 80986.12 | E208: 56592.34 | F208: 40486.17 | G208: 35804.15 | H208: 30695.48
A209: 74 | B209: 74 | D209: 82415.53 | E209: 57597.22 | F209: 41199.55 | G209: 36439.62 | H209: 31235.55
A210: 75 | B210: 75+ | D210: 86001.51 | E210: 60097.76 | F210: 42994.13 | G210: 38028.03 | H210: 32595
A211: 1 | B211: 1 Child | D211: 3139.72 | E211: 2294.37 | F211: 1733.63 | G211: 1436.3 | H211: 1061.59
A212: 2 | B212: 2 Children | D212: 4992.07 | E212: 3650.64 | F212: 2761.83 | G212: 2287.48 | H212: 1692.29
A213: 3 | B213: 3+ Children | D213: 7308.7 | E213: 5345.58 | F213: 4044.43 | G213: 3349.07 | H213: 2480.93
A214: 1 | B214: Rider Comp. Maternidad | D214: =+D179*$G$2 -> 0 | E214: 0 | F214: 119.25 | G214: 119.25 | H214: 119.25
A215: 1 | B215: Transplante de organos | D215: 0 | E215: 0 | F215: 0 | G215: 0 | H215: 0
A220: COMPLETE (LATINAMERICA ONLY)
A221: TARIFAS ANUALES
A222: EDAD
... 335 more rows

Sheet PERU2020 (hidden)
K1: D1 | L1: D2 | M1: D3 | N1: D4 | O1: D5 | P1: D6
B2: REGIÓN | C2: ='INSURED INFORMATION'!W14 -> 8 | E2: FACTOR SEMESTRAL : | G2: 0.53 | I2: NEW BUSINESS DISCUOUNTS | K2: ='INSURED INFORMATION'!P53 -> 1 | L2: ='INSURED INFORMATION'!Q53 -> 1 | M2: ='INSURED INFORMATION'!R53 -> 1 | N2: ='INSURED INFORMATION'!S53 -> 1 | O2: ='INSURED INFORMATION'!T53 -> 1 | P2: ='INSURED INFORMATION'!U53 -> 1
A5: BUPA EXCLUSIVE CARE
A6: TARIFAS ANUALES
A7: EDAD | K7: Usar tarifas de la Zona 4
C8: DW1 | D8: DW2 | E8: DW3 | F8: DW4 | G8: DW5 | H8: DW6
A9: 18 | B9: 18-24 | D9: 19979 | E9: 13201 | F9: 8654 | G9: 5923 | H9: 4662
A10: 25 | B10: 25-29 | D10: 20959 | E10: 14590 | F10: 9589 | G10: 6569 | H10: 5163
A11: 30 | B11: 30-34 | D11: 21802 | E11: 15646 | F11: 10734 | G11: 7876 | H11: 6210
A12: 35 | B12: 35-39 | D12: 24418 | E12: 17516 | F12: 12036 | G12: 8827 | H12: 6954
A13: 40 | B13: 40-44 | D13: 28320 | E13: 19161 | F13: 13361 | G13: 9708 | H13: 7646
A14: 45 | B14: 45-49 | D14: 31660 | E14: 21430 | F14: 14933 | G14: 10844 | H14: 8548
A15: 50 | B15: 50-54 | D15: 40512 | E15: 28118 | F15: 19485 | G15: 15332 | H15: 12085
A16: 55 | B16: 55-59 | D16: 43104 | E16: 29922 | F16: 20726 | G16: 16311 | H16: 12864
A17: 60 | B17: 60 | D17: 46956 | E17: 32642 | F17: 23858 | G17: 19649 | H17: 15984
A18: 61 | B18: 61 | D18: 50446 | E18: 35078 | F18: 25621 | G18: 21126 | H18: 17174
A19: 62 | B19: 62 | D19: 55231 | E19: 38417 | F19: 28065 | G19: 23118 | H19: 18806
A20: 63 | B20: 63 | D20: 58728 | E20: 40848 | F20: 29827 | G20: 24597 | H20: 19990
A21: 64 | B21: 64 | D21: 63524 | E21: 44197 | F21: 32283 | G21: 26600 | H21: 21644
A22: 65 | B22: 65 | D22: 83050 | E22: 57652 | F22: 40817 | G22: 35481 | H22: 30520
A23: 66 | B23: 66 | D23: 96481 | E23: 66992 | F23: 47426 | G23: 41248 | H23: 35459
A24: 67 | B24: 67 | D24: 105388 | E24: 73169 | F24: 51804 | G24: 45040 | H24: 38737
A25: 68 | B25: 68 | D25: 116696 | E25: 81011 | F25: 57365 | G25: 49883 | H25: 42892
A26: 69 | B26: 69 | D26: 128397 | E26: 89128 | F26: 63119 | G26: 54880 | H26: 47201
A27: 70 | B27: 70 | D27: 158015 | E27: 108535 | F27: 74302 | G27: 63945 | H27: 55525
A28: 71 | B28: 71 | D28: 164228 | E28: 112792 | F28: 77226 | G28: 66466 | H28: 57706
A29: 72 | B29: 72 | D29: 168880 | E29: 115987 | F29: 79396 | G29: 68348 | H29: 59339
A30: 73 | B30: 73 | D30: 175080 | E30: 120254 | F30: 82318 | G30: 70863 | H30: 61507
A31: 74 | B31: 74 | D31: 178181 | E31: 122381 | F31: 83791 | G31: 72116 | H31: 62608
A32: 75 | B32: 75+ | D32: 185937 | E32: 127704 | F32: 87423 | G32: 75257 | H32: 65343
A33: 1 | B33: 1 Child | D33: 6942 | E33: 5114 | F33: 3871 | G33: 3150 | H33: 2450
A34: 2 | B34: 2 Children | D34: 11042 | E34: 8146 | F34: 6160 | G34: 4999 | H34: 3899
A35: 3 | B35: 3+ Children | D35: 16192 | E35: 11930 | F35: 9019 | G35: 7326 | H35: 5705
A36: 1 | B36: Rider Comp. Maternidad | D36: 0 | E36: 0 | F36: 225 | G36: 225 | H36: 225
A37: 1 | B37: Transplante de organos | D37: 0 | E37: 0 | F37: 0 | G37: 0 | H37: 0
A41: TARIFAS SEMESTRALES
A42: EDAD
D43: DW2 | E43: DW3 | F43: DW4 | G43: DW5 | H43: DW6
A44: 18 | B44: 18-24 | D44: =$G$2*D9 -> 10588.87 | E44: 6996.53 | F44: 4586.62 | G44: 3139.19 | H44: 2470.86
A45: 25 | B45: 25-29 | D45: 11108.27 | E45: 7732.7 | F45: 5082.17 | G45: 3481.57 | H45: 2736.39
A46: 30 | B46: 30-34 | D46: 11555.06 | E46: 8292.38 | F46: 5689.02 | G46: 4174.28 | H46: 3291.3
A47: 35 | B47: 35-39 | D47: 12941.54 | E47: 9283.48 | F47: 6379.08 | G47: 4678.31 | H47: 3685.62
A48: 40 | B48: 40-44 | D48: 15009.6 | E48: 10155.33 | F48: 7081.33 | G48: 5145.24 | H48: 4052.38
A49: 45 | B49: 45-49 | D49: 16779.8 | E49: 11357.9 | F49: 7914.49 | G49: 5747.32 | H49: 4530.44
A50: 50 | B50: 50-54 | D50: 21471.36 | E50: 14902.54 | F50: 10327.05 | G50: 8125.96 | H50: 6405.05
A51: 55 | B51: 55-59 | D51: 22845.12 | E51: 15858.66 | F51: 10984.78 | G51: 8644.83 | H51: 6817.92
A52: 60 | B52: 60 | D52: 24886.68 | E52: 17300.26 | F52: 12644.74 | G52: 10413.97 | H52: 8471.52
A53: 61 | B53: 61 | D53: 26736.38 | E53: 18591.34 | F53: 13579.13 | G53: 11196.78 | H53: 9102.22
A54: 62 | B54: 62 | D54: 29272.43 | E54: 20361.01 | F54: 14874.45 | G54: 12252.54 | H54: 9967.18
A55: 63 | B55: 63 | D55: 31125.84 | E55: 21649.44 | F55: 15808.31 | G55: 13036.41 | H55: 10594.7
A56: 64 | B56: 64 | D56: 33667.72 | E56: 23424.41 | F56: 17109.99 | G56: 14098 | H56: 11471.32
A57: 65 | B57: 65 | D57: 44016.5 | E57: 30555.56 | F57: 21633.01 | G57: 18804.93 | H57: 16175.6
A58: 66 | B58: 66 | D58: 51134.93 | E58: 35505.76 | F58: 25135.78 | G58: 21861.44 | H58: 18793.27
A59: 67 | B59: 67 | D59: 55855.64 | E59: 38779.57 | F59: 27456.12 | G59: 23871.2 | H59: 20530.61
A60: 68 | B60: 68 | D60: =$G$2*D25 -> 61848.88 | E60: 42935.83 | F60: 30403.45 | G60: 26437.99 | H60: 22732.76
A61: 69 | B61: 69 | D61: 68050.41 | E61: 47237.84 | F61: 33453.07 | G61: 29086.4 | H61: 25016.53
A62: 70 | B62: 70 | D62: 83747.95 | E62: 57523.55 | F62: 39380.06 | G62: 33890.85 | H62: 29428.25
A63: 71 | B63: 71 | D63: 87040.84 | E63: 59779.76 | F63: 40929.78 | G63: 35226.98 | H63: 30584.18
A64: 72 | B64: 72 | D64: 89506.4 | E64: 61473.11 | F64: 42079.88 | G64: 36224.44 | H64: 31449.67
A65: 73 | B65: 73 | D65: 92792.4 | E65: 63734.62 | F65: 43628.54 | G65: 37557.39 | H65: 32598.71
A66: 74 | B66: 74 | D66: 94435.93 | E66: 64861.93 | F66: 44409.23 | G66: 38221.48 | H66: 33182.24
A67: 75 | B67: 75+ | D67: 98546.61 | E67: 67683.12 | F67: 46334.19 | G67: 39886.21 | H67: 34631.79
A68: 1 | B68: 1 Child | D68: 3679.26 | E68: 2710.42 | F68: 2051.63 | G68: 1669.5 | H68: 1298.5
A69: 2 | B69: 2 Children | D69: 5852.26 | E69: 4317.38 | F69: 3264.8 | G69: 2649.47 | H69: 2066.47
A70: 3 | B70: 3+ Children | D70: 8581.76 | E70: 6322.9 | F70: 4780.07 | G70: 3882.78 | H70: 3023.65
A71: 1 | B71: Rider Comp. Maternidad | D71: =+D36*$G$2 -> 0 | E71: 0 | F71: 119.25 | G71: 119.25 | H71: 119.25
A72: 1 | B72: Transplante de organos | D72: 0 | E72: 0 | F72: 0 | G72: 0 | H72: 0
A78: DIAMOND (LATINAMERICA ONLY)
A79: TARIFAS ANUALES
A80: EDAD
C81: DL1 | D81: DL2 | E81: DL3 | F81: DL4 | G81: DL5 | H81: DL6
A82: 18 | B82: - 24
A83: 25 | B83: - 29
A84: 30 | B84: - 34
A85: 35 | B85: - 39
A86: 40 | B86: - 44
A87: 45 | B87: - 49
A88: 50 | B88: - 54
A89: 55 | B89: - 59
A90: 60
A91: 61
A92: 62
A93: 63
A94: 64
A95: 65
A96: 66
A97: 67
A98: 68
A99: 69
A100: 70
A101: 71
A102: 72
A103: 73
A104: 74
A105: 75 | B105: o más
A106: 1 | B106: Hijo
A107: 2 | B107: Hijos
A108: 3 | B108: Hijos o más
A109: 1 | B109: Rider Comp. Maternidad
A110: 1 | B110: Transplante de organos | C110: 0 | D110: 0 | E110: 0 | F110: 0 | G110: 0 | H110: 0
A112: TARIFAS SEMESTRALES
A113: EDAD
C114: DL1 | D114: DL2 | E114: DL3 | F114: DL4 | G114: DL5 | H114: DL6
A115: 18 | B115: - 24 | C115: =+C82*$G$2 -> 0 | D115: 0 | E115: 0 | F115: 0 | G115: 0 | H115: 0
A116: 25 | B116: - 29 | C116: 0 | D116: 0 | E116: 0 | F116: 0 | G116: 0 | H116: 0
A117: 30 | B117: - 34 | C117: 0 | D117: 0 | E117: 0 | F117: 0 | G117: 0 | H117: 0
A118: 35 | B118: - 39 | C118: 0 | D118: 0 | E118: 0 | F118: 0 | G118: 0 | H118: 0
A119: 40 | B119: - 44 | C119: 0 | D119: 0 | E119: 0 | F119: 0 | G119: 0 | H119: 0
A120: 45 | B120: - 49 | C120: 0 | D120: 0 | E120: 0 | F120: 0 | G120: 0 | H120: 0
A121: 50 | B121: - 54 | C121: 0 | D121: 0 | E121: 0 | F121: 0 | G121: 0 | H121: 0
A122: 55 | B122: - 59 | C122: 0 | D122: 0 | E122: 0 | F122: 0 | G122: 0 | H122: 0
A123: 60 | C123: 0 | D123: 0 | E123: 0 | F123: 0 | G123: 0 | H123: 0
A124: 61 | C124: 0 | D124: 0 | E124: 0 | F124: 0 | G124: 0 | H124: 0
A125: 62 | C125: 0 | D125: 0 | E125: 0 | F125: 0 | G125: 0 | H125: 0
A126: 63 | C126: 0 | D126: 0 | E126: 0 | F126: 0 | G126: 0 | H126: 0
A127: 64 | C127: 0 | D127: 0 | E127: 0 | F127: 0 | G127: 0 | H127: 0
A128: 65 | C128: 0 | D128: 0 | E128: 0 | F128: 0 | G128: 0 | H128: 0
A129: 66 | C129: 0 | D129: 0 | E129: 0 | F129: 0 | G129: 0 | H129: 0
A130: 67 | C130: 0 | D130: 0 | E130: 0 | F130: 0 | G130: 0 | H130: 0
A131: 68 | C131: =+C98*$G$2 -> 0 | D131: 0 | E131: 0 | F131: 0 | G131: 0 | H131: 0
A132: 69 | C132: 0 | D132: 0 | E132: 0 | F132: 0 | G132: 0 | H132: 0
A133: 70 | C133: 0 | D133: 0 | E133: 0 | F133: 0 | G133: 0 | H133: 0
A134: 71 | C134: 0 | D134: 0 | E134: 0 | F134: 0 | G134: 0 | H134: 0
A135: 72 | C135: 0 | D135: 0 | E135: 0 | F135: 0 | G135: 0 | H135: 0
A136: 73 | C136: 0 | D136: 0 | E136: 0 | F136: 0 | G136: 0 | H136: 0
A137: 74 | C137: 0 | D137: 0 | E137: 0 | F137: 0 | G137: 0 | H137: 0
A138: 75 | B138: o más | C138: 0 | D138: 0 | E138: 0 | F138: 0 | G138: 0 | H138: 0
A139: 1 | B139: Hijo | C139: 0 | D139: 0 | E139: 0 | F139: 0 | G139: 0 | H139: 0
A140: 2 | B140: Hijos | C140: 0 | D140: 0 | E140: 0 | F140: 0 | G140: 0 | H140: 0
A141: 3 | B141: Hijos o más | C141: 0 | D141: 0 | E141: 0 | F141: 0 | G141: 0 | H141: 0
A142: 1 | B142: Rider Comp. Maternidad | C142: 0 | D142: 0 | E142: 0 | F142: 0 | G142: 0 | H142: 0
A143: 1 | B143: Transplante de organos | C143: 0 | D143: 0 | E143: 0 | F143: 0 | G143: 0 | H143: 0
A148: BUPA PRIVILEGE CARE
A149: TARIFAS ANUALES
A150: EDAD
C151: CW1 | D151: CW2 | E151: CW3 | F151: CW4 | G151: CW5 | H151: CW6
A152: 18 | B152: 18-24 | D152: 16807 | E152: 11553 | F152: 7523 | G152: 5153 | H152: 3919
A153: 25 | B153: 25-29 | D153: 17628 | E153: 12782 | F153: 8331 | G153: 5704 | H153: 4342
A154: 30 | B154: 30-34 | D154: 18417 | E154: 13671 | F154: 9351 | G154: 6892 | H154: 5273
A155: 35 | B155: 35-39 | D155: 20616 | E155: 15304 | F155: 10479 | G155: 7731 | H155: 5903
A156: 40 | B156: 40-44 | D156: 23869 | E156: 16785 | F156: 11649 | G156: 8526 | H156: 6517
A157: 45 | B157: 45-49 | D157: 26667 | E157: 18755 | F157: 13014 | G157: 9530 | H157: 7278
A158: 50 | B158: 50-54 | D158: 34855 | E158: 24739 | F158: 17089 | G158: 13587 | H158: 10391
A159: 55 | B159: 55-59 | D159: 37077 | E159: 26316 | F159: 18184 | G159: 14464 | H159: 11056
A160: 60 | B160: 60 | D160: 40378 | E160: 28572 | F160: 20695 | G160: 17198 | H160: 13826
A161: 61 | B161: 61 | D161: 43379 | E161: 30693 | F161: 22232 | G161: 18485 | H161: 14848
A162: 62 | B162: 62 | D162: 47484 | E162: 33618 | F162: 24345 | G162: 20239 | H162: 16258
A163: 63 | B163: 63 | D163: 50495 | E163: 35740 | F163: 25882 | G163: 21529 | H163: 17283
A164: 64 | B164: 64 | D164: 54611 | E164: 38672 | F164: 28004 | G164: 23288 | H164: 18702
A165: 65 | B165: 65 | D165: 71403 | E165: 50431 | F165: 35402 | G165: 31048 | H165: 26366
A166: 66 | B166: 66 | D166: 82942 | E166: 58598 | F166: 41135 | G166: 36085 | H166: 30634
A167: 67 | B167: 67 | D167: 90584 | E167: 63998 | F167: 44928 | G167: 39396 | H167: 33461
A168: 68 | B168: 68 | D168: 100305 | E168: 70855 | F168: 49754 | G168: 43630 | H168: 37051
A169: 69 | B169: 69 | D169: 110353 | E169: 77953 | F169: 54729 | G169: 47998 | H169: 40770
A170: 70 | B170: 70 | D170: 135813 | E170: 94922 | F170: 64427 | G170: 55943 | H170: 47941
A171: 71 | B171: 71 | D171: 141147 | E171: 98635 | F171: 66947 | G171: 58133 | H171: 49835
A172: 72 | B172: 72 | D172: 145148 | E172: 101426 | F172: 68852 | G172: 59779 | H172: 51239
A173: 73 | B173: 73 | D173: 150470 | E173: 105160 | F173: 71375 | G173: 61978 | H173: 53137
A174: 74 | B174: 74 | D174: 153134 | E174: 107015 | F174: 72639 | G174: 63083 | H174: 54064
A175: 75 | B175: 75+ | D175: 159803 | E175: 111677 | F175: 75799 | G175: 65822 | H175: 56417
A176: 1 | B176: 1 Child | D176: 5826 | E176: 4251 | F176: 3056 | G176: 2487 | H176: 1845
A177: 2 | B177: 2 Children | D177: 9259 | E177: 6775 | F177: 4872 | G177: 3960 | H177: 2931
A178: 3 | B178: 3+ Children | D178: 13581 | E178: 9925 | F178: 7132 | G178: 5802 | H178: 4297
A179: 1 | B179: Rider Comp. Maternidad | D179: 0 | E179: 0 | F179: 225 | G179: 225 | H179: 225
A180: 1 | B180: Transplante de organos | D180: 0 | E180: 0 | F180: 0 | G180: 0 | H180: 0
A184: TARIFAS SEMESTRALES
A185: EDAD
D186: CW2 | E186: CW3 | F186: CW4 | G186: CW5 | H186: CW6
A187: 18 | B187: 18-24 | D187: =$G$2*D152 -> 8907.71 | E187: 6123.09 | F187: 3987.19 | G187: 2731.09 | H187: 2077.07
A188: 25 | B188: 25-29 | D188: 9342.84 | E188: 6774.46 | F188: 4415.43 | G188: 3023.12 | H188: 2301.26
A189: 30 | B189: 30-34 | D189: 9761.01 | E189: 7245.63 | F189: 4956.03 | G189: 3652.76 | H189: 2794.69
A190: 35 | B190: 35-39 | D190: 10926.48 | E190: 8111.12 | F190: 5553.87 | G190: 4097.43 | H190: 3128.59
A191: 40 | B191: 40-44 | D191: 12650.57 | E191: 8896.05 | F191: 6173.97 | G191: 4518.78 | H191: 3454.01
A192: 45 | B192: 45-49 | D192: 14133.51 | E192: 9940.15 | F192: 6897.42 | G192: 5050.9 | H192: 3857.34
A193: 50 | B193: 50-54 | D193: 18473.15 | E193: 13111.67 | F193: 9057.17 | G193: 7201.11 | H193: 5507.23
A194: 55 | B194: 55-59 | D194: 19650.81 | E194: 13947.48 | F194: 9637.52 | G194: 7665.92 | H194: 5859.68
A195: 60 | B195: 60 | D195: 21400.34 | E195: 15143.16 | F195: 10968.35 | G195: 9114.94 | H195: 7327.78
A196: 61 | B196: 61 | D196: 22990.87 | E196: 16267.29 | F196: 11782.96 | G196: 9797.05 | H196: 7869.44
A197: 62 | B197: 62 | D197: 25166.52 | E197: 17817.54 | F197: 12902.85 | G197: 10726.67 | H197: 8616.74
A198: 63 | B198: 63 | D198: 26762.35 | E198: 18942.2 | F198: 13717.46 | G198: 11410.37 | H198: 9159.99
A199: 64 | B199: 64 | D199: 28943.83 | E199: 20496.16 | F199: 14842.12 | G199: 12342.64 | H199: 9912.06
A200: 65 | B200: 65 | D200: 37843.59 | E200: 26728.43 | F200: 18763.06 | G200: 16455.44 | H200: 13973.98
A201: 66 | B201: 66 | D201: 43959.26 | E201: 31056.94 | F201: 21801.55 | G201: 19125.05 | H201: 16236.02
A202: 67 | B202: 67 | D202: 48009.52 | E202: 33918.94 | F202: 23811.84 | G202: 20879.88 | H202: 17734.33
A203: 68 | B203: 68 | D203: =$G$2*D168 -> 53161.65 | E203: 37553.15 | F203: 26369.62 | G203: 23123.9 | H203: 19637.03
A204: 69 | B204: 69 | D204: 58487.09 | E204: 41315.09 | F204: 29006.37 | G204: 25438.94 | H204: 21608.1
A205: 70 | B205: 70 | D205: 71980.89 | E205: 50308.66 | F205: 34146.31 | G205: 29649.79 | H205: 25408.73
A206: 71 | B206: 71 | D206: 74807.91 | E206: 52276.55 | F206: 35481.91 | G206: 30810.49 | H206: 26412.55
A207: 72 | B207: 72 | D207: 76928.44 | E207: 53755.78 | F207: 36491.56 | G207: 31682.87 | H207: 27156.67
A208: 73 | B208: 73 | D208: 79749.1 | E208: 55734.8 | F208: 37828.75 | G208: 32848.34 | H208: 28162.61
A209: 74 | B209: 74 | D209: 81161.02 | E209: 56717.95 | F209: 38498.67 | G209: 33433.99 | H209: 28653.92
A210: 75 | B210: 75+ | D210: 84695.59 | E210: 59188.81 | F210: 40173.47 | G210: 34885.66 | H210: 29901.01
A211: 1 | B211: 1 Child | D211: 3087.78 | E211: 2253.03 | F211: 1619.68 | G211: 1318.11 | H211: 977.85
A212: 2 | B212: 2 Children | D212: 4907.27 | E212: 3590.75 | F212: 2582.16 | G212: 2098.8 | H212: 1553.43
A213: 3 | B213: 3+ Children | D213: 7197.93 | E213: 5260.25 | F213: 3779.96 | G213: 3075.06 | H213: 2277.41
A214: 1 | B214: Rider Comp. Maternidad | D214: =+D179*$G$2 -> 0 | E214: 0 | F214: 119.25 | G214: 119.25 | H214: 119.25
A215: 1 | B215: Transplante de organos | D215: 0 | E215: 0 | F215: 0 | G215: 0 | H215: 0
A220: COMPLETE (LATINAMERICA ONLY)
A221: TARIFAS ANUALES
A222: EDAD
... 335 more rows
